Workbook

Sheet Simulações
E2: Modelagem PPP de Iluminação Pública do Município de Porto Alegre/RS
E4: Anexo com Propostas de Modernização para cada um dos Logradouros inspecionados
I9: TIPO | J9: L1 | K9: L2 | L9: L3 | M9: MÉDIA
I10: Soma Potência Atual | J10: =SUMIF($BW$16:$BW$216,J$9,$CM$16:$CM$216) -> 17730 | K10: =SUMIF($BW$16:$BW$216,K$9,$CM$16:$CM$216) -> 17730 | L10: =SUMIF($BW$16:$BW$216,L$9,$CM$16:$CM$216) -> 17730 | M10: -
I11: Soma Potência Simulada | J11: =SUMIF($BW$16:$BW$216,J$9,$CP$16:$CP$216) -> 10448 | K11: =SUMIF($BW$16:$BW$216,K$9,$CP$16:$CP$216) -> 11080 | L11: =SUMIF($BW$16:$BW$216,L$9,$CP$16:$CP$216) -> 9915 | M11: -
I12: Eficiência energética | J12: =1-J11/J10 -> 0.4107163001 | K12: =1-K11/K10 -> 0.375070502 | L12: 0.4407783418 | M12: =AVERAGE(J12:L12) -> 0.4088550479
B14: Descrição da Tipologia | AP14: Via de Veículos | BA14: Ciclovias | BE14: Vias de Pedestres | BW14: Simulações | CK14: Avaliação de Eficientização
B15: Ordem | C15: Número da Inspeção | D15: Faixas de Rodagem | E15: Projeto DIALux | F15: Ordem no arquivo DLX | G15: Logradouro | H15: Curva Fotométrica | I15: Luminária no Reluz | J15: Lâmpada no Reluz | K15: Fabricante Lâmpada Philips Plus PIA | L15: Poste no Reluz | M15: Braço no Reluz | N15: Observações da Inspeção | O15: Atendimento a NBR 5101 | P15: Atendimento Iluminância Média | Q15: Atendimento Uniformidade | R15: Largura da Via | S15: Passeio 1 | T15: Passeio 2 | U15: Ciclovia | V15: Classe de iluminação | W15: Iluminância Média (Medida) | X15: Iluminância Média Exigida | Y15: Fator de Uniformidade | Z15: Uniformidade Exigida | AA15: Luminância Média Exigida | AB15: Uniformidade Global Exigida | AC15: Altura da Luminária | AD15: Distância Entre Postes | AE15: Lâmpadas Por Poste (IP Principal) | AF15: Posteação | AG15: Potência atual (IP Principal) | AH15: Potência do Reator (IP Principal) | AI15: Potência atual (IP Secundário) | AJ15: Potência do Reator (IP Secundário) | AK15: Dist. Rodovia | AL15: Pendor | AM15: Projeção do Braço | AN15: Ângulo Existente | AO15: Canteiro Central | AP15: Iluminância Média | AQ15: Uniformidade Média | AR15: Luminância Média | AS15: Uniformidade Global | AT15: Atende todos os requisitos da NBR 5101 | AU15: Atende à NBR 5101 (Em) | AV15: Atende à Iluminância Média | AW15: Atende à Uniformidade Média | AX15: Atende à NBR 5101 (Lm) | AY15: Atende à Luminância Média | AZ15: Atende à Uniformidade Global | BA15: Ciclovia | BB15: Classe IP | BC15: Iluminância Média | BD15: Fator de Uniformidade | BE15: Largura Passeio 1 | BF15: Classe IP | BG15: Iluminância Média | BH15: Fator de Uniformidade | BI15: Iluminância Média (Exigida) | BJ15: Fator Uniformidade (Exigida) | BK15: Atende à NBR 5101 | BL15: Atende à Iluminância Média | BM15: Atende à Uniformidade | BN15: Largura Passeio 2 | BO15: Classe IP | BP15: Iluminância Média | BQ15: Fator de Uniformidade | BR15: Iluminância Média (Exigida) | BS15: Fator Uniformidade (Exigida) | BT15: Atende à NBR 5101 | BU15: Atende à Iluminância Média | BV15: Atende à Uniformidade | BW15: Fornecedor | BX15: Luminária Simulada (IP Principal) | BY15: Luminária Simulada (IP Secundário) | BZ15: Pontos por poste (IP Principal) | CA15: Potência simulada - IP Principal (W) | CB15: Potência simulada - IP Secundário (W) | CC15: Fluxo Luminoso - IP Principal (lm) | CD15: Fluxo Luminoso - IP Secundário (lm) | CE15: Demanda para troca de braço | CF15: Altura [m] | CG15: Projeção [m] | CH15: Ângulo Simulado | CI15: Observações da Simulação | CJ15: Asfalto | CK15: Potência IP Principal Atual | CL15: Potência IP Secundário Atual | CM15: Total Atual | CN15: Potência IP Principal Proposta | CO15: Potência IP Secundário Proposta | CP15: Total Simulado
B16: 1 | C16: 1 | D16: 2 | E16: 7 | F16: 5 | G16: Rua Baltimore | H16: ok | I16: Opalo | J16: LP-4 PC-Lâmp.100 | K16: SUPER 4Y | L16: Concreto CEEE | M16: IP-B3 | O16: NÃO ATENDE | P16: NÃO ATENDE | Q16: NÃO ATENDE | R16: 7 | S16: 1.5 | T16: 2 | U16: 0 | V16: V5 | W16: 1.360000002 | X16: 5 | Y16: 0.07352941273 | Z16: 0.2 | AA16: - | AB16: - | AC16: 7.7 | AD16: 35 | AE16: 1 | AF16: Unilateral | AG16: 100 | AH16: 14 | AI16: 0 | AJ16: 0 | AK16: 0.3 | AL16: =AM16-AK16 -> 2.04 | AM16: 2.34 | AN16: 0° | AO16: - | AP16: 7.54 | AQ16: 0.48 | AR16: - | AS16: - | AT16: =IF(AX16="-",IF(AU16="ATENDE","ATENDE","NÃO ATENDE"),IF(AU16="NÃO ATENDE","NÃO ATENDE",IF(AX16="NÃO ATENDE","NÃO ATENDE","ATENDE"))) -> ATENDE | AU16: =IF(AV16="NÃO ATENDE","NÃO ATENDE",IF(AW16="ATENDE","ATENDE","NÃO ATENDE")) -> ATENDE | AV16: =IF(AP16>=X16,"ATENDE",IF(AP16>=0.99*X16,"ATENDIMENTO LIMIAR","NÃO ATENDE")) -> ATENDE | AW16: =IF(AQ16>=Z16,"ATENDE",IF(AQ16>=(Z16-0.02),"ATENDIMENTO LIMIAR","NÃO ATENDE")) -> ATENDE | AX16: =IF(V16="V4","-",IF(V16="V5","-",IF(AY16="NÃO ATENDE","NÃO ATENDE",IF(AZ16="ATENDE","ATENDE","NÃO ATENDE")))) -> - | AY16: =IF(V16="V4","-",IF(V16="V5","-",IF(AR16>=AA16,"ATENDE",IF(AR16>=0.99*AA16,"ATENDIMENTO LIMIAR","NÃO ATENDE")))) -> - | AZ16: =IF(V16="V4","-",IF(V16="V5","-",IF(AS16>=AB16,"ATENDE",IF(AS16>=(AB16-0.02),"ATENDIMENTO LIMIAR","NÃO ATENDE")))) -> - | BA16: =IF(U16=0,"",U16) ->  | BE16: =S16 -> 1.5 | BF16: P4 | BG16: 5.94 | BH16: 0.37 | BI16: 3 | BJ16: 0.2 | BK16: =IF(BL16="-","-",IF(BL16="NÃO ATENDE","NÃO ATENDE",IF(BM16="NÃO ATENDE","NÃO ATENDE","ATENDE"))) -> ATENDE | BL16: =IF(BE16="-","-",IF(BG16>=BI16,"ATENDE",IF(BG16>=(BI16*0.99),"ATENDIMENTO LIMIAR","NÃO ATENDE"))) -> ATENDE | BM16: =IF(BE16="-","-",IF(BH16>=BJ16,"ATENDE",IF(BH16>=(BJ16-0.02),"ATENDIMENTO LIMIAR","NÃO ATENDE"))) -> ATENDE | BN16: =T16 -> 2 | BO16: P4 | BP16: 4.98 | BQ16: 0.68 | BR16: 3 | BS16: 0.2 | BT16: =IF(BN16="-","-",IF(BU16="NÃO ATENDE","NÃO ATENDE",IF(BV16="NÃO ATENDE","NÃO ATENDE","ATENDE"))) -> ATENDE | BU16: =IF(BN16="-","-",IF(BP16>=(BR16),"ATENDE",IF(BP16>=(0.99*BR16),"ATENDIMENTO LIMIAR","NÃO ATENDE"))) -> ATENDE | BV16: =IF(BN16="-","-",IF(BQ16>=BS16,"ATENDE",IF(BQ16>=(BS16-0.02),"ATENDIMENTO LIMIAR","NÃO ATENDE"))) -> ATENDE | BW16: L1 | BX16: L1-38 | BZ16: 1 | CA16: 38 | CB16: 0 | CC16: 4471 | CD16: - | CJ16: Asfalto CIE N3 | CK16: =(AG16+AH16)*AE16 -> 114 | CL16: =(AI16+AJ16) -> 0 | CM16: =CK16+CL16 -> 114 | CN16: =CA16*BZ16 -> 38 | CO16: =CB16 -> 0 | CP16: =CN16+CO16 -> 38
B17: 2 | C17: 2 | D17: 2 | E17: 9 | F17: 3 | G17: Av Monte Cristo | H17: - | I17: ILUMATIC ILP -450 | J17: LP-3 VP-Lâmp.150 | K17: PHILIPS PLUS PIA | L17: Concreto CEEE | M17: IP-B3 | N17: Possui ponto próximo com IP-B6 | O17: ATENDE | P17: ATENDE | Q17: ATENDE | R17: 7 | S17: 4.5 | T17: - | U17: 0 | V17: V3 | W17: 15.08666654 | X17: 15 | Y17: 0.2452496739 | Z17: 0.2 | AA17: 1 | AB17: 0.4 | AC17: 7.7 | AD17: 26 | AE17: 1 | AF17: Unilateral | AG17: 150 | AH17: 18 | AI17: 0 | AJ17: 0 | AK17: 4.5 | AL17: -2.16 | AM17: 2.34 | AN17: 0° | AO17: - | AP17: 19.63 | AQ17: 0.52 | AR17: 1.11 | AS17: 0.46 | AT17: ATENDE | AU17: ATENDE | AV17: ATENDE | AW17: ATENDE | AX17: ATENDE | AY17: ATENDE | AZ17: ATENDE | BE17: 4.5 | BF17: P3 | BG17: 19.36 | BH17: 0.54 | BI17: 5 | BJ17: 0.2 | BK17: ATENDE | BL17: ATENDE | BM17: ATENDE | BN17: - | BO17: - | BP17: - | BQ17: - | BR17: - | BS17: - | BT17: - | BU17: - | BV17: - | BW17: L1 | BX17: L1-94 | BZ17: 1 | CA17: 94 | CB17: 0 | CC17: 10531 | CD17: - | CH17: 10° | CJ17: Asfalto CIE N3 | CK17: 168 | CL17: 0 | CM17: 168 | CN17: 94 | CO17: 0 | CP17: 94
B18: 3 | C18: 3 | D18: 2 | E18: 4 | F18: 5 | G18: Rua Joaquim de Carvalho | H18: - | I18: ILUMATIC ILP -450 | J18: LP-3 VP-Lâmp.150 | K18: PHILIPS PLUS PIA | L18: Concreto CEEE | M18: IP-B3 | O18: NÃO ATENDE | P18: ATENDE | Q18: NÃO ATENDE | R18: 11.7 | S18: 0.8 | T18: 2.9 | U18: 0 | V18: V4 | W18: 14.47777777 | X18: 10 | Y18: 0.05525709986 | Z18: 0.2 | AA18: - | AB18: - | AC18: 7.7 | AD18: 32.8 | AE18: 1 | AF18: Unilateral | AG18: 150 | AH18: 18 | AI18: 0 | AJ18: 0 | AK18: 0.3 | AL18: 2.04 | AM18: 2.34 | AN18: 0° | AO18: - | AP18: 11.55 | AQ18: 0.52 | AR18: - | AS18: - | AT18: ATENDE | AU18: ATENDE | AV18: ATENDE | AW18: ATENDE | AX18: - | AY18: - | AZ18: - | BE18: 0.8 | BF18: P4 | BG18: 5.6 | BH18: 0.64 | BI18: 3 | BJ18: 0.2 | BK18: ATENDE | BL18: ATENDE | BM18: ATENDE | BN18: 2.9 | BO18: P4 | BP18: 4.01 | BQ18: 0.75 | BR18: 3 | BS18: 0.2 | BT18: ATENDE | BU18: ATENDE | BV18: ATENDE | BW18: L1 | BX18: L1-77 | BZ18: 1 | CA18: 77 | CB18: 0 | CC18: 8022 | CD18: - | CH18: 10° | CI18: Canteiros de grama de 1m e 1,5m entre via-passeio 1 e via-passeio 2, respec. | CJ18: Asfalto CIE N3 | CK18: 168 | CL18: 0 | CM18: 168 | CN18: 77 | CO18: 0 | CP18: 77
B19: 4 | C19: 4 | D19: 2 | E19: 7 | F19: 2 | G19: Rua Jataí | H19: - | I19: ILUMATIC ILP -450 | J19: LP-4 PC-Lâmp.100 | K19: PHILIPS PLUS PIA | L19: Concreto CEEE | M19: IP-B3 | O19: NÃO ATENDE | P19: ATENDE | Q19: NÃO ATENDE | R19: 6.5 | S19: 1.5 | T19: 1.5 | U19: 0 | V19: V5 | W19: 8.17999997 | X19: 5 | Y19: 0.0122249391 | Z19: 0.2 | AA19: - | AB19: - | AC19: 7.7 | AD19: 33 | AE19: 1 | AF19: Unilateral | AG19: 100 | AH19: 14 | AI19: 0 | AJ19: 0 | AK19: 0.3 | AL19: 2.04 | AM19: 2.34 | AN19: 0° | AO19: - | AP19: 8.1 | AQ19: 0.52 | AR19: - | AS19: - | AT19: ATENDE | AU19: ATENDE | AV19: ATENDE | AW19: ATENDE | AX19: - | AY19: - | AZ19: - | BE19: 1.5 | BF19: P4 | BG19: 6.3 | BH19: 0.42 | BI19: 3 | BJ19: 0.2 | BK19: ATENDE | BL19: ATENDE | BM19: ATENDE | BN19: 1.5 | BO19: P4 | BP19: 6.1 | BQ19: 0.76 | BR19: 3 | BS19: 0.2 | BT19: ATENDE | BU19: ATENDE | BV19: ATENDE | BW19: L1 | BX19: L1-38 | BZ19: 1 | CA19: 38 | CB19: 0 | CC19: 4471 | CD19: - | CJ19: Asfalto CIE N3 | CK19: 114 | CL19: 0 | CM19: 114 | CN19: 38 | CO19: 0 | CP19: 38
B20: 5 | C20: 5 | D20: 2 | E20: 8 | F20: 4 | G20: Rua Orfanotrófio | H20: - | I20: ILUMATIC ILP -450 | J20: LP-3 VP-Lâmp.150 | K20: PHILIPS PLUS PIA | L20: Concreto CEEE | M20: IP-B3 | N20: Possui ponto próximo com IP-B6 | O20: NÃO ATENDE | P20: ATENDE | Q20: NÃO ATENDE | R20: 9 | S20: 3 | T20: 4 | U20: 0 | V20: V4 | W20: 16.24222239 | X20: 10 | Y20: 0.06772472371 | Z20: 0.2 | AA20: - | AB20: - | AC20: 7.7 | AD20: 38 | AE20: 1 | AF20: Bilateral Alternada | AG20: 150 | AH20: 18 | AI20: 0 | AJ20: 0 | AK20: 0.3 | AL20: 2.04 | AM20: 2.34 | AN20: 0° | AO20: - | AP20: 12.89 | AQ20: 0.68 | AR20: - | AS20: - | AT20: ATENDE | AU20: ATENDE | AV20: ATENDE | AW20: ATENDE | AX20: - | AY20: - | AZ20: - | BE20: 3 | BF20: P4 | BG20: 6.74 | BH20: 0.44 | BI20: 3 | BJ20: 0.2 | BK20: ATENDE | BL20: ATENDE | BM20: ATENDE | BN20: 4 | BO20: P4 | BP20: 5.81 | BQ20: 0.35 | BR20: 3 | BS20: 0.2 | BT20: ATENDE | BU20: ATENDE | BV20: ATENDE | BW20: L1 | BX20: L1-38 | BZ20: 1 | CA20: 38 | CB20: 0 | CC20: 4471 | CD20: - | CJ20: Asfalto CIE N3 | CK20: 168 | CL20: 0 | CM20: 168 | CN20: 38 | CO20: 0 | CP20: 38
B21: 6 | C21: 6 | D21: 2 | E21: 5 | F21: 5 | G21: Rua África do Sul | H21: ok | I21: Opalo | J21: LP-4 PC-Lâmp.70 | K21: SUPER 4Y | L21: Concreto CEEE | M21: IP-B7 | O21: ATENDE | P21: ATENDE | Q21: ATENDE | R21: 4.6 | S21: 3 | T21: 1.5 | U21: 0 | V21: V5 | W21: 5.064444436 | X21: 5 | Y21: 0.2369460293 | Z21: 0.2 | AA21: - | AB21: - | AC21: 7.1 | AD21: 32 | AE21: 1 | AF21: Unilateral | AG21: 70 | AH21: 12 | AI21: 0 | AJ21: 0 | AK21: 3 | AL21: -1.42 | AM21: 1.58 | AN21: 10° | AO21: - | AP21: 7.86 | AQ21: 0.67 | AR21: - | AS21: - | AT21: ATENDE | AU21: ATENDE | AV21: ATENDE | AW21: ATENDE | AX21: - | AY21: - | AZ21: - | BE21: 3 | BF21: P4 | BG21: 8.9 | BH21: 0.36 | BI21: 3 | BJ21: 0.2 | BK21: ATENDE | BL21: ATENDE | BM21: ATENDE | BN21: 1.5 | BO21: P4 | BP21: 5.21 | BQ21: 0.8 | BR21: 3 | BS21: 0.2 | BT21: ATENDE | BU21: ATENDE | BV21: ATENDE | BW21: L1 | BX21: L1-38 | BZ21: 1 | CA21: 38 | CB21: 0 | CC21: 4471 | CD21: - | CJ21: Asfalto CIE N3 | CK21: 82 | CL21: 0 | CM21: 82 | CN21: 38 | CO21: 0 | CP21: 38
B22: 7 | C22: 7 | D22: 2 | E22: 10 | F22: 1 | G22: Av Deputado Adão Pretto | H22: - | J22: LP-4 PC-Lâmp.100 | K22: SUPER 4Y | L22: Concreto CEEE | M22: IP-B7 | N22: Não consta informação de braço | O22: NÃO ATENDE | P22: NÃO ATENDE | Q22: NÃO ATENDE | R22: 7 | S22: 2.5 | T22: 2.3 | U22: 0 | V22: V3 | W22: 5.977777761 | X22: 15 | Y22: 0.06691449932 | Z22: 0.2 | AA22: 1 | AB22: 0.4 | AC22: 7.1 | AD22: 37 | AE22: 1 | AF22: Unilateral | AG22: 100 | AH22: 14 | AI22: 0 | AJ22: 0 | AK22: 0.3 | AL22: 1.28 | AM22: 1.58 | AN22: 10° | AO22: - | AP22: 21.1 | AQ22: 0.31 | AR22: 1.45 | AS22: 0.41 | AT22: ATENDE | AU22: ATENDE | AV22: ATENDE | AW22: ATENDE | AX22: ATENDE | AY22: ATENDE | AZ22: ATENDE | BE22: 2.5 | BF22: P3 | BG22: 13.23 | BH22: 0.41 | BI22: 5 | BJ22: 0.2 | BK22: ATENDE | BL22: ATENDE | BM22: ATENDE | BN22: 2.3 | BO22: P3 | BP22: 12.07 | BQ22: 0.61 | BR22: 5 | BS22: 0.2 | BT22: ATENDE | BU22: ATENDE | BV22: ATENDE | BW22: L1 | BX22: L1-38 | BZ22: 1 | CA22: 116 | CB22: 0 | CC22: 12300 | CD22: - | CH22: 0° | CJ22: Asfalto CIE N3 | CK22: 114 | CL22: 0 | CM22: 114 | CN22: 116 | CO22: 0 | CP22: 116
B23: 8 | C23: 8 | D23: 2 | E23: 7 | F23: 3 | G23: Rua Pedro Golombiewski | H23: ok | I23: Opalo | J23: LP-4 PC-Lâmp.100 | K23: SUPER 4Y | L23: Concreto CEEE | M23: IP-B2 | O23: NÃO ATENDE | P23: ATENDE | Q23: NÃO ATENDE | R23: 6.3 | S23: 2.2 | T23: 2 | U23: 0 | V23: V5 | W23: 7.91777781 | X23: 5 | Y23: 0.05051922592 | Z23: 0.2 | AA23: - | AB23: - | AC23: 7.8 | AD23: 38 | AE23: 1 | AF23: Unilateral | AG23: 100 | AH23: 14 | AI23: 0 | AJ23: 0 | AK23: 0.3 | AL23: 2.05 | AM23: 2.35 | AN23: 10° | AO23: - | AP23: 6.98 | AQ23: 0.39 | AR23: - | AS23: - | AT23: ATENDE | AU23: ATENDE | AV23: ATENDE | AW23: ATENDE | AX23: - | AY23: - | AZ23: - | BE23: 2.2 | BF23: P4 | BG23: 4.99 | BH23: 0.27 | BI23: 3 | BJ23: 0.2 | BK23: ATENDE | BL23: ATENDE | BM23: ATENDE | BN23: 2 | BO23: P4 | BP23: 5.25 | BQ23: 0.61 | BR23: 3 | BS23: 0.2 | BT23: ATENDE | BU23: ATENDE | BV23: ATENDE | BW23: L1 | BX23: L1-38 | BZ23: 1 | CA23: 38 | CB23: 0 | CC23: 4471 | CD23: - | CH23: 0° | CJ23: Asfalto CIE N3 | CK23: 114 | CL23: 0 | CM23: 114 | CN23: 38 | CO23: 0 | CP23: 38
B24: 9 | C24: 9 | D24: 2 | E24: 10 | F24: 2 | G24: Estrada Antônio Borges | H24: - | I24: ILUMATIC ILP -450 | J24: LP-3 PC-Lâmp.150 | K24: PHILIPS PLUS PIA | L24: Concreto CEEE | M24: IP-B3 | O24: NÃO ATENDE | P24: ATENDE | Q24: NÃO ATENDE | R24: 6 | S24: 1.5 | T24: 1.5 | U24: 0 | V24: V3 | W24: 19.29333337 | X24: 15 | Y24: 0.04664823641 | Z24: 0.2 | AA24: 1 | AB24: 0.4 | AC24: 7.7 | AD24: 36 | AE24: 1 | AF24: Unilateral | AG24: 100 | AH24: 14 | AI24: 0 | AJ24: 0 | AK24: 0.3 | AL24: 2.04 | AM24: 2.34 | AN24: 0° | AO24: - | AP24: 20.44 | AQ24: 0.33 | AR24: 1.49 | AS24: 0.42 | AT24: ATENDE | AU24: ATENDE | AV24: ATENDE | AW24: ATENDE | AX24: ATENDE | AY24: ATENDE | AZ24: ATENDE | BE24: 1.5 | BF24: P3 | BG24: 12.44 | BH24: 0.49 | BI24: 5 | BJ24: 0.2 | BK24: ATENDE | BL24: ATENDE | BM24: ATENDE | BN24: 1.5 | BO24: P3 | BP24: 18.29 | BQ24: 0.58 | BR24: 5 | BS24: 0.2 | BT24: ATENDE | BU24: ATENDE | BV24: ATENDE | BW24: L1 | BX24: L1-116 | BZ24: 1 | CA24: 116 | CB24: 0 | CC24: 12300 | CD24: - | CJ24: Asfalto CIE N3 | CK24: 114 | CL24: 0 | CM24: 114 | CN24: 116 | CO24: 0 | CP24: 116
B25: 10 | C25: 10 | D25: 2 | E25: 0 | F25: 2 | G25: Av. Professor Oscar Pereira | H25: ok | I25: Ametista 3 | J25: LP-1 VP-Lâmp.250 | K25: PHILIPS PLUS PIA | L25: Concreto CEEE | M25: IP-B2 | O25: ATENDE | P25: ATENDE | Q25: ATENDE | R25: 8.5 | S25: 1.5 | T25: - | U25: 0 | V25: V2 | W25: 20.227 | X25: 20 | Y25: 0.3016 | Z25: 0.3 | AA25: 1.5 | AB25: 0.4 | AC25: 7.8 | AD25: 34 | AE25: 1 | AF25: Unilateral | AG25: 250 | AH25: 24 | AI25: 0 | AJ25: 0 | AK25: 0.3 | AL25: 2.05 | AM25: 2.35 | AN25: 10° | AO25: - | AP25: 23.46 | AQ25: 0.41 | AR25: 1.59 | AS25: 0.46 | AT25: ATENDE | AU25: ATENDE | AV25: ATENDE | AW25: ATENDE | AX25: ATENDE | AY25: ATENDE | AZ25: ATENDE | BE25: 1.5 | BF25: P2 | BG25: 13.75 | BH25: 0.56 | BI25: 10 | BJ25: 0.25 | BK25: ATENDE | BL25: ATENDE | BM25: ATENDE | BN25: - | BO25: - | BP25: - | BQ25: - | BR25: - | BS25: - | BT25: - | BU25: - | BV25: - | BW25: L1 | BX25: L1-116 | BZ25: 1 | CA25: 148 | CB25: 0 | CC25: 15462 | CD25: - | CJ25: Asfalto CIE N3 | CK25: 274 | CL25: 0 | CM25: 274 | CN25: 148 | CO25: 0 | CP25: 148
B26: 11 | C26: 11 | D26: 2 | E26: 8 | F26: 2 | G26: Rua Capitão José Padilha | H26: ok | I26: Opalo | J26: LP-4 PC-Lâmp.100 | K26: SUPER 4Y | L26: Concreto CEEE | M26: IP-B7 | O26: NÃO ATENDE | P26: NÃO ATENDE | Q26: NÃO ATENDE | R26: 10 | S26: 2 | T26: 2.2 | U26: 0 | V26: V4 | W26: 7.377777733 | X26: 10 | Y26: 0.09487951704 | Z26: 0.2 | AA26: - | AB26: - | AC26: 7.1 | AD26: 35 | AE26: 1 | AF26: Unilateral | AG26: 100 | AH26: 14 | AI26: 0 | AJ26: 0 | AK26: 0.3 | AL26: 1.28 | AM26: 1.58 | AN26: 10° | AO26: - | AP26: 10.06 | AQ26: 0.43 | AR26: - | AS26: - | AT26: ATENDE | AU26: ATENDE | AV26: ATENDE | AW26: ATENDE | AX26: - | AY26: - | AZ26: - | BE26: 2 | BF26: P4 | BG26: 6.92 | BH26: 0.53 | BI26: 3 | BJ26: 0.2 | BK26: ATENDE | BL26: ATENDE | BM26: ATENDE | BN26: 2.2 | BO26: P4 | BP26: 4.5 | BQ26: 0.83 | BR26: 3 | BS26: 0.2 | BT26: ATENDE | BU26: ATENDE | BV26: ATENDE | BW26: L1 | BX26: L1-116 | BZ26: 1 | CA26: 62 | CB26: 0 | CC26: 6688 | CD26: - | CJ26: Asfalto CIE N3 | CK26: 114 | CL26: 0 | CM26: 114 | CN26: 62 | CO26: 0 | CP26: 62
B27: 12 | C27: 12 | D27: 2 | E27: 5 | F27: 1 | G27: Rua Otávio de Faria | H27: - | I27: Indalux | J27: LP-3 PC-Lâmp.150 | K27: PHILIPS PLUS PIA | L27: Concreto CEEE | M27: IP-B2 | O27: NÃO ATENDE | P27: ATENDE | Q27: NÃO ATENDE | R27: 7 | S27: 2.5 | T27: 2.5 | U27: 0 | V27: V5 | W27: 8.94666661 | X27: 5 | Y27: 0.08941877984 | Z27: 0.2 | AA27: - | AB27: - | AC27: 7.8 | AD27: 35 | AE27: 1 | AF27: Unilateral | AG27: 150 | AH27: 18 | AI27: 0 | AJ27: 0 | AK27: 0.3 | AL27: 2.05 | AM27: 2.35 | AN27: 10° | AO27: - | AP27: 7.09 | AQ27: 0.36 | AR27: - | AS27: - | AT27: ATENDE | AU27: ATENDE | AV27: ATENDE | AW27: ATENDE | AX27: - | AY27: - | AZ27: - | BE27: 2.5 | BF27: P4 | BG27: 3.48 | BH27: 0.2 | BI27: 3 | BJ27: 0.2 | BK27: ATENDE | BL27: ATENDE | BM27: ATENDE | BN27: 2.5 | BO27: P4 | BP27: 5.23 | BQ27: 0.76 | BR27: 3 | BS27: 0.2 | BT27: ATENDE | BU27: ATENDE | BV27: ATENDE | BW27: L1 | BX27: L1-116 | BZ27: 1 | CA27: 38 | CB27: 0 | CC27: 4471 | CD27: - | CJ27: Asfalto CIE N3 | CK27: 168 | CL27: 0 | CM27: 168 | CN27: 38 | CO27: 0 | CP27: 38
B28: 13 | C28: 13 | D28: 2 | E28: 4 | F28: 3 | G28: Rua Dona Otília | H28: - | I28: Indalux | J28: LP-3 PC-Lâmp.150 | K28: PHILIPS PLUS PIA | L28: Concreto CEEE | M28: IP-B3 | O28: NÃO ATENDE | P28: ATENDE | Q28: NÃO ATENDE | R28: 8 | S28: 3.4 | T28: 4.7 | U28: 0 | V28: V5 | W28: 8.011111063 | X28: 5 | Y28: 0.01248266323 | Z28: 0.2 | AA28: - | AB28: - | AC28: 7.7 | AD28: 33 | AE28: 1 | AF28: Unilateral | AG28: 150 | AH28: 18 | AI28: 0 | AJ28: 0 | AK28: 1.7 | AL28: 0.64 | AM28: 2.34 | AN28: 0° | AO28: - | AP28: 7.12 | AQ28: 0.61 | AR28: - | AS28: - | AT28: ATENDE | AU28: ATENDE | AV28: ATENDE | AW28: ATENDE | AX28: - | AY28: - | AZ28: - | BE28: 3.4 | BF28: P4 | BG28: 5.28 | BH28: 0.22 | BI28: 3 | BJ28: 0.2 | BK28: ATENDE | BL28: ATENDE | BM28: ATENDE | BN28: 4.7 | BO28: P4 | BP28: 3.01 | BQ28: 0.59 | BR28: 3 | BS28: 0.2 | BT28: ATENDE | BU28: ATENDE | BV28: ATENDE | BW28: L1 | BX28: L1-116 | BZ28: 1 | CA28: 38 | CB28: 0 | CC28: 4471 | CD28: - | CH28: 10° | CJ28: Asfalto CIE N3 | CK28: 168 | CL28: 0 | CM28: 168 | CN28: 38 | CO28: 0 | CP28: 38
B29: 14 | C29: 14 | D29: 2 | E29: 4 | F29: 4 | G29: Rua Januário Scazilli | H29: - | I29: ILUMATIC ILP -450 | J29: LP-3 VP-Lâmp.150 | K29: PHILIPS PLUS PIA | L29: Concreto CEEE | M29: IP-B2 | N29: Possui ponto próximo com IP-B5 | O29: NÃO ATENDE | P29: ATENDE | Q29: NÃO ATENDE | R29: 9 | S29: 2.8 | T29: 3 | U29: 0 | V29: V5 | W29: 19.48444458 | X29: 5 | Y29: 0.02566149617 | Z29: 0.2 | AA29: - | AB29: - | AC29: 7.8 | AD29: 34 | AE29: 1 | AF29: Unilateral | AG29: 150 | AH29: 18 | AI29: 0 | AJ29: 0 | AK29: 0.3 | AL29: 2.05 | AM29: 2.35 | AN29: 10° | AO29: - | AP29: 7.08 | AQ29: 0.5 | AR29: - | AS29: - | AT29: ATENDE | AU29: ATENDE | AV29: ATENDE | AW29: ATENDE | AX29: - | AY29: - | AZ29: - | BE29: 2.8 | BF29: P4 | BG29: 4.32 | BH29: 0.24 | BI29: 3 | BJ29: 0.2 | BK29: ATENDE | BL29: ATENDE | BM29: ATENDE | BN29: 3 | BO29: P4 | BP29: 3.31 | BQ29: 0.66 | BR29: 3 | BS29: 0.2 | BT29: ATENDE | BU29: ATENDE | BV29: ATENDE | BW29: L1 | BX29: L1-116 | BZ29: 1 | CA29: 38 | CB29: 0 | CC29: 4471 | CD29: - | CH29: 5° | CJ29: Asfalto CIE N3 | CK29: 168 | CL29: 0 | CM29: 168 | CN29: 38 | CO29: 0 | CP29: 38
B30: 15 | C30: 15 | D30: 2 | E30: 8 | F30: 3 | G30: Rua João do Rio | H30: ok | I30: Opalo | J30: LP-4 PC-Lâmp.100 | K30: SUPER 4Y | L30: Concreto CEEE | M30: IP-B7 | O30: NÃO ATENDE | P30: NÃO ATENDE | Q30: NÃO ATENDE | R30: 8.8 | S30: 4 | T30: 4 | U30: 0 | V30: V4 | W30: 3.880000042 | X30: 10 | Y30: 0.07731958987 | Z30: 0.2 | AA30: - | AB30: - | AC30: 7.1 | AD30: 32 | AE30: 1 | AF30: Unilateral | AG30: 100 | AH30: 14 | AI30: 0 | AJ30: 0 | AK30: 0.3 | AL30: 1.28 | AM30: 1.58 | AN30: 10° | AO30: - | AP30: 11.59 | AQ30: 0.47 | AR30: - | AS30: - | AT30: ATENDE | AU30: ATENDE | AV30: ATENDE | AW30: ATENDE | AX30: - | AY30: - | AZ30: - | BE30: 4 | BF30: P4 | BG30: 5.83 | BH30: 0.41 | BI30: 3 | BJ30: 0.2 | BK30: ATENDE | BL30: ATENDE | BM30: ATENDE | BN30: 4 | BO30: P4 | BP30: 5.23 | BQ30: 0.72 | BR30: 3 | BS30: 0.2 | BT30: ATENDE | BU30: ATENDE | BV30: ATENDE | BW30: L1 | BX30: L1-116 | BZ30: 1 | CA30: 62 | CB30: 0 | CC30: 6688 | CD30: - | CJ30: Asfalto CIE N3 | CK30: 114 | CL30: 0 | CM30: 114 | CN30: 62 | CO30: 0 | CP30: 62
B31: 16 | C31: 16 | D31: 2 | E31: 3 | F31: 5 | G31: Rua Paulino Chaves | H31: ok | I31: Tecnowatt Beta | J31: LP-2 VP-Lâmp.150 | K31: PHILIPS PLUS PIA | L31: Concreto CEEE | M31: IP-B2 | O31: NÃO ATENDE | P31: ATENDE | Q31: NÃO ATENDE | R31: 7 | S31: 3.8 | T31: 2.6 | U31: 0 | V31: V4 | W31: 14.96666685 | X31: 10 | Y31: 0.05345211594 | Z31: 0.2 | AA31: - | AB31: - | AC31: 7.8 | AD31: 30 | AE31: 1 | AF31: Unilateral | AG31: 150 | AH31: 18 | AI31: 0 | AJ31: 0 | AK31: 0.3 | AL31: 2.05 | AM31: 2.35 | AN31: 10° | AO31: - | AP31: 11.83 | AQ31: 0.48 | AR31: - | AS31: - | AT31: ATENDE | AU31: ATENDE | AV31: ATENDE | AW31: ATENDE | AX31: - | AY31: - | AZ31: - | BE31: 3.8 | BF31: P4 | BG31: 5.14 | BH31: 0.44 | BI31: 3 | BJ31: 0.2 | BK31: ATENDE | BL31: ATENDE | BM31: ATENDE | BN31: 2.6 | BO31: P4 | BP31: 9.93 | BQ31: 0.65 | BR31: 3 | BS31: 0.2 | BT31: ATENDE | BU31: ATENDE | BV31: ATENDE | BW31: L1 | BX31: L1-116 | BZ31: 1 | CA31: 62 | CB31: 0 | CC31: 6688 | CD31: - | CJ31: Asfalto CIE N3 | CK31: 168 | CL31: 0 | CM31: 168 | CN31: 62 | CO31: 0 | CP31: 62
B32: 17 | C32: 17 | D32: 2 | E32: 9 | F32: 2 | G32: Rua Tenente Alpoim | H32: ok | I32: TECNOWATT IEP Alpha | J32: LP-3 VP-Lâmp.150 | K32: PHILIPS PLUS PIA | L32: Concreto CEEE | M32: IP-B3 | O32: NÃO ATENDE | P32: ATENDE | Q32: NÃO ATENDE | R32: 9 | S32: 3.8 | T32: 4 | U32: 0 | V32: V4 | W32: 15.54666688 | X32: 10 | Y32: 0.07075471752 | Z32: 0.2 | AA32: - | AB32: - | AC32: 7.7 | AD32: 29 | AE32: 1 | AF32: Unilateral | AG32: 150 | AH32: 18 | AI32: 0 | AJ32: 0 | AK32: 0.3 | AL32: 2.04 | AM32: 2.34 | AN32: 0° | AO32: - | AP32: 12.96 | AQ32: 0.45 | AR32: - | AS32: - | AT32: ATENDE | AU32: ATENDE | AV32: ATENDE | AW32: ATENDE | AX32: - | AY32: - | AZ32: - | BE32: 3.8 | BF32: P4 | BG32: 6.86 | BH32: 0.61 | BI32: 3 | BJ32: 0.2 | BK32: ATENDE | BL32: ATENDE | BM32: ATENDE | BN32: 4 | BO32: P4 | BP32: 5.21 | BQ32: 0.53 | BR32: 3 | BS32: 0.2 | BT32: ATENDE | BU32: ATENDE | BV32: ATENDE | BW32: L1 | BX32: L1-116 | BZ32: 1 | CA32: 62 | CB32: 0 | CC32: 6688 | CD32: - | CJ32: Asfalto CIE N3 | CK32: 168 | CL32: 0 | CM32: 168 | CN32: 62 | CO32: 0 | CP32: 62
B33: 18 | C33: 18 | D33: 2 | E33: 12 | F33: 5 | G33: Rua Ernesto Araújo | H33: ok | I33: Opalo | J33: LP-4 PC-Lâmp.100 | K33: SUPER 4Y | L33: Concreto CEEE | M33: IP-B3 | O33: NÃO ATENDE | P33: NÃO ATENDE | Q33: NÃO ATENDE | R33: 7.5 | S33: 2 | T33: 1.8 | U33: 0 | V33: V4 | W33: 8.375555524 | X33: 10 | Y33: 0.02387901345 | Z33: 0.2 | AA33: - | AB33: - | AC33: 7.7 | AD33: 37 | AE33: 1 | AF33: Unilateral | AG33: 100 | AH33: 14 | AI33: 0 | AJ33: 0 | AK33: 0.3 | AL33: 2.04 | AM33: 2.34 | AN33: 0° | AO33: - | AP33: 10.7 | AQ33: 0.37 | AR33: - | AS33: - | AT33: ATENDE | AU33: ATENDE | AV33: ATENDE | AW33: ATENDE | AX33: - | AY33: - | AZ33: - | BE33: 2 | BF33: P4 | BG33: 6.43 | BH33: 0.52 | BI33: 3 | BJ33: 0.2 | BK33: ATENDE | BL33: ATENDE | BM33: ATENDE | BN33: 1.8 | BO33: P4 | BP33: 7.18 | BQ33: 0.7 | BR33: 3 | BS33: 0.2 | BT33: ATENDE | BU33: ATENDE | BV33: ATENDE | BW33: L1 | BX33: L1-116 | BZ33: 1 | CA33: 62 | CB33: 0 | CC33: 6688 | CD33: - | CJ33: Asfalto CIE N3 | CK33: 114 | CL33: 0 | CM33: 114 | CN33: 62 | CO33: 0 | CP33: 62
B34: 19 | C34: 19 | D34: 2 | E34: 8 | F34: 5 | G34: Rua Primeiro de Março | H34: - | I34: Indalux | J34: LP-3 VP-Lâmp.150 | K34: PHILIPS PLUS PIA | L34: Concreto CEEE | M34: IP-B3 | N34: Inspeção local: 1,6m de projeção; IP-B3: projeção de 2,5 m | O34: NÃO ATENDE | P34: NÃO ATENDE | Q34: NÃO ATENDE | R34: 7 | S34: 4.5 | T34: 4 | U34: 0 | V34: V4 | W34: 9.648888922 | X34: 10 | Y34: 0.06218332792 | Z34: 0.2 | AA34: - | AB34: - | AC34: 7.7 | AD34: 47 | AE34: 1 | AF34: Unilateral | AG34: 150 | AH34: 18 | AI34: 0 | AJ34: 0 | AK34: 2 | AL34: 0.34 | AM34: 2.34 | AN34: 0° | AO34: - | AP34: 10.06 | AQ34: 0.22 | AR34: - | AS34: - | AT34: ATENDE | AU34: ATENDE | AV34: ATENDE | AW34: ATENDE | AX34: - | AY34: - | AZ34: - | BE34: 4.5 | BF34: P4 | BG34: 6.38 | BH34: 0.26 | BI34: 3 | BJ34: 0.2 | BK34: ATENDE | BL34: ATENDE | BM34: ATENDE | BN34: 4 | BO34: P4 | BP34: 4.57 | BQ34: 0.44 | BR34: 3 | BS34: 0.2 | BT34: ATENDE | BU34: ATENDE | BV34: ATENDE | BW34: L1 | BX34: L1-116 | BZ34: 1 | CA34: 77 | CB34: 0 | CC34: 8022 | CD34: - | CJ34: Asfalto CIE N3 | CK34: 168 | CL34: 0 | CM34: 168 | CN34: 77 | CO34: 0 | CP34: 77
B35: 20 | C35: 20 | D35: 2 | E35: 12 | F35: 7 | G35: Rua Waldomiro Schapke | H35: ok | I35: TECNOWATT IEP Alpha | J35: LP-3 VP-Lâmp.150 | K35: PHILIPS PLUS PIA | L35: Concreto CEEE | M35: IP-B3 | N35: Inspeção local: 1,5m de projeção; IP-B3: projeção de 2,5 m | O35: NÃO ATENDE | P35: ATENDE | Q35: NÃO ATENDE | R35: 8.5 | S35: 3 | T35: 3.3 | U35: 0 | V35: V5 | W35: 13.89777778 | X35: 5 | Y35: 0.05036776376 | Z35: 0.2 | AA35: - | AB35: - | AC35: 7.7 | AD35: 36 | AE35: 1 | AF35: Unilateral | AG35: 150 | AH35: 18 | AI35: 0 | AJ35: 0 | AK35: 0.3 | AL35: 2.04 | AM35: 2.34 | AN35: 0° | AO35: - | AP35: 6.87 | AQ35: 0.42 | AR35: - | AS35: - | AT35: ATENDE | AU35: ATENDE | AV35: ATENDE | AW35: ATENDE | AX35: - | AY35: - | AZ35: - | BE35: 3 | BF35: P4 | BG35: 3.94 | BH35: 0.2 | BI35: 3 | BJ35: 0.2 | BK35: ATENDE | BL35: ATENDE | BM35: ATENDE | BN35: 3.3 | BO35: P4 | BP35: 3.36 | BQ35: 0.63 | BR35: 3 | BS35: 0.2 | BT35: ATENDE | BU35: ATENDE | BV35: ATENDE | BW35: L1 | BX35: L1-116 | BZ35: 1 | CA35: 38 | CB35: 0 | CC35: 4471 | CD35: - | CH35: 5° | CJ35: Asfalto CIE N3 | CK35: 168 | CL35: 0 | CM35: 168 | CN35: 38 | CO35: 0 | CP35: 38
B36: 21 | C36: 21 | D36: 2 | E36: 4 | F36: 2 | G36: Rua Nunes Machado | H36: ok | I36: Ametista 3 | J36: LP-2 VP-Lâmp.150 | K36: PHILIPS PLUS PIA | L36: Concreto CEEE | M36: IP-B1 | O36: NÃO ATENDE | P36: ATENDE | Q36: NÃO ATENDE | R36: 8 | S36: 4.4 | T36: 4.4 | U36: 0 | V36: V5 | W36: 6.468888959 | X36: 5 | Y36: 0.03091721071 | Z36: 0.2 | AA36: - | AB36: - | AC36: 8.3 | AD36: 40 | AE36: 1 | AF36: Unilateral | AG36: 150 | AH36: 18 | AI36: 0 | AJ36: 0 | AK36: 0.3 | AL36: 2.7 | AM36: 3 | AN36: 10° | AO36: - | AP36: 8.15 | AQ36: 0.39 | AR36: - | AS36: - | AT36: ATENDE | AU36: ATENDE | AV36: ATENDE | AW36: ATENDE | AX36: - | AY36: - | AZ36: - | BE36: 4.4 | BF36: P4 | BG36: 3.01 | BH36: 0.36 | BI36: 3 | BJ36: 0.2 | BK36: ATENDE | BL36: ATENDE | BM36: ATENDE | BN36: 4.4 | BO36: P4 | BP36: 6.2 | BQ36: 0.65 | BR36: 3 | BS36: 0.2 | BT36: ATENDE | BU36: ATENDE | BV36: ATENDE | BW36: L1 | BX36: L1-116 | BZ36: 1 | CA36: 62 | CB36: 0 | CC36: 6688 | CD36: - | CJ36: Asfalto CIE N3 | CK36: 168 | CL36: 0 | CM36: 168 | CN36: 62 | CO36: 0 | CP36: 62
B37: 22 | C37: 22 | D37: 2 | E37: 5 | F37: 6 | G37: Rua Coronel André Belo | H37: ok | I37: Ametista 3 | J37: LP-2 VP-Lâmp.150 | K37: PHILIPS PLUS PIA | L37: Concreto CEEE | M37: IP-B1 | O37: NÃO ATENDE | P37: ATENDE | Q37: NÃO ATENDE | R37: 8.5 | S37: 4 | T37: 3 | U37: 0 | V37: V5 | W37: 15.71111123 | X37: 5 | Y37: 0.02545968902 | Z37: 0.2 | AA37: - | AB37: - | AC37: 8.3 | AD37: 26 | AE37: 1 | AF37: Unilateral | AG37: 150 | AH37: 18 | AI37: 0 | AJ37: 0 | AK37: 0.3 | AL37: 2.7 | AM37: 3 | AN37: 10° | AO37: - | AP37: 7.1 | AQ37: 0.49 | AR37: - | AS37: - | AT37: ATENDE | AU37: ATENDE | AV37: ATENDE | AW37: ATENDE | AX37: - | AY37: - | AZ37: - | BE37: 4 | BF37: P4 | BG37: 4.35 | BH37: 0.35 | BI37: 3 | BJ37: 0.2 | BK37: ATENDE | BL37: ATENDE | BM37: ATENDE | BN37: 3 | BO37: P4 | BP37: 5.38 | BQ37: 0.73 | BR37: 3 | BS37: 0.2 | BT37: ATENDE | BU37: ATENDE | BV37: ATENDE | BW37: L1 | BX37: L1-116 | BZ37: 1 | CA37: 38 | CB37: 0 | CC37: 4471 | CD37: - | CH37: 0° | CI37: Canteiro de grama de 1m entre Passeio 2 e Via | CJ37: Asfalto CIE N3 | CK37: 168 | CL37: 0 | CM37: 168 | CN37: 38 | CO37: 0 | CP37: 38
B38: 23 | C38: 23 | D38: 2 | E38: 12 | F38: 3 | G38: Rua Alberto Torres | H38: ok | I38: Ametista 3 | J38: LP-2 VP-Lâmp.150 | K38: PHILIPS PLUS PIA | L38: Concreto CEEE | M38: IP-B2 | O38: ATENDE | P38: ATENDE | Q38: ATENDE | R38: 9 | S38: 2.2 | T38: 1.5 | U38: 0 | V38: V5 | W38: 18.67333333 | X38: 5 | Y38: 0.2624062835 | Z38: 0.2 | AA38: - | AB38: - | AC38: 7.8 | AD38: 26 | AE38: 1 | AF38: Unilateral | AG38: 150 | AH38: 18 | AI38: 0 | AJ38: 0 | AK38: 0.3 | AL38: 2.05 | AM38: 2.35 | AN38: 10° | AO38: - | AP38: 9.09 | AQ38: 0.66 | AR38: - | AS38: - | AT38: ATENDE | AU38: ATENDE | AV38: ATENDE | AW38: ATENDE | AX38: - | AY38: - | AZ38: - | BE38: =S38 -> 2.2 | BF38: P4 | BG38: 4.96 | BH38: 0.39 | BI38: 3 | BJ38: 0.2 | BK38: ATENDE | BL38: ATENDE | BM38: ATENDE | BN38: =T38 -> 1.5 | BO38: P4 | BP38: 5.59 | BQ38: 0.86 | BR38: 3 | BS38: 0.2 | BT38: ATENDE | BU38: ATENDE | BV38: ATENDE | BW38: L1 | BX38: L1-116 | BZ38: 1 | CA38: 38 | CB38: 0 | CC38: 4471 | CD38: - | CJ38: Asfalto CIE N3 | CK38: 168 | CL38: 0 | CM38: 168 | CN38: 38 | CO38: 0 | CP38: 38
B39: 24 | C39: 24 | D39: 2 | E39: 12 | F39: 2 | G39: Rua Tomas Flores | H39: ok | I39: Ametista 3 | J39: LP-2 VP-Lâmp.150 | K39: PHILIPS PLUS PIA | L39: Ferro CEEE | M39: IP-B1 | O39: NÃO ATENDE | P39: ATENDE | Q39: NÃO ATENDE | R39: 8.6 | S39: 4.4 | T39: 4.4 | U39: 0 | V39: V4 | W39: 16.20444454 | X39: 10 | Y39: 0.06171146426 | Z39: 0.2 | AA39: - | AB39: - | AC39: 8.3 | AD39: 33 | AE39: 1 | AF39: Unilateral | AG39: 150 | AH39: 18 | AI39: 0 | AJ39: 0 | AK39: 0.3 | AL39: 2.7 | AM39: 3 | AN39: 10° | AO39: - | AP39: 11.58 | AQ39: 0.51 | AR39: - | AS39: - | AT39: ATENDE | AU39: ATENDE | AV39: ATENDE | AW39: ATENDE | AX39: - | AY39: - | AZ39: - | BE39: =S39 -> 4.4 | BF39: P4 | BG39: 3.7 | BH39: 0.36 | BI39: 3 | BJ39: 0.2 | BK39: ATENDE | BL39: ATENDE | BM39: ATENDE | BN39: 4.4 | BO39: P4 | BP39: 8.52 | BQ39: 0.63 | BR39: 3 | BS39: 0.2 | BT39: ATENDE | BU39: ATENDE | BV39: ATENDE | BW39: L1 | BX39: L1-116 | BZ39: 1 | CA39: 77 | CB39: 0 | CC39: 8022 | CD39: - | CJ39: Asfalto CIE N3 | CK39: 168 | CL39: 0 | CM39: 168 | CN39: 77 | CO39: 0 | CP39: 77
B40: 25 | C40: 25 | D40: 2 | E40: 8 | F40: 1 | G40: Rua Alfredo Ferreira Rodrigues | H40: ok | I40: Opalo | J40: LP-4 PC-Lâmp.100 | K40: SUPER 4Y | L40: Concreto CEEE | M40: IP-B3 | N40: Possui ponto próximo com IP-B6 | O40: NÃO ATENDE | P40: ATENDE | Q40: NÃO ATENDE | R40: 6.1 | S40: 4.3 | T40: 4 | U40: 0 | V40: V5 | W40: 6.04000002 | X40: 5 | Y40: 0.1490066181 | Z40: 0.2 | AA40: - | AB40: - | AC40: 7.7 | AD40: 28 | AE40: 1 | AF40: Unilateral | AG40: 100 | AH40: 14 | AI40: 0 | AJ40: 0 | AK40: 1.5 | AL40: 0.84 | AM40: 2.34 | AN40: 0° | AO40: - | AP40: 9.09 | AQ40: 0.68 | AR40: - | AS40: - | AT40: ATENDE | AU40: ATENDE | AV40: ATENDE | AW40: ATENDE | AX40: - | AY40: - | AZ40: - | BE40: 4.3 | BF40: P4 | BG40: 5.03 | BH40: 0.22 | BI40: 3 | BJ40: 0.2 | BK40: ATENDE | BL40: ATENDE | BM40: ATENDE | BN40: 4 | BO40: P4 | BP40: 5.6 | BQ40: 0.73 | BR40: 3 | BS40: 0.2 | BT40: ATENDE | BU40: ATENDE | BV40: ATENDE | BW40: L1 | BX40: L1-116 | BZ40: 1 | CA40: 38 | CB40: 0 | CC40: 4471 | CD40: - | CJ40: Asfalto CIE N3 | CK40: 114 | CL40: 0 | CM40: 114 | CN40: 38 | CO40: 0 | CP40: 38
B41: 26 | C41: 26 | D41: 2 | E41: 7 | F41: 1 | G41: Rua Sérgio Porto | H41: ok | I41: Opalo | J41: LP-4 PC-Lâmp.100 | K41: SUPER 4Y | L41: Concreto CEEE | M41: IP-B3 | O41: NÃO ATENDE | P41: ATENDE | Q41: NÃO ATENDE | R41: 5 | S41: 1 | T41: 1.3 | U41: 0 | V41: V5 | W41: 8.877777841 | X41: 5 | Y41: 0.1126408002 | Z41: 0.2 | AA41: - | AB41: - | AC41: 7.7 | AD41: 42 | AE41: 1 | AF41: Unilateral | AG41: 100 | AH41: 14 | AI41: 0 | AJ41: 0 | AK41: 0.3 | AL41: 2.04 | AM41: 2.34 | AN41: 0° | AO41: - | AP41: 6.51 | AQ41: 0.28 | AR41: - | AS41: - | AT41: ATENDE | AU41: ATENDE | AV41: ATENDE | AW41: ATENDE | AX41: - | AY41: - | AZ41: - | BE41: =S41 -> 1 | BF41: P4 | BG41: 5.23 | BH41: 0.24 | BI41: 3 | BJ41: 0.2 | BK41: ATENDE | BL41: ATENDE | BM41: ATENDE | BN41: 1.3 | BO41: P4 | BP41: 5.98 | BQ41: 0.46 | BR41: 3 | BS41: 0.2 | BT41: ATENDE | BU41: ATENDE | BV41: ATENDE | BW41: L1 | BX41: L1-116 | BZ41: 1 | CA41: 38 | CB41: 0 | CC41: 4471 | CD41: - | CJ41: Asfalto CIE N3 | CK41: 114 | CL41: 0 | CM41: 114 | CN41: 38 | CO41: 0 | CP41: 38
B42: 27 | C42: 27 | D42: 2 | E42: 3 | F42: 2 | G42: Rua Nossa Senhora Aparecida | H42: ok | I42: Tecnowatt Beta | J42: LP-2 VP-Lâmp.150 | K42: PHILIPS PLUS PIA | L42: Concreto CEEE | M42: IP-B2 | O42: NÃO ATENDE | P42: ATENDE | Q42: NÃO ATENDE | R42: 5.2 | S42: - | T42: - | U42: 0 | V42: V5 | W42: 9.204444351 | X42: 5 | Y42: 0.08691453621 | Z42: 0.2 | AA42: - | AB42: - | AC42: 7.8 | AD42: 32 | AE42: 1 | AF42: Unilateral | AG42: 150 | AH42: 18 | AI42: 0 | AJ42: 0 | AK42: 0.3 | AL42: 2.05 | AM42: 2.35 | AN42: 10° | AO42: - | AP42: 7.9 | AQ42: 0.4 | AR42: - | AS42: - | AT42: ATENDE | AU42: ATENDE | AV42: ATENDE | AW42: ATENDE | AX42: - | AY42: - | AZ42: - | BE42: - | BF42: - | BG42: - | BH42: - | BI42: - | BJ42: - | BK42: - | BL42: - | BM42: - | BN42: - | BO42: - | BP42: - | BQ42: - | BR42: - | BS42: - | BT42: - | BU42: - | BV42: - | BW42: L1 | BX42: L1-116 | BZ42: 1 | CA42: 38 | CB42: 0 | CC42: 4471 | CD42: - | CJ42: Asfalto CIE N3 | CK42: 168 | CL42: 0 | CM42: 168 | CN42: 38 | CO42: 0 | CP42: 38
B43: 28 | C43: 28 | D43: 2 | E43: 7 | F43: 4 | G43: Rua Gioconda | H43: ok | I43: TECNOWATT IEP Alpha | J43: LP-4 VP-Lâmp.100 | K43: SUPER 4Y | L43: Concreto CEEE | M43: IP-B3 | O43: ATENDE | P43: ATENDE | Q43: ATENDE | R43: 6.7 | S43: 1.6 | T43: 3.6 | U43: 0 | V43: V5 | W43: 10.73333332 | X43: 5 | Y43: 0.2236024848 | Z43: 0.2 | AA43: - | AB43: - | AC43: 7.7 | AD43: 28 | AE43: 1 | AF43: Unilateral | AG43: 100 | AH43: 14 | AI43: 0 | AJ43: 0 | AK43: 0.5 | AL43: 1.84 | AM43: 2.34 | AN43: 0° | AO43: - | AP43: 9.04 | AQ43: 0.56 | AR43: - | AS43: - | AT43: ATENDE | AU43: ATENDE | AV43: ATENDE | AW43: ATENDE | AX43: - | AY43: - | AZ43: - | BE43: 1.6 | BF43: P4 | BG43: 5.64 | BH43: 0.41 | BI43: 3 | BJ43: 0.2 | BK43: ATENDE | BL43: ATENDE | BM43: ATENDE | BN43: 3.6 | BO43: P4 | BP43: 6.13 | BQ43: 0.76 | BR43: 3 | BS43: 0.2 | BT43: ATENDE | BU43: ATENDE | BV43: ATENDE | BW43: L1 | BX43: L1-116 | BZ43: 1 | CA43: 38 | CB43: 0 | CC43: 4471 | CD43: - | CH43: 10° | CJ43: Asfalto CIE N3 | CK43: 114 | CL43: 0 | CM43: 114 | CN43: 38 | CO43: 0 | CP43: 38
B44: 29 | C44: 29 | D44: 2 | E44: 3 | F44: 4 | G44: Rua Ariovaldo Pinheiro | H44: - | I44: ILUMATIC ILP -450 | J44: LP-3 VP-Lâmp.150 | K44: PHILIPS PLUS PIA | L44: Concreto CEEE | M44: IP-B3 | O44: NÃO ATENDE | P44: ATENDE | Q44: NÃO ATENDE | R44: 7 | S44: 1 | T44: 1.5 | U44: 0 | V44: V5 | W44: 19.55555541 | X44: 5 | Y44: 0.02045454591 | Z44: 0.2 | AA44: - | AB44: - | AC44: 7.7 | AD44: 37 | AE44: 1 | AF44: Unilateral | AG44: 150 | AH44: 18 | AI44: 0 | AJ44: 0 | AK44: 0.3 | AL44: 2.04 | AM44: 2.34 | AN44: 0° | AO44: - | AP44: 6.78 | AQ44: 0.3 | AR44: - | AS44: - | AT44: ATENDE | AU44: ATENDE | AV44: ATENDE | AW44: ATENDE | AX44: - | AY44: - | AZ44: - | BE44: 1 | BF44: P4 | BG44: 4.43 | BH44: 0.24 | BI44: 3 | BJ44: 0.2 | BK44: ATENDE | BL44: ATENDE | BM44: ATENDE | BN44: 2 | BO44: P4 | BP44: 3.09 | BQ44: 0.75 | BR44: 3 | BS44: 0.2 | BT44: ATENDE | BU44: ATENDE | BV44: ATENDE | BW44: L1 | BX44: L1-116 | BZ44: 1 | CA44: 38 | CB44: 0 | CC44: 4471 | CD44: - | CH44: 10° | CI44: Canteiro de grama de 3m entre via-passeio 2 | CJ44: Asfalto CIE N3 | CK44: 168 | CL44: 0 | CM44: 168 | CN44: 38 | CO44: 0 | CP44: 38
B45: 30 | C45: 30 | D45: 2 | E45: 6 | F45: 1 | G45: Rua Seberi | H45: ok | I45: Opalo | J45: LP-4 PC-Lâmp.70 | K45: SUPER 4Y | L45: Concreto CEEE | M45: IP-B7 | O45: NÃO ATENDE | P45: NÃO ATENDE | Q45: NÃO ATENDE | R45: 7 | S45: 1.6 | T45: 3 | U45: 0 | V45: V5 | W45: 3.124444466 | X45: 5 | Y45: 0.09601707285 | Z45: 0.2 | AA45: - | AB45: - | AC45: 7.1 | AD45: 36 | AE45: 1 | AF45: Unilateral | AG45: 70 | AH45: 12 | AI45: 0 | AJ45: 0 | AK45: 0.3 | AL45: 1.28 | AM45: 1.58 | AN45: 10° | AO45: - | AP45: 7.64 | AQ45: 0.44 | AR45: - | AS45: - | AT45: ATENDE | AU45: ATENDE | AV45: ATENDE | AW45: ATENDE | AX45: - | AY45: - | AZ45: - | BE45: 1.6 | BF45: P4 | BG45: 6.97 | BH45: 0.29 | BI45: 3 | BJ45: 0.2 | BK45: ATENDE | BL45: ATENDE | BM45: ATENDE | BN45: =T45 -> 3 | BO45: P4 | BP45: 3.21 | BQ45: 0.5 | BR45: 3 | BS45: 0.2 | BT45: ATENDE | BU45: ATENDE | BV45: ATENDE | BW45: L1 | BX45: L1-116 | BZ45: 1 | CA45: 38 | CB45: 0 | CC45: 4471 | CD45: - | CH45: 0° | CJ45: Asfalto CIE N3 | CK45: 82 | CL45: 0 | CM45: 82 | CN45: 38 | CO45: 0 | CP45: 38
B46: 31 | C46: 31 | D46: 2 | E46: 12 | F46: 4 | G46: Rua Francisca Lechner | H46: ok | I46: Opalo | J46: LP-4 PC-Lâmp.100 | K46: SUPER 4Y | L46: Concreto CEEE | M46: IP-B3 | N46: Inspeção local: 1,5m de projeção; IP-B3: projeção de 2,5 m | O46: ATENDE | P46: ATENDE | Q46: ATENDE | R46: 7.5 | S46: 2.2 | T46: 2.2 | U46: 0 | V46: V5 | W46: 12.23777766 | X46: 5 | Y46: 0.2206282934 | Z46: 0.2 | AA46: - | AB46: - | AC46: 7.7 | AD46: 28 | AE46: 1 | AF46: Unilateral | AG46: 100 | AH46: 14 | AI46: 0 | AJ46: 0 | AK46: 0.3 | AL46: 2.04 | AM46: 2.34 | AN46: 0° | AO46: - | AP46: 5.02 | AQ46: 0.66 | AR46: - | AS46: - | AT46: ATENDE | AU46: ATENDE | AV46: ATENDE | AW46: ATENDE | AX46: - | AY46: - | AZ46: - | BE46: 2.2 | BF46: P4 | BG46: 3.49 | BH46: 0.46 | BI46: 3 | BJ46: 0.2 | BK46: ATENDE | BL46: ATENDE | BM46: ATENDE | BN46: 2.2 | BO46: P4 | BP46: 3.09 | BQ46: 0.76 | BR46: 3 | BS46: 0.2 | BT46: ATENDE | BU46: ATENDE | BV46: ATENDE | BW46: L1 | BX46: L1-116 | BZ46: 1 | CA46: 18 | CB46: 0 | CC46: 2431 | CD46: - | CH46: 2° | CJ46: Asfalto CIE N3 | CK46: 114 | CL46: 0 | CM46: 114 | CN46: 18 | CO46: 0 | CP46: 18
B47: 32 | C47: 32 | D47: 2 | E47: 5 | F47: 3 | G47: Rua Cristóvão Jaques | H47: - | I47: Indalux | J47: LP-3 VP-Lâmp.150 | K47: PHILIPS PLUS PIA | L47: Concreto CEEE | M47: IP-B3 | N47: Inspeção local: 1,8m de projeção; IP-B3: projeção de 2,5 m | O47: NÃO ATENDE | P47: ATENDE | Q47: NÃO ATENDE | R47: 7 | S47: 1.5 | T47: 2 | U47: 0 | V47: V5 | W47: 6.659999977 | X47: 5 | Y47: 0.03003003058 | Z47: 0.2 | AA47: - | AB47: - | AC47: 7.7 | AD47: 30 | AE47: 1 | AF47: Unilateral | AG47: 150 | AH47: 18 | AI47: 0 | AJ47: 0 | AK47: 0.3 | AL47: 2.04 | AM47: 2.34 | AN47: 0° | AO47: - | AP47: 8.79 | AQ47: 0.61 | AR47: - | AS47: - | AT47: ATENDE | AU47: ATENDE | AV47: ATENDE | AW47: ATENDE | AX47: - | AY47: - | AZ47: - | BE47: 1.5 | BF47: P4 | BG47: 6.93 | BH47: 0.5 | BI47: 3 | BJ47: 0.2 | BK47: ATENDE | BL47: ATENDE | BM47: ATENDE | BN47: 2 | BO47: P4 | BP47: 5.82 | BQ47: 0.75 | BR47: 3 | BS47: 0.2 | BT47: ATENDE | BU47: ATENDE | BV47: ATENDE | BW47: L1 | BX47: L1-116 | BZ47: 1 | CA47: 38 | CB47: 0 | CC47: 4471 | CD47: - | CJ47: Asfalto CIE N3 | CK47: 168 | CL47: 0 | CM47: 168 | CN47: 38 | CO47: 0 | CP47: 38
B48: 33 | C48: 33 | D48: 2 | E48: 6 | F48: 5 | G48: Rua Lila Ripoll | H48: ok | I48: TECNOWATT IEP Alpha | J48: LP-4 VP-Lâmp.100 | K48: SUPER 4Y | L48: Concreto CEEE | M48: IP-B3 | N48: Inspeção local: 1,5m de projeção; IP-B3: projeção de 2,5 m | O48: NÃO ATENDE | P48: ATENDE | Q48: NÃO ATENDE | R48: 7 | S48: 2.4 | T48: 2.8 | U48: 0 | V48: V5 | W48: 8.657777755 | X48: 5 | Y48: 0.03465092549 | Z48: 0.2 | AA48: - | AB48: - | AC48: 7.7 | AD48: 38 | AE48: 1 | AF48: Unilateral | AG48: 100 | AH48: 14 | AI48: 0 | AJ48: 0 | AK48: 0.3 | AL48: =AM48-AK48 -> 2.04 | AM48: 2.34 | AN48: 0° | AO48: - | AP48: 6.94 | AQ48: 0.39 | AR48: - | AS48: - | AT48: ATENDE | AU48: ATENDE | AV48: ATENDE | AW48: ATENDE | AX48: - | AY48: - | AZ48: - | BE48: 2.4 | BF48: P4 | BG48: 4.88 | BH48: 0.25 | BI48: 3 | BJ48: 0.2 | BK48: ATENDE | BL48: ATENDE | BM48: ATENDE | BN48: 2.8 | BO48: P4 | BP48: 4.19 | BQ48: 0.56 | BR48: 3 | BS48: 0.2 | BT48: ATENDE | BU48: ATENDE | BV48: ATENDE | BW48: L1 | BX48: L1-116 | BZ48: 1 | CA48: 38 | CB48: 0 | CC48: 4471 | CD48: - | CJ48: Asfalto CIE N3 | CK48: 114 | CL48: 0 | CM48: 114 | CN48: 38 | CO48: 0 | CP48: 38
B49: 34 | C49: 34 | D49: 2 | E49: 6 | F49: 2 | G49: Rua Um | H49: ok | I49: Opalo | J49: LP-4 PC-Lâmp.70 | K49: SUPER 4Y | L49: Concreto CEEE | M49: IP-B7 | N49: Não consta informação de poste; Reluz: IP-B3 e Inspeção: IP-B7 | O49: NÃO ATENDE | P49: ATENDE | Q49: NÃO ATENDE | R49: 8 | S49: 1 | T49: 1.5 | U49: 0 | V49: V5 | W49: 5.406666637 | X49: 5 | Y49: 0.07398273888 | Z49: 0.2 | AA49: - | AB49: - | AC49: 7.1 | AD49: 35 | AE49: 1 | AF49: Unilateral | AG49: 70 | AH49: 12 | AI49: 0 | AJ49: 0 | AK49: 0.3 | AL49: 1.28 | AM49: 1.58 | AN49: 10° | AO49: - | AP49: 7.34 | AQ49: 0.38 | AR49: - | AS49: - | AT49: ATENDE | AU49: ATENDE | AV49: ATENDE | AW49: ATENDE | AX49: - | AY49: - | AZ49: - | BE49: 1 | BF49: P4 | BG49: 6.19 | BH49: 0.24 | BI49: 3 | BJ49: 0.2 | BK49: ATENDE | BL49: ATENDE | BM49: ATENDE | BN49: 1.5 | BO49: P4 | BP49: 4.18 | BQ49: 0.77 | BR49: 3 | BS49: 0.2 | BT49: ATENDE | BU49: ATENDE | BV49: ATENDE | BW49: L1 | BX49: L1-116 | BZ49: 1 | CA49: 38 | CB49: 0 | CC49: 4471 | CD49: - | CJ49: Asfalto CIE N3 | CK49: 82 | CL49: 0 | CM49: 82 | CN49: 38 | CO49: 0 | CP49: 38
B50: 35 | C50: 35 | D50: 2 | E50: 12 | F50: 1 | G50: Avenida Polonia | H50: ok | I50: Ametista 3 | J50: LP-2 VP-Lâmp.150 | K50: PHILIPS PLUS PIA | L50: Concreto CEEE | M50: IP-B1 | O50: NÃO ATENDE | P50: NÃO ATENDE | Q50: NÃO ATENDE | R50: 8.5 | S50: 4 | T50: 4.4 | U50: 0 | V50: V3 | W50: 14 | X50: 15 | Y50: 0.02142857228 | Z50: 0.2 | AA50: 1 | AB50: 0.4 | AC50: 8.3 | AD50: 40 | AE50: 1 | AF50: Unilateral | AG50: 150 | AH50: 18 | AI50: 0 | AJ50: 0 | AK50: 0.3 | AL50: 2.7 | AM50: 3 | AN50: 10° | AO50: - | AP50: 15.28 | AQ50: 0.38 | AR50: 1.07 | AS50: 0.46 | AT50: ATENDE | AU50: ATENDE | AV50: ATENDE | AW50: ATENDE | AX50: ATENDE | AY50: ATENDE | AZ50: ATENDE | BE50: 4 | BF50: P3 | BG50: 7.48 | BH50: 0.53 | BI50: 5 | BJ50: 0.2 | BK50: ATENDE | BL50: ATENDE | BM50: ATENDE | BN50: 4.4 | BO50: P3 | BP50: 9.93 | BQ50: 0.68 | BR50: 5 | BS50: 0.2 | BT50: ATENDE | BU50: ATENDE | BV50: ATENDE | BW50: L1 | BX50: L1-116 | BZ50: 1 | CA50: 116 | CB50: 0 | CC50: 12300 | CD50: - | CE50: IP-B4 | CF50: 9.1 | CG50: 3 | CH50: 0° | CJ50: Asfalto CIE N3 | CK50: 168 | CL50: 0 | CM50: 168 | CN50: 116 | CO50: 0 | CP50: 116
B51: 36 | C51: 36 | D51: 2 | E51: 12 | F51: 6 | G51: Praça João Bergman | H51: ok | I51: TECNOWATT IEP Alpha | J51: LP-3 VP-Lâmp.150 | K51: PHILIPS PLUS PIA | L51: IP-PA10 | M51: IP-B3 | N51: Reluz: Núcleo para 4 luminárias; Inspeção: IP-B3 | O51: NÃO ATENDE | P51: ATENDE | Q51: NÃO ATENDE | R51: 7.7 | S51: 1 | T51: 2 | U51: 0 | V51: V5 | W51: 23.45111104 | X51: 5 | Y51: 0.01279257138 | Z51: 0.2 | AA51: - | AB51: - | AC51: 7.7 | AD51: 46 | AE51: 1 | AF51: Unilateral | AG51: 150 | AH51: 18 | AI51: 0 | AJ51: 0 | AK51: 0.3 | AL51: 2.04 | AM51: 2.34 | AN51: 0° | AO51: - | AP51: 8.56 | AQ51: 0.23 | AR51: - | AS51: - | AT51: ATENDE | AU51: ATENDE | AV51: ATENDE | AW51: ATENDE | AX51: - | AY51: - | AZ51: - | BE51: 1 | BF51: P4 | BG51: 5.65 | BH51: 0.32 | BI51: 3 | BJ51: 0.2 | BK51: ATENDE | BL51: ATENDE | BM51: ATENDE | BN51: 2 | BO51: P4 | BP51: 5.49 | BQ51: 0.4 | BR51: 3 | BS51: 0.2 | BT51: ATENDE | BU51: ATENDE | BV51: ATENDE | BW51: L1 | BX51: L1-116 | BZ51: 1 | CA51: 62 | CB51: 0 | CC51: 6688 | CD51: - | CJ51: Asfalto CIE N3 | CK51: 168 | CL51: 0 | CM51: 168 | CN51: 62 | CO51: 0 | CP51: 62
B52: 37 | C52: 37 | D52: 2 | E52: 10 | F52: 3 | G52: Avenida Edgar Pires de Castro | H52: ok | I52: Tecnowatt Beta | J52: LP-2 VP-Lâmp.150 | K52: PHILIPS PLUS PIA | L52: Concreto CEEE | M52: IP-B3 | N52: Possui ponto próximo com IP-B6 | O52: NÃO ATENDE | P52: NÃO ATENDE | Q52: NÃO ATENDE | R52: 6.5 | S52: 3 | T52: - | U52: 0 | V52: V2 | W52: 4.08 | X52: 20 | Y52: 0 | Z52: 0.3 | AA52: 1.5 | AB52: 0.4 | AC52: 7.7 | AD52: 35 | AE52: 1 | AF52: Unilateral | AG52: 150 | AH52: 18 | AI52: 0 | AJ52: 0 | AK52: 4.5 | AL52: -2.16 | AM52: 2.34 | AN52: 0° | AO52: - | AP52: 32.16 | AQ52: 0.5 | AR52: 1.99 | AS52: 0.48 | AT52: ATENDE | AU52: ATENDE | AV52: ATENDE | AW52: ATENDE | AX52: ATENDE | AY52: ATENDE | AZ52: ATENDE | BE52: 4 | BF52: P2 | BG52: 25.86 | BH52: 0.48 | BI52: 10 | BJ52: 0.25 | BK52: ATENDE | BL52: ATENDE | BM52: ATENDE | BN52: - | BO52: - | BP52: - | BQ52: - | BR52: - | BS52: - | BT52: - | BU52: - | BV52: - | BW52: L1 | BX52: L1-116 | BZ52: 1 | CA52: 181 | CB52: 0 | CC52: 20892 | CD52: - | CH52: 10° | CJ52: Asfalto CIE N3 | CK52: 168 | CL52: 0 | CM52: 168 | CN52: 181 | CO52: 0 | CP52: 181
B53: 38 | C53: 38 | D53: 2 | E53: 5 | F53: 4 | G53: Rua Alberto Hoffman | H53: ok | I53: TECNOWATT IEP Alpha | J53: LP-3 VP-Lâmp.150 | K53: PHILIPS PLUS PIA | L53: Concreto CEEE | M53: IP-B2 | N53: Inspeção local: 0,5m de projeção; IP-B2: projeção de 2,5 m | O53: NÃO ATENDE | P53: ATENDE | Q53: NÃO ATENDE | R53: 9.5 | S53: - | T53: 2 | U53: 2 | V53: V5 | W53: 14.10222222 | X53: 5 | Y53: 0.09927513394 | Z53: 0.2 | AA53: - | AB53: - | AC53: 7.8 | AD53: 28 | AE53: 1 | AF53: Unilateral | AG53: 150 | AH53: 18 | AI53: 0 | AJ53: 0 | AK53: 0.3 | AL53: 2.05 | AM53: 2.35 | AN53: 10° | AO53: - | AP53: 7.41 | AQ53: 0.63 | AR53: - | AS53: - | AT53: ATENDE | AU53: ATENDE | AV53: ATENDE | AW53: ATENDE | AX53: - | AY53: - | AZ53: - | BA53: 2 | BB53: C3 | BC53: 4.9 | BD53: 0.86 | BE53: =S53 -> - | BF53: - | BG53: - | BH53: - | BI53: - | BJ53: - | BK53: - | BL53: - | BM53: - | BN53: 2 | BO53: P4 | BP53: 3.33 | BQ53: 0.82 | BR53: 3 | BS53: 0.2 | BT53: ATENDE | BU53: ATENDE | BV53: ATENDE | BW53: L1 | BX53: L1-116 | BZ53: 1 | CA53: 38 | CB53: 0 | CC53: 4471 | CD53: - | CE53: IP-B4 | CF53: 9.1 | CG53: 3 | CH53: 10° | CI53: Canteiros de grama de 0,5m entre via e ciclovia; e ciclovia e passeio 2 | CJ53: Asfalto CIE N3 | CK53: 168 | CL53: 0 | CM53: 168 | CN53: 38 | CO53: 0 | CP53: 38
B54: 39 | C54: 39 | D54: 2 | E54: 3 | F54: 1 | G54: Rua Eustáquio Inácio | H54: ok | I54: TECNOWATT IEP Alpha | J54: LP-3 VP-Lâmp.150 | K54: PHILIPS PLUS PIA | L54: Concreto CEEE | M54: IP-B3 | O54: NÃO ATENDE | P54: ATENDE | Q54: NÃO ATENDE | R54: 5 | S54: 2.5 | T54: 2.5 | U54: 0 | V54: V4 | W54: 16.82222222 | X54: 10 | Y54: 0.09511228534 | Z54: 0.2 | AA54: - | AB54: - | AC54: 7.7 | AD54: 31 | AE54: 1 | AF54: Unilateral | AG54: 150 | AH54: 18 | AI54: 0 | AJ54: 0 | AK54: 2.6 | AL54: -0.26 | AM54: 2.34 | AN54: 0° | AO54: - | AP54: 13.69 | AQ54: 0.47 | AR54: - | AS54: - | AT54: ATENDE | AU54: ATENDE | AV54: ATENDE | AW54: ATENDE | AX54: - | AY54: - | AZ54: - | BE54: 2.8 | BF54: P4 | BG54: 10.66 | BH54: 0.5 | BI54: 3 | BJ54: 0.2 | BK54: ATENDE | BL54: ATENDE | BM54: ATENDE | BN54: 2.5 | BO54: P4 | BP54: 8.38 | BQ54: 0.8 | BR54: 3 | BS54: 0.2 | BT54: ATENDE | BU54: ATENDE | BV54: ATENDE | BW54: L1 | BX54: L1-116 | BZ54: 1 | CA54: 62 | CB54: 0 | CC54: 6688 | CD54: - | CJ54: Asfalto CIE N3 | CK54: 168 | CL54: 0 | CM54: 168 | CN54: 62 | CO54: 0 | CP54: 62
B55: 40 | C55: 40 | D55: 2 | E55: 6 | F55: 3 | G55: Rua Joffre Veríssimo | H55: ok | I55: TECNOWATT IEP Alpha | J55: LP-4 PC-Lâmp.70 | K55: SUPER 4Y | L55: Concreto CEEE | M55: IP-B7 | O55: NÃO ATENDE | P55: ATENDE | Q55: NÃO ATENDE | R55: 6 | S55: 1 | T55: - | U55: 0 | V55: V5 | W55: 5.131111111 | X55: 5 | Y55: 0.05846686877 | Z55: 0.2 | AA55: - | AB55: - | AC55: 7.1 | AD55: 35 | AE55: 1 | AF55: Unilateral | AG55: 70 | AH55: 12 | AI55: 0 | AJ55: 0 | AK55: 1 | AL55: 0.58 | AM55: 1.58 | AN55: 10° | AO55: - | AP55: 7.22 | AQ55: 0.5 | AR55: - | AS55: - | AT55: ATENDE | AU55: ATENDE | AV55: ATENDE | AW55: ATENDE | AX55: - | AY55: - | AZ55: - | BE55: =S55 -> 1 | BF55: P4 | BG55: 6.87 | BH55: 0.36 | BI55: 3 | BJ55: 0.2 | BK55: ATENDE | BL55: ATENDE | BM55: ATENDE | BN55: 1 | BO55: P4 | BP55: 5.46 | BQ55: 0.8 | BR55: 3 | BS55: 0.2 | BT55: ATENDE | BU55: ATENDE | BV55: ATENDE | BW55: L1 | BX55: L1-116 | BZ55: 1 | CA55: 38 | CB55: 0 | CC55: 4471 | CD55: - | CJ55: Asfalto CIE N3 | CK55: 82 | CL55: 0 | CM55: 82 | CN55: 38 | CO55: 0 | CP55: 38
B56: 41 | C56: 41 | D56: 2 | E56: 6 | F56: 4 | G56: Rua Dorival Castilho Machado | H56: ok | I56: TECNOWATT IEP Alpha | J56: LP-4 VP-Lâmp.100 | K56: SUPER 4Y | L56: Concreto CEEE | M56: IP-B7 | O56: NÃO ATENDE | P56: ATENDE | Q56: NÃO ATENDE | R56: 6.6 | S56: 1 | T56: 3.5 | U56: 0 | V56: V5 | W56: 6.468888889 | X56: 5 | Y56: 0.03091721058 | Z56: 0.2 | AA56: - | AB56: - | AC56: 7.1 | AD56: 33 | AE56: 1 | AF56: Unilateral | AG56: 100 | AH56: 14 | AI56: 0 | AJ56: 0 | AK56: 2.5 | AL56: -0.92 | AM56: 1.58 | AN56: 10° | AO56: - | AP56: 7.16 | AQ56: 0.59 | AR56: - | AS56: - | AT56: ATENDE | AU56: ATENDE | AV56: ATENDE | AW56: ATENDE | AX56: - | AY56: - | AZ56: - | BE56: 1 | BF56: P4 | BG56: 9.07 | BH56: 0.43 | BI56: 3 | BJ56: 0.2 | BK56: ATENDE | BL56: ATENDE | BM56: ATENDE | BN56: =T56 -> 3.5 | BO56: P4 | BP56: 3 | BQ56: 0.65 | BR56: 3 | BS56: 0.2 | BT56: ATENDE | BU56: ATENDE | BV56: ATENDE | BW56: L1 | BX56: L1-116 | BZ56: 1 | CA56: 38 | CB56: 0 | CC56: 4471 | CD56: - | CJ56: Asfalto CIE N3 | CK56: 114 | CL56: 0 | CM56: 114 | CN56: 38 | CO56: 0 | CP56: 38
B57: 42 | C57: 42 | D57: 2 | E57: 4 | F57: 1 | G57: Rua Guenoas | H57: ok | I57: TECNOWATT IEP Alpha | J57: LP-3 VP-Lâmp.150 | K57: PHILIPS PLUS PIA | L57: Concreto CEEE | M57: IP-B3 | O57: NÃO ATENDE | P57: ATENDE | Q57: NÃO ATENDE | R57: 7 | S57: 3.5 | T57: 3.5 | U57: 0 | V57: V5 | W57: 9.382222207 | X57: 5 | Y57: 0.02131691145 | Z57: 0.2 | AA57: - | AB57: - | AC57: 7.7 | AD57: 32 | AE57: 1 | AF57: Unilateral | AG57: 150 | AH57: 18 | AI57: 0 | AJ57: 0 | AK57: 0.3 | AL57: 2.04 | AM57: 2.34 | AN57: 0° | AO57: - | AP57: 8.24 | AQ57: 0.56 | AR57: - | AS57: - | AT57: ATENDE | AU57: ATENDE | AV57: ATENDE | AW57: ATENDE | AX57: - | AY57: - | AZ57: - | BE57: 3.5 | BF57: P4 | BG57: 4.96 | BH57: 0.3 | BI57: 3 | BJ57: 0.2 | BK57: ATENDE | BL57: ATENDE | BM57: ATENDE | BN57: 3.5 | BO57: P4 | BP57: 4.58 | BQ57: 0.6 | BR57: 3 | BS57: 0.2 | BT57: ATENDE | BU57: ATENDE | BV57: ATENDE | BW57: L1 | BX57: L1-116 | BZ57: 1 | CA57: 38 | CB57: 0 | CC57: 4471 | CD57: - | CJ57: Asfalto CIE N3 | CK57: 168 | CL57: 0 | CM57: 168 | CN57: 38 | CO57: 0 | CP57: 38
B58: 43 | C58: 43 | D58: 2 | E58: 3 | F58: 3 | G58: Rua Lemúria | H58: ok | I58: TECNOWATT IEP Alpha | J58: LP-3 VP-Lâmp.150 | K58: PHILIPS PLUS PIA | L58: Concreto CEEE | M58: IP-B3 | O58: NÃO ATENDE | P58: ATENDE | Q58: NÃO ATENDE | R58: 6 | S58: 2.5 | T58: 2 | U58: 0 | V58: V5 | W58: 11.65111111 | X58: 5 | Y58: 0.008582872401 | Z58: 0.2 | AA58: - | AB58: - | AC58: 7.7 | AD58: 45.5 | AE58: 1 | AF58: Unilateral | AG58: 150 | AH58: 18 | AI58: 0 | AJ58: 0 | AK58: 0.3 | AL58: 2.04 | AM58: 2.34 | AN58: 0° | AO58: - | AP58: 8.94 | AQ58: 0.23 | AR58: - | AS58: - | AT58: ATENDE | AU58: ATENDE | AV58: ATENDE | AW58: ATENDE | AX58: - | AY58: - | AZ58: - | BE58: 2.5 | BF58: P4 | BG58: 4.99 | BH58: 0.39 | BI58: 3 | BJ58: 0.2 | BK58: ATENDE | BL58: ATENDE | BM58: ATENDE | BN58: 2 | BO58: P4 | BP58: 7.44 | BQ58: 0.4 | BR58: 3 | BS58: 0.2 | BT58: ATENDE | BU58: ATENDE | BV58: ATENDE | BW58: L1 | BX58: L1-116 | BZ58: 1 | CA58: 62 | CB58: 0 | CC58: 6688 | CD58: - | CJ58: Asfalto CIE N3 | CK58: 168 | CL58: 0 | CM58: 168 | CN58: 62 | CO58: 0 | CP58: 62
B59: 44 | C59: 44 | D59: 2 | E59: 9 | F59: 1 | G59: Rua Dinarte Ribeiro | H59: ok | I59: Ametista 3 | J59: LP-2 VP-Lâmp.150 | K59: PHILIPS PLUS PIA | L59: Concreto CEEE | M59: IP-B1 e LP-D3 | N59: Possui dois circuitos de iluminação | O59: NÃO ATENDE | P59: ATENDE | Q59: NÃO ATENDE | R59: 9 | S59: 2.7 | T59: 4.9 | U59: 0 | V59: V4 | W59: 29.8644445 | X59: 10 | Y59: 0.05357541554 | Z59: 0.2 | AA59: - | AB59: - | AC59: 8,3 e 4 | AD59: 37 e 30 | AE59: 1 | AF59: Unilateral e Bilateral Alternada | AG59: 150 | AH59: 18 | AI59: 80 | AJ59: 0 | AK59: 0.3 | AL59: 2.7 | AM59: 3 | AN59: 10 e 0 | AO59: - | AP59: 23.87 | AQ59: 0.24 | AR59: - | AS59: - | AT59: ATENDE | AU59: ATENDE | AV59: ATENDE | AW59: ATENDE | AX59: - | AY59: - | AZ59: - | BE59: 2.7 | BF59: P4 | BG59: 18.26 | BH59: 0.31 | BI59: 3 | BJ59: 0.2 | BK59: ATENDE | BL59: ATENDE | BM59: ATENDE | BN59: 4.9 | BO59: P4 | BP59: 17.43 | BQ59: 0.29 | BR59: 3 | BS59: 0.2 | BT59: ATENDE | BU59: ATENDE | BV59: ATENDE | BW59: L1 | BX59: L1-116 | BY59: T-80-D | BZ59: 1 | CA59: 18 | CB59: 80 | CC59: 2431 | CD59: 6338 | CI59: IP Sec. (Bil. Alter.) distante de 20 m de IP Princ. | CJ59: Asfalto CIE N3 | CK59: 168 | CL59: 80 | CM59: 248 | CN59: 18 | CO59: 80 | CP59: 98
B60: 45 | C60: 45 | D60: 2 | E60: 0 | F60: 1 | G60: Rua Professor Cristiano Fisher | H60: ok | I60: Ametista 3 | J60: LP-1 VP-Lâmp.250 | K60: PHILIPS PLUS PIA | L60: Concreto CEEE | M60: IP-B1 | O60: NÃO ATENDE | P60: ATENDE | Q60: NÃO ATENDE | R60: 6.2 | S60: 4.6 | T60: 5 | U60: 0 | V60: V2 | W60: 31.83111106 | X60: 20 | Y60: 0.02513264492 | Z60: 0.3 | AA60: 1.5 | AB60: 0.4 | AC60: 8.3 | AD60: 46 | AE60: 1 | AF60: Unilateral | AG60: 250 | AH60: 24 | AI60: 0 | AJ60: 0 | AK60: 0.3 | AL60: 2.7 | AM60: 3 | AN60: 10° | AO60: - | AP60: 22.66 | AQ60: 0.35 | AR60: 1.79 | AS60: 0.39 | AT60: NÃO ATENDE | AU60: ATENDE | AV60: ATENDE | AW60: ATENDE | AX60: NÃO ATENDE | AY60: ATENDE | AZ60: ATENDIMENTO LIMIAR | BE60: 4.6 | BF60: P2 | BG60: 19.97 | BH60: 0.54 | BI60: 10 | BJ60: 0.25 | BK60: ATENDE | BL60: ATENDE | BM60: ATENDE | BN60: 5 | BO60: P2 | BP60: 10.26 | BQ60: 0.36 | BR60: 10 | BS60: 0.25 | BT60: ATENDE | BU60: ATENDE | BV60: ATENDE | BW60: L1 | BX60: L1-116 | BZ60: 1 | CA60: 181 | CB60: 0 | CC60: 20892 | CD60: - | CE60: IP-B4 | CF60: 9.1 | CG60: 3 | CH60: 0° | CJ60: Asfalto CIE N3 | CK60: 274 | CL60: 0 | CM60: 274 | CN60: 181 | CO60: 0 | CP60: 181
B61: 46 | C61: 46 | D61: 3 | E61: 11 | F61: 6 | G61: Rua Siqueira Campos | H61: OK(DIP) | I61: LED | J61: (não informado) | K61: (não informado) | L61: IP-PAC 8S | M61: IP-PAC | O61: ATENDE | P61: ATENDE | Q61: ATENDE | R61: 14 | S61: 2 | T61: 1.5 | U61: 0 | V61: V3 | W61: 54.59365079 | X61: 15 | Y61: 0.2289643542 | Z61: 0.2 | AA61: 1 | AB61: 0.4 | AC61: 8 | AD61: 23 | AE61: 1 | AF61: Unilateral | AG61: 100 | AH61: 0 | AI61: 0 | AJ61: 0 | AK61: 0.3 | AL61: 1.7 | AM61: 2 | AN61: 10° | AO61: - | AP61: 28.05 | AQ61: 0.46 | AR61: 1.75 | AS61: 0.34 | AT61: NÃO ATENDE | AU61: ATENDE | AV61: ATENDE | AW61: ATENDE | AX61: NÃO ATENDE | AY61: ATENDE | AZ61: NÃO ATENDE | BE61: 2 | BF61: P3 | BG61: 20.55 | BH61: 0.63 | BI61: 5 | BJ61: 0.2 | BK61: ATENDE | BL61: ATENDE | BM61: ATENDE | BN61: 1.5 | BO61: P3 | BP61: 10.32 | BQ61: 0.88 | BR61: 5 | BS61: 0.2 | BT61: ATENDE | BU61: ATENDE | BV61: ATENDE | BW61: L1 | BX61: L1-116 | BZ61: 1 | CA61: 148 | CB61: 0 | CC61: 15462 | CD61: - | CH61: 10° | CJ61: Asfalto CIE N3 | CK61: 100 | CL61: 0 | CM61: 100 | CN61: 148 | CO61: 0 | CP61: 148
B62: 47 | C62: 47 | D62: 3 | E62: 11 | F62: 4 | G62: Avenida da Legalidade e da Democracia | H62: OK(DIP) | I62: LED | J62: (não informado) | K62: (não informado) | L62: IP-PC 15 ou PA 15 | M62: (não informado) | N62: Reluz: IP-B7 (incoerente) | O62: NÃO ATENDE | P62: ATENDE | Q62: NÃO ATENDE | R62: 10 | S62: - | T62: - | U62: 0 | V62: V1 | W62: 40.4047619 | X62: 30 | Y62: 0.1856216853 | Z62: 0.4 | AA62: 2 | AB62: 0.4 | AC62: 12 | AD62: 30 | AE62: 1 | AF62: Unilateral | AG62: 210 | AH62: 0 | AI62: 0 | AJ62: 0 | AK62: 2.3 | AL62: -0.3 | AM62: 2 | AN62: 0° | AO62: - | AP62: 35.69 | AQ62: 0.58 | AR62: 2.26 | AS62: 0.45 | AT62: ATENDE | AU62: ATENDE | AV62: ATENDE | AW62: ATENDE | AX62: ATENDE | AY62: ATENDE | AZ62: ATENDE | BE62: - | BF62: - | BG62: - | BH62: - | BI62: - | BJ62: - | BK62: - | BL62: - | BM62: - | BN62: - | BO62: - | BP62: - | BQ62: - | BR62: - | BS62: - | BT62: - | BU62: - | BV62: - | BW62: L1 | BX62: L1-116 | BZ62: 1 | CA62: 265 | CB62: 0 | CC62: 28359 | CD62: - | CJ62: Asfalto CIE N3 | CK62: 210 | CL62: 0 | CM62: 210 | CN62: 265 | CO62: 0 | CP62: 265
B63: 48 | C63: 48 | D63: 3 | E63: 9 | F63: 4 | G63: Rua Dona Margarida | H63: ok | I63: Ametista 3 | J63: LP-2 VP-Lâmp.150 | K63: PHILIPS PLUS PIA | L63: Concreto CEEE | M63: IP-B1 | N63: Possui ponto próximo com IP-B4 | O63: NÃO ATENDE | P63: NÃO ATENDE | Q63: NÃO ATENDE | R63: 10 | S63: 2 | T63: 3 | U63: 0 | V63: V3 | W63: 12.84603175 | X63: 15 | Y63: 0.06227604102 | Z63: 0.2 | AA63: 1 | AB63: 0.4 | AC63: 8.3 | AD63: 38 | AE63: 1 | AF63: Unilateral | AG63: 150 | AH63: 18 | AI63: 0 | AJ63: 0 | AK63: 0.3 | AL63: 2.7 | AM63: 3 | AN63: 10° | AO63: - | AP63: 20.89 | AQ63: 0.37 | AR63: 1.4 | AS63: 0.41 | AT63: ATENDE | AU63: ATENDE | AV63: ATENDE | AW63: ATENDE | AX63: ATENDE | AY63: ATENDE | AZ63: ATENDE | BE63: 2 | BF63: P3 | BG63: 12.18 | BH63: 0.52 | BI63: 5 | BJ63: 0.2 | BK63: ATENDE | BL63: ATENDE | BM63: ATENDE | BN63: 3 | BO63: P3 | BP63: 10.94 | BQ63: 0.67 | BR63: 5 | BS63: 0.2 | BT63: ATENDE | BU63: ATENDE | BV63: ATENDE | BW63: L1 | BX63: L1-116 | BZ63: 1 | CA63: 148 | CB63: 0 | CC63: 15462 | CD63: - | CJ63: Asfalto CIE N3 | CK63: 168 | CL63: 0 | CM63: 168 | CN63: 148 | CO63: 0 | CP63: 148
B64: 49 | C64: 49 | D64: 3 | E64: 9 | F64: 5 | G64: Rua Garibaldi | H64: ok | I64: TECNOWATT IEP Alpha | J64: LP-3 VP-Lâmp.150 | K64: PHILIPS PLUS PIA | L64: Ferro CEEE | M64: IP-B1 | O64: NÃO ATENDE | P64: ATENDE | Q64: NÃO ATENDE | R64: 8 | S64: 2.8 | T64: 4 | U64: 0 | V64: V3 | W64: 18.63809524 | X64: 15 | Y64: 0.01609606541 | Z64: 0.2 | AA64: 1 | AB64: 0.4 | AC64: 8.3 | AD64: 34 | AE64: 1 | AF64: Unilateral | AG64: 150 | AH64: 18 | AI64: 0 | AJ64: 0 | AK64: 0.3 | AL64: 2.7 | AM64: 3 | AN64: 10° | AO64: - | AP64: 19.48 | AQ64: 0.43 | AR64: 1.36 | AS64: 0.48 | AT64: ATENDE | AU64: ATENDE | AV64: ATENDE | AW64: ATENDE | AX64: ATENDE | AY64: ATENDE | AZ64: ATENDE | BE64: 2.8 | BF64: P3 | BG64: 10.02 | BH64: 0.61 | BI64: 5 | BJ64: 0.2 | BK64: ATENDE | BL64: ATENDE | BM64: ATENDE | BN64: 4 | BO64: P3 | BP64: 12.81 | BQ64: 0.74 | BR64: 5 | BS64: 0.2 | BT64: ATENDE | BU64: ATENDE | BV64: ATENDE | BW64: L1 | BX64: L1-116 | BZ64: 1 | CA64: 116 | CB64: 0 | CC64: 12300 | CD64: - | CH64: 0° | CJ64: Asfalto CIE N3 | CK64: 168 | CL64: 0 | CM64: 168 | CN64: 116 | CO64: 0 | CP64: 116
B65: 50 | C65: 50 | D65: 3 | E65: 11 | F65: 1 | G65: Estrada Costa Gama | H65: - | I65: ILUMATIC ILP -450 | J65: LP-3 VP-Lâmp.150 | K65: PHILIPS PLUS PIA | L65: Concreto CEEE | M65: IP-B3 | N65: Possui ponto próximo com IP-B6 | O65: NÃO ATENDE | P65: NÃO ATENDE | Q65: NÃO ATENDE | R65: 12.8 | S65: 2 | T65: 1.8 | U65: 0 | V65: V2 | W65: 7.366666651 | X65: 20 | Y65: 0.1085972869 | Z65: 0.3 | AA65: 1.5 | AB65: 0.4 | AC65: 7.7 | AD65: 33 | AE65: 1 | AF65: Unilateral | AG65: 100 | AH65: 14 | AI65: 0 | AJ65: 0 | AK65: 0.3 | AL65: 2.04 | AM65: 2.34 | AN65: 0° | AO65: - | AP65: 27.9 | AQ65: 0.55 | AR65: 1.8 | AS65: 0.43 | AT65: ATENDE | AU65: ATENDE | AV65: ATENDE | AW65: ATENDE | AX65: ATENDE | AY65: ATENDE | AZ65: ATENDE | BE65: 2 | BF65: P2 | BG65: 15.4 | BH65: 0.55 | BI65: 10 | BJ65: 0.25 | BK65: ATENDE | BL65: ATENDE | BM65: ATENDE | BN65: 1.8 | BO65: P2 | BP65: 13.65 | BQ65: 0.86 | BR65: 10 | BS65: 0.25 | BT65: ATENDE | BU65: ATENDE | BV65: ATENDE | BW65: L1 | BX65: L1-181 | BZ65: 1 | CA65: 181 | CB65: 0 | CC65: 20892 | CD65: - | CE65: IP-B1 | CF65: 8.3 | CG65: 3 | CH65: 10° | CJ65: Asfalto CIE N3 | CK65: 114 | CL65: 0 | CM65: 114 | CN65: 181 | CO65: 0 | CP65: 181
B66: 51 | C66: 51 | D66: 4 | E66: 10 | F66: 4 | G66: Rua José de Alencar | H66: ok | I66: Ametista 3 | J66: LP-2 VP-Lâmp.150 | K66: PHILIPS PLUS PIA | L66: Concreto CEEE | M66: IP-B1 | O66: ATENDE | P66: ATENDE | Q66: ATENDE | R66: 14 | S66: 1.5 | T66: 3 | U66: 2x0,8 | V66: V2 | W66: 22.99259259 | X66: 20 | Y66: 0.3479381443 | Z66: 0.3 | AA66: 1.5 | AB66: 0.4 | AC66: 8.3 | AD66: 18 | AE66: 1 | AF66: Bilateral Alternada | AG66: 150 | AH66: 18 | AI66: 0 | AJ66: 0 | AK66: 1.1 | AL66: 1.9 | AM66: 3 | AN66: 10° | AO66: 0.8 | AP66: 34.14 | AQ66: 0.67 | AR66: 2.29 | AS66: 0.64 | AT66: ATENDE | AU66: ATENDE | AV66: ATENDE | AW66: ATENDE | AX66: ATENDE | AY66: ATENDE | AZ66: ATENDE | BA66: 2x0,8 | BB66: C2 | BC66: 22.83 | BD66: 0.82 | BE66: 3.5 | BF66: P2 | BG66: 15.17 | BH66: 0.62 | BI66: 10 | BJ66: 0.25 | BK66: ATENDE | BL66: ATENDE | BM66: ATENDE | BN66: 5.5 | BO66: P2 | BP66: 12.43 | BQ66: 0.47 | BR66: 10 | BS66: 0.25 | BT66: ATENDE | BU66: ATENDE | BV66: ATENDE | BW66: L1 | BX66: L1-62 | BZ66: 1 | CA66: 62 | CB66: 0 | CC66: 6688 | CD66: - | CJ66: Asfalto CIE N3 | CK66: 168 | CL66: 0 | CM66: 168 | CN66: 62 | CO66: 0 | CP66: 62
B67: 52 | C67: 52 | D67: 4 | E67: 10 | F67: 5 | G67: Avenida São Sebastião | H67: - | I67: Indalux | J67: LP-3 VP-Lâmp.150 | K67: PHILIPS PLUS PIA | L67: Concreto CEEE | M67: IP-B3 | O67: NÃO ATENDE | P67: NÃO ATENDE | Q67: NÃO ATENDE | R67: 19.5 | S67: 5.5 | T67: 4.5 | U67: 0 | V67: V2 | W67: 5.320987653 | X67: 20 | Y67: 0 | Z67: 0.3 | AA67: 1.5 | AB67: 0.4 | AC67: 7.7 | AD67: 38 | AE67: 2 | AF67: Canteiro Central | AG67: 150 | AH67: 18 | AI67: 0 | AJ67: 0 | AK67: 3 | AL67: -0.66 | AM67: 2.34 | AN67: 0° | AO67: 6 | AP67: 24.46 | AQ67: 0.52 | AR67: 1.62 | AS67: 0.42 | AT67: ATENDE | AU67: ATENDE | AV67: ATENDE | AW67: ATENDE | AX67: ATENDE | AY67: ATENDE | AZ67: ATENDE | BE67: 5.5 | BF67: P2 | BG67: 11.01 | BH67: 0.63 | BI67: 10 | BJ67: 0.25 | BK67: ATENDE | BL67: ATENDE | BM67: ATENDE | BN67: =T67 -> 4.5 | BO67: P2 | BP67: 11.9 | BQ67: 0.71 | BR67: 10 | BS67: 0.25 | BT67: ATENDE | BU67: ATENDE | BV67: ATENDE | BW67: L1 | BX67: L1-148 | BZ67: 2 | CA67: 148 | CB67: 0 | CC67: 15462 | CD67: - | CE67: IP-B1 | CF67: 8.3 | CG67: 3 | CH67: 5° | CJ67: Asfalto CIE N3 | CK67: 336 | CL67: 0 | CM67: 336 | CN67: 296 | CO67: 0 | CP67: 296
B68: 53 | C68: 53 | D68: 4 | E68: 0 | F68: 3 | G68: Rua Nestor Ludwig | H68: - | J68: (não informado) | K68: (não informado) | L68: Concreto CEEE | M68: IP-B4 + IP-B3 | N68: Não consta informação de poste/braço | O68: NÃO ATENDE | P68: NÃO ATENDE | Q68: NÃO ATENDE | R68: 12 | S68: 3 | T68: 3 | U68: 3 | V68: V3 | W68: 14.66172832 | X68: 15 | Y68: 0.1227686063 | Z68: 0.2 | AA68: 1 | AB68: 0.4 | AC68: 9,1 e 7,7 | AD68: 28 | AE68: 1 | AF68: Unilateral | AG68: 250 | AH68: 24 | AI68: 150 | AJ68: 18 | AK68: 0.3 | AL68: 2,7 e 2,04 | AM68: 3 e 2,34 | AN68: 10° e 0° | AO68: - | AP68: 16.92 | AQ68: 0.52 | AR68: 1.11 | AS68: 0.4 | AT68: ATENDE | AU68: ATENDE | AV68: ATENDE | AW68: ATENDE | AX68: ATENDE | AY68: ATENDE | AZ68: ATENDE | BA68: 3 | BB68: C3 | BC68: 12.82 | BD68: 0.7 | BE68: =S68 -> 3 | BF68: P3 | BG68: 8.97 | BH68: 0.79 | BI68: 5 | BJ68: 0.2 | BK68: ATENDE | BL68: ATENDE | BM68: ATENDE | BN68: 3 | BO68: P3 | BP68: 8.59 | BQ68: 0.69 | BR68: 5 | BS68: 0.2 | BT68: ATENDE | BU68: ATENDE | BV68: ATENDE | BW68: L1 | BX68: L1-94 | BY68: L1-18 | BZ68: 1 | CA68: 94 | CB68: 18 | CC68: 10531 | CD68: 2431 | CJ68: Asfalto CIE N3 | CK68: 274 | CL68: 168 | CM68: 442 | CN68: 94 | CO68: 18 | CP68: 112
B69: 54 | C69: 54 | D69: 4 | E69: 2 | F69: 3 | G69: Estrada João de Oliveira Remião | H69: ok | I69: Opalo | J69: LP-4 PC-Lâmp.100 | K69: SUPER 4Y | L69: IP- PA 12 | M69: Núcleo de 2 lum. (180°) | O69: NÃO ATENDE | P69: NÃO ATENDE | Q69: NÃO ATENDE | R69: 15.4 | S69: 3.5 | T69: - | U69: 0 | V69: V1 | W69: 20.8172839 | X69: 30 | Y69: 0.0480370064 | Z69: 0.4 | AA69: 2 | AB69: 0.4 | AC69: 12 | AD69: 29 | AE69: 2 | AF69: Canteiro Central | AG69: 250 | AH69: 24 | AI69: 0 | AJ69: 0 | AK69: 0.5 | AL69: =AM69-AK69 -> 0 | AM69: 0.5 | AN69: 0° | AO69: 1 | AP69: 34.14 | AQ69: 0.58 | AR69: 2.41 | AS69: 0.48 | AT69: ATENDE | AU69: ATENDE | AV69: ATENDE | AW69: ATENDE | AX69: ATENDE | AY69: ATENDE | AZ69: ATENDE | BE69: 3.5 | BF69: P2 | BG69: 20.55 | BH69: 0.71 | BI69: 10 | BJ69: 0.25 | BK69: ATENDE | BL69: ATENDE | BM69: ATENDE | BN69: - | BO69: - | BP69: - | BQ69: - | BR69: - | BS69: - | BT69: - | BU69: - | BV69: - | BW69: L1 | BX69: L1-94 | BZ69: 2 | CA69: 148 | CB69: 0 | CC69: 15462 | CD69: - | CJ69: Asfalto CIE N3 | CK69: 548 | CL69: 0 | CM69: 548 | CN69: 296 | CO69: 0 | CP69: 296
B70: 55 | C70: 55 | D70: 6 | E70: 10 | F70: 6 | G70: Avenida Adelino Ferreira Jardim | H70: ok | I70: Ametista 3 | J70: LP-2 VP-Lâmp.150 | K70: PHILIPS PLUS PIA | L70: Concreto CEEE | M70: IP-B2 | O70: NÃO ATENDE | P70: NÃO ATENDE | Q70: NÃO ATENDE | R70: 23 | S70: 2.5 | T70: 1.5 | U70: 0 | V70: V2 | W70: 17.5973913 | X70: 20 | Y70: 0.04546128379 | Z70: 0.3 | AA70: 1.5 | AB70: 0.4 | AC70: 7.8 | AD70: 31 | AE70: 2 | AF70: Canteiro Central | AG70: 150 | AH70: 18 | AI70: 0 | AJ70: 0 | AK70: 0.5 | AL70: 1.85 | AM70: 2.35 | AN70: 10° | AO70: 1 | AP70: 26.32 | AQ70: 0.51 | AR70: 1.7 | AS70: 0.44 | AT70: ATENDE | AU70: ATENDE | AV70: ATENDE | AW70: ATENDE | AX70: ATENDE | AY70: ATENDE | AZ70: ATENDE | BE70: 2.5 | BF70: P2 | BG70: 13.29 | BH70: 0.81 | BI70: 10 | BJ70: 0.25 | BK70: ATENDE | BL70: ATENDE | BM70: ATENDE | BN70: 1.5 | BO70: P2 | BP70: 14.29 | BQ70: 0.81 | BR70: 10 | BS70: 0.25 | BT70: ATENDE | BU70: ATENDE | BV70: ATENDE | BW70: L1 | BX70: L1-94 | BZ70: 2 | CA70: 148 | CB70: 0 | CC70: 15462 | CD70: - | CE70: IP-B1 | CF70: 8.3 | CG70: 3 | CH70: 10° | CJ70: Asfalto CIE N3 | CK70: 336 | CL70: 0 | CM70: 336 | CN70: 296 | CO70: 0 | CP70: 296
B71: 56 | C71: 56 | D71: 6 | E71: 0 | F71: 4 | G71: Avenida Plínio Brasil | H71: ok | I71: Ametista 3 | J71: LP-1 VP-Lâmp.250 | K71: PHILIPS PLUS PIA | L71: Concreto CEEE | M71: IP-B1 | N71: Possui ponto próximo com IP-B4 | O71: NÃO ATENDE | P71: NÃO ATENDE | Q71: NÃO ATENDE | R71: 22 | S71: 1.5 | T71: 2 | U71: 0 | V71: V1 | W71: 10.83846154 | X71: 30 | Y71: 0.009226401703 | Z71: 0.4 | AA71: 2 | AB71: 0.4 | AC71: 8.3 | AD71: 31 | AE71: 1 | AF71: Bilateral Frontal | AG71: 250 | AH71: 24 | AI71: 0 | AJ71: 0 | AK71: 0.3 | AL71: 2.7 | AM71: 3 | AN71: 10° | AO71: 2 | AP71: 41.31 | AQ71: 0.49 | AR71: 2.69 | AS71: 0.44 | AT71: ATENDE | AU71: ATENDE | AV71: ATENDE | AW71: ATENDE | AX71: ATENDE | AY71: ATENDE | AZ71: ATENDE | BE71: 1.5 | BF71: P2 | BG71: 19.51 | BH71: 0.67 | BI71: 10 | BJ71: 0.25 | BK71: ATENDE | BL71: ATENDE | BM71: ATENDE | BN71: 2 | BO71: P2 | BP71: 18.28 | BQ71: 0.63 | BR71: 10 | BS71: 0.25 | BT71: ATENDE | BU71: ATENDE | BV71: ATENDE | BW71: L1 | BX71: L1-94 | BZ71: 1 | CA71: 181 | CB71: 0 | CC71: 20892 | CD71: - | CJ71: Asfalto CIE N3 | CK71: 274 | CL71: 0 | CM71: 274 | CN71: 181 | CO71: 0 | CP71: 181
B72: 57 | C72: 57 | D72: 6 | E72: 11 | F72: 3 | G72: Avenida Bento Gonçalves | H72: ok | I72: Ametista 3 | J72: LP-2 VP-Lâmp.250 | K72: PHILIPS PLUS PIA | L72: Concreto CEEE | M72: IP-B1 | O72: NÃO ATENDE | P72: NÃO ATENDE | Q72: NÃO ATENDE | R72: 24 | S72: 3.4 | T72: 3.4 | U72: 0 | V72: V1 | W72: 22.08547009 | X72: 30 | Y72: 0.1086687307 | Z72: 0.4 | AA72: 2 | AB72: 0.4 | AC72: 8.3 | AD72: 32 | AE72: 1 | AF72: Bilateral Frontal | AG72: 250 | AH72: 24 | AI72: 0 | AJ72: 0 | AK72: 0.3 | AL72: 2.7 | AM72: 3 | AN72: 10° | AO72: 1.5 | AP72: 37.29 | AQ72: 0.51 | AR72: 2.4 | AS72: 0.42 | AT72: ATENDE | AU72: ATENDE | AV72: ATENDE | AW72: ATENDE | AX72: ATENDE | AY72: ATENDE | AZ72: ATENDE | BE72: 3.4 | BF72: P2 | BG72: 14.15 | BH72: 0.49 | BI72: 10 | BJ72: 0.25 | BK72: ATENDE | BL72: ATENDE | BM72: ATENDE | BN72: 3.4 | BO72: P2 | BP72: 14.15 | BQ72: 0.49 | BR72: 10 | BS72: 0.25 | BT72: ATENDE | BU72: ATENDE | BV72: ATENDE | BW72: L1 | BX72: L1-94 | BZ72: 1 | CA72: 181 | CB72: 0 | CC72: 20892 | CD72: - | CJ72: Asfalto CIE N3 | CK72: 274 | CL72: 0 | CM72: 274 | CN72: 181 | CO72: 0 | CP72: 181
B73: 58 | C73: 58 | D73: 6 | E73: 2 | F73: 1 | G73: Avenida Princesa Isabel | H73: - | I73: Ilumatic | J73: LP-7 VP-Lâmp.400 | K73: SUPER 4Y | L73: IP-PA 15 | M73: Núcleo de 2 lum. (180°) | O73: NÃO ATENDE | P73: NÃO ATENDE | Q73: NÃO ATENDE | R73: 22 | S73: 4.2 | T73: 2.2 | U73: 0 | V73: V1 | W73: 13.90940171 | X73: 30 | Y73: 0.02156814551 | Z73: 0.4 | AA73: 2 | AB73: 0.4 | AC73: 15 | AD73: 43 | AE73: 2 | AF73: Canteiro Central | AG73: 400 | AH73: 32 | AI73: 0 | AJ73: 0 | AK73: 0.75 | AL73: -0.25 | AM73: 0.5 | AN73: 0° | AO73: 1.5 | AP73: 32.02 | AQ73: 0.52 | AR73: 2.01 | AS73: 0.4 | AT73: ATENDE | AU73: ATENDE | AV73: ATENDE | AW73: ATENDE | AX73: ATENDE | AY73: ATENDE | AZ73: ATENDE | BE73: 4.2 | BF73: P2 | BG73: 17.17 | BH73: 0.73 | BI73: 10 | BJ73: 0.25 | BK73: ATENDE | BL73: ATENDE | BM73: ATENDE | BN73: 2.2 | BO73: P2 | BP73: 19.06 | BQ73: 0.74 | BR73: 10 | BS73: 0.25 | BT73: ATENDE | BU73: ATENDE | BV73: ATENDE | BW73: L1 | BX73: L1-94 | BZ73: 2 | CA73: 265 | CB73: 0 | CC73: 28359 | CD73: - | CJ73: Asfalto CIE N3 | CK73: 864 | CL73: 0 | CM73: 864 | CN73: 530 | CO73: 0 | CP73: 530
B74: 59 | C74: 59 | D74: 6 | E74: 2 | F74: 4 | G74: Avenida Protásio Alves | H74: ok | I74: Ametista 3 | J74: LP-1 VP-Lâmp.250 | K74: PHILIPS PLUS PIA | L74: Concreto CEEE | M74: IP-B2 | N74: Possui diversos pontos com IP-B1 do outro lado da avenida | O74: NÃO ATENDE | P74: NÃO ATENDE | Q74: NÃO ATENDE | R74: 23 | S74: 1.5 | T74: 1.5 | U74: 0 | V74: V1 | W74: 25.81538462 | X74: 30 | Y74: 0.02711561383 | Z74: 0.4 | AA74: 2 | AB74: 0.4 | AC74: 7.8 | AD74: 40 | AE74: 1 | AF74: Bilateral Frontal | AG74: 250 | AH74: 24 | AI74: 0 | AJ74: 0 | AK74: 0.3 | AL74: 2.05 | AM74: 2.35 | AN74: 10° | AO74: 1 | AP74: 33.71 | AQ74: 0.38 | AR74: 2.16 | AS74: 0.37 | AT74: NÃO ATENDE | AU74: NÃO ATENDE | AV74: ATENDE | AW74: ATENDIMENTO LIMIAR | AX74: NÃO ATENDE | AY74: ATENDE | AZ74: NÃO ATENDE | BE74: 1.5 | BF74: P2 | BG74: 18.34 | BH74: 0.6 | BI74: 10 | BJ74: 0.25 | BK74: ATENDE | BL74: ATENDE | BM74: ATENDE | BN74: 1.5 | BO74: P2 | BP74: 18.34 | BQ74: 0.6 | BR74: 10 | BS74: 0.25 | BT74: ATENDE | BU74: ATENDE | BV74: ATENDE | BW74: L1 | BX74: L1-94 | BZ74: 1 | CA74: 207 | CB74: 0 | CC74: 24057 | CD74: - | CE74: IP-B4 | CF74: 9.1 | CG74: 3 | CH74: 0° | CJ74: Asfalto CIE N3 | CK74: 274 | CL74: 0 | CM74: 274 | CN74: 207 | CO74: 0 | CP74: 207
B75: 60 | C75: 60 | D75: 6 | E75: 1 | F75: 1 | G75: Avenida Sertório, Ponto 1 | H75: - | I75: Ilumatic | J75: LP-7 VP-Lâmp.400 | K75: SUPER 4Y | L75: IP-PA 15 | M75: Núcleo de 2 lum. (180°) | O75: NÃO ATENDE | P75: NÃO ATENDE | Q75: NÃO ATENDE | R75: 23 | S75: 4.6 | T75: 3.9 | U75: 0 | V75: V1 | W75: 16.02393162 | X75: 30 | Y75: 0.01872199701 | Z75: 0.4 | AA75: 2 | AB75: 0.4 | AC75: 15 | AD75: 44 | AE75: 2 | AF75: Canteiro Central | AG75: 400 | AH75: 32 | AI75: 0 | AJ75: 0 | AK75: 1 | AL75: -0.4 | AM75: 0.6 | AN75: 0° | AO75: 2 | AP75: 30.61 | AQ75: 0.52 | AR75: 2.03 | AS75: 0.41 | AT75: ATENDE | AU75: ATENDE | AV75: ATENDE | AW75: ATENDE | AX75: ATENDE | AY75: ATENDE | AZ75: ATENDE | BE75: 4.6 | BF75: P2 | BG75: 15.64 | BH75: 0.73 | BI75: 10 | BJ75: 0.25 | BK75: ATENDE | BL75: ATENDE | BM75: ATENDE | BN75: 3.9 | BO75: P2 | BP75: 16.19 | BQ75: 0.74 | BR75: 10 | BS75: 0.25 | BT75: ATENDE | BU75: ATENDE | BV75: ATENDE | BW75: L1 | BX75: L1-94 | BZ75: 2 | CA75: 265 | CB75: 0 | CC75: 28359 | CD75: - | CJ75: Asfalto CIE N3 | CK75: 864 | CL75: 0 | CM75: 864 | CN75: 530 | CO75: 0 | CP75: 530
B76: 61 | C76: 61 | D76: 6 | E76: 11 | F76: 5 | G76: Avenida Borges de Medeiros | H76: OK(DIP) | I76: LED | J76: (não informado) | K76: (não informado) | L76: (não informado) | M76: (não informado) | N76: Não possui informação de luminária/braço/poste | O76: ATENDE | P76: ATENDE | Q76: ATENDE | R76: 18 | S76: 4.5 | T76: 2.4 | U76: 0 | V76: V1 | W76: 63.94880299 | X76: 30 | Y76: 0.4269040032 | Z76: 0.4 | AA76: 2 | AB76: 0.4 | AC76: 8 | AD76: 23 | AE76: 2 | AF76: Canteiro Central | AG76: 150 | AH76: 0 | AI76: 0 | AJ76: 0 | AK76: 1 | AL76: 1 | AM76: 2 | AN76: 0° | AO76: 2 | AP76: 56.57 | AQ76: 0.5 | AR76: 3.14 | AS76: 0.42 | AT76: ATENDE | AU76: ATENDE | AV76: ATENDE | AW76: ATENDE | AX76: ATENDE | AY76: ATENDE | AZ76: ATENDE | BE76: 4.5 | BF76: P1 | BG76: 22.77 | BH76: 0.67 | BI76: 20 | BJ76: 0.3 | BK76: ATENDE | BL76: ATENDE | BM76: ATENDE | BN76: 2.4 | BO76: P1 | BP76: 27.07 | BQ76: 0.8 | BR76: 20 | BS76: 0.3 | BT76: ATENDE | BU76: ATENDE | BV76: ATENDE | BW76: L1 | BX76: L1-94 | BZ76: 4 | CA76: 94 | CB76: 0 | CC76: 10531 | CD76: - | CE76: Aumento de pontos por postes para 4 | CJ76: Asfalto CIE N3 | CK76: 300 | CL76: 0 | CM76: 300 | CN76: 376 | CO76: 0 | CP76: 376
B77: 62 | C77: 62 | D77: 6 | E77: 1 | F77: 2 | G77: Avenida Wenceslau Escobar | H77: - | I77: Ilumatic | J77: LP-7 VP-Lâmp.400 | K77: SUPER 4Y | L77: Concreto CEEE | M77: Núcleo de 4 lum. (90°) | O77: NÃO ATENDE | P77: NÃO ATENDE | Q77: NÃO ATENDE | R77: 22 | S77: 2.7 | T77: - | U77: 0 | V77: V1 | W77: 16.40150876 | X77: 30 | Y77: 0.3414319979 | Z77: 0.4 | AA77: 2 | AB77: 0.4 | AC77: 20 | AD77: 40 | AE77: 4 | AF77: Canteiro Central | AG77: 400 | AH77: 32 | AI77: 0 | AJ77: 0 | AK77: 0.5 | AL77: 0 | AM77: 0.5 | AN77: 0° | AO77: 1 | AP77: 40.15 | AQ77: 0.62 | AR77: 2.41 | AS77: 0.56 | AT77: ATENDE | AU77: ATENDE | AV77: ATENDE | AW77: ATENDE | AX77: ATENDE | AY77: ATENDE | AZ77: ATENDE | BE77: 2.7 | BF77: P1 | BG77: 30.27 | BH77: 0.72 | BI77: 20 | BJ77: 0.3 | BK77: ATENDE | BL77: ATENDE | BM77: ATENDE | BN77: 2.7 | BO77: P1 | BP77: 30.27 | BQ77: 0.72 | BR77: 20 | BS77: 0.3 | BT77: ATENDE | BU77: ATENDE | BV77: ATENDE | BW77: L1 | BX77: L1-207 | BZ77: 4 | CA77: 207 | CB77: 0 | CC77: 24057 | CD77: - | CJ77: Asfalto CIE N3 | CK77: 1728 | CL77: 0 | CM77: 1728 | CN77: 828 | CO77: 0 | CP77: 828
B78: 63 | C78: 63 | D78: 6 | E78: 2 | F78: 2 | G78: Avenida da Cavalhada | H78: ok | I78: Ametista 3 | J78: LP-2 VP-Lâmp.250 | K78: PHILIPS PLUS PIA | L78: Concreto CEEE | M78: IP-B1 | N78: Possui ponto próximo com IP-B4 | O78: NÃO ATENDE | P78: NÃO ATENDE | Q78: NÃO ATENDE | R78: 22.5 | S78: 3.5 | T78: 3.5 | U78: 0 | V78: V1 | W78: 19.8344424 | X78: 30 | Y78: 0.05041734875 | Z78: 0.4 | AA78: 2 | AB78: 0.4 | AC78: 8.3 | AD78: 40 | AE78: 1 | AF78: Bilateral Alternada | AG78: 250 | AH78: 24 | AI78: 0 | AJ78: 0 | AK78: 0.3 | AL78: 2.7 | AM78: 3 | AN78: 10° | AO78: 2 | AP78: 34.36 | AQ78: 0.39 | AR78: 2.22 | AS78: 0.37 | AT78: NÃO ATENDE | AU78: NÃO ATENDE | AV78: ATENDE | AW78: ATENDIMENTO LIMIAR | AX78: NÃO ATENDE | AY78: ATENDE | AZ78: NÃO ATENDE | BE78: 3.5 | BF78: P2 | BG78: 15.22 | BH78: 0.54 | BI78: 10 | BJ78: 0.25 | BK78: ATENDE | BL78: ATENDE | BM78: ATENDE | BN78: =T78 -> 3.5 | BO78: P2 | BP78: 15.22 | BQ78: 0.54 | BR78: 10 | BS78: 0.25 | BT78: ATENDE | BU78: ATENDE | BV78: ATENDE | BW78: L1 | BX78: L1-207 | BZ78: 1 | CA78: 207 | CB78: 0 | CC78: 24057 | CD78: - | CE78: IP-B4 | CF78: 9.1 | CG78: 3 | CH78: 10° | CJ78: Asfalto CIE N3 | CK78: 274 | CL78: 0 | CM78: 274 | CN78: 207 | CO78: 0 | CP78: 207
B79: 64 | C79: 64 | D79: 6 | E79: 0 | F79: 5 | G79: Avenida Diário de Notícias | H79: - | J79: (não informado) | K79: (não informado) | L79: Concreto CEEE | M79: IP-B4 + IP-B3 | N79: Não possui informação de luminária/braço/poste | O79: NÃO ATENDE | P79: NÃO ATENDE | Q79: NÃO ATENDE | R79: 22 | S79: 1 | T79: - | U79: 2.5 | V79: V1 | W79: 23.93225601 | X79: 30 | Y79: 0.3551691908 | Z79: 0.4 | AA79: 2 | AB79: 0.4 | AC79: 9,1 e 7,7 | AD79: 35 | AE79: 1 | AF79: Bilateral Alternada | AG79: 250 | AH79: 24 | AI79: 150 | AJ79: 18 | AK79: 0.3 | AL79: 2,7 e 2,04 | AM79: 3 e 2,34 | AN79: 10 e 0 | AO79: 3 | AP79: 35.32 | AQ79: 0.5 | AR79: 2.32 | AS79: 0.43 | AT79: ATENDE | AU79: ATENDE | AV79: ATENDE | AW79: ATENDE | AX79: ATENDE | AY79: ATENDE | AZ79: ATENDE | BA79: 2.5 | BB79: C3 | BC79: 17.9 | BD79: 0.64 | BE79: 1 | BF79: P2 | BG79: 12.57 | BH79: 0.73 | BI79: 10 | BJ79: 0.25 | BK79: ATENDE | BL79: ATENDE | BM79: ATENDE | BN79: 1 | BO79: P2 | BP79: 12.57 | BQ79: 0.73 | BR79: 10 | BS79: 0.25 | BT79: ATENDE | BU79: ATENDE | BV79: ATENDE | BW79: L1 | BX79: L1-181 | BY79: L1-18 | BZ79: 1 | CA79: 181 | CB79: 18 | CC79: 20892 | CD79: 2431 | CI79: Canteiro de grama de 0,6m entre a via-ciclovia | CJ79: Asfalto CIE N3 | CK79: 274 | CL79: 168 | CM79: 442 | CN79: 181 | CO79: 18 | CP79: 199
B80: 65 | C80: 65 | D80: 6 | E80: 11 | F80: 2 | G80: Avenida Economista Nilo Wulff | H80: ok | I80: Ametista 3 | J80: LP-2 VP-Lâmp.150 | K80: PHILIPS PLUS PIA | L80: Concreto CEEE | M80: IP-B3 | O80: NÃO ATENDE | P80: NÃO ATENDE | Q80: NÃO ATENDE | R80: 25 | S80: 5.4 | T80: 2.4 | U80: 2x1,5 | V80: V2 | W80: 14.04210979 | X80: 20 | Y80: 0.04272862191 | Z80: 0.3 | AA80: 1.5 | AB80: 0.4 | AC80: 7.7 | AD80: 35 | AE80: 2 | AF80: Canteiro Central | AG80: 100 | AH80: 14 | AI80: 0 | AJ80: 0 | AK80: 1.5 | AL80: =AM80-AK80 -> 0.84 | AM80: 2.34 | AN80: 0° | AO80: 3 | AP80: 28.69 | AQ80: 0.52 | AR80: 1.8 | AS80: 0.44 | AT80: =IF(AX80="-",IF(AU80="ATENDE","ATENDE","NÃO ATENDE"),IF(AU80="NÃO ATENDE","NÃO ATENDE",IF(AX80="NÃO ATENDE","NÃO ATENDE","ATENDE"))) -> ATENDE | AU80: =IF(AV80="NÃO ATENDE","NÃO ATENDE",IF(AW80="ATENDE","ATENDE","NÃO ATENDE")) -> ATENDE | AV80: =IF(AP80>=X80,"ATENDE",IF(AP80>=0.99*X80,"ATENDIMENTO LIMIAR","NÃO ATENDE")) -> ATENDE | AW80: =IF(AQ80>=Z80,"ATENDE",IF(AQ80>=(Z80-0.02),"ATENDIMENTO LIMIAR","NÃO ATENDE")) -> ATENDE | AX80: =IF(V80="V4","-",IF(V80="V5","-",IF(AY80="NÃO ATENDE","NÃO ATENDE",IF(AZ80="ATENDE","ATENDE","NÃO ATENDE")))) -> ATENDE | AY80: =IF(V80="V4","-",IF(V80="V5","-",IF(AR80>=AA80,"ATENDE",IF(AR80>=0.99*AA80,"ATENDIMENTO LIMIAR","NÃO ATENDE")))) -> ATENDE | AZ80: =IF(V80="V4","-",IF(V80="V5","-",IF(AS80>=AB80,"ATENDE",IF(AS80>=(AB80-0.02),"ATENDIMENTO LIMIAR","NÃO ATENDE")))) -> ATENDE | BA80: 2x1,5 | BB80: C2 | BC80: 32.06 | BD80: 0.72 | BE80: 5.4 | BF80: P2 | BG80: 11.85 | BH80: 0.68 | BI80: 10 | BJ80: 0.25 | BK80: =IF(BL80="-","-",IF(BL80="NÃO ATENDE","NÃO ATENDE",IF(BM80="NÃO ATENDE","NÃO ATENDE","ATENDE"))) -> ATENDE | BL80: =IF(BE80="-","-",IF(BG80>=BI80,"ATENDE",IF(BG80>=(BI80*0.99),"ATENDIMENTO LIMIAR","NÃO ATENDE"))) -> ATENDE | BM80: =IF(BE80="-","-",IF(BH80>=BJ80,"ATENDE",IF(BH80>=(BJ80-0.02),"ATENDIMENTO LIMIAR","NÃO ATENDE"))) -> ATENDE | BN80: =T80 -> 2.4 | BO80: P2 | BP80: 14.37 | BQ80: 0.84 | BR80: 10 | BS80: 0.25 | BT80: =IF(BN80="-","-",IF(BU80="NÃO ATENDE","NÃO ATENDE",IF(BV80="NÃO ATENDE","NÃO ATENDE","ATENDE"))) -> ATENDE | BU80: =IF(BN80="-","-",IF(BP80>=(BR80),"ATENDE",IF(BP80>=(0.99*BR80),"ATENDIMENTO LIMIAR","NÃO ATENDE"))) -> ATENDE | BV80: =IF(BN80="-","-",IF(BQ80>=BS80,"ATENDE",IF(BQ80>=(BS80-0.02),"ATENDIMENTO LIMIAR","NÃO ATENDE"))) -> ATENDE | BW80: L1 | BX80: L1-181 | BZ80: 2 | CA80: 181 | CB80: 0 | CC80: 20892 | CD80: - | CE80: IP-B4 | CF80: 9.1 | CG80: 3 | CH80: 10° | CJ80: Asfalto CIE N3 | CK80: =(AG80+AH80)*AE80 -> 228 | CL80: =(AI80+AJ80) -> 0 | CM80: =CK80+CL80 -> 228 | CN80: =CA80*BZ80 -> 362 | CO80: =CB80 -> 0 | CP80: =CN80+CO80 -> 362
B81: 66 | C81: 66 | D81: 8 | E81: 1 | F81: 3 | G81: Avenida Assis Brasil | H81: - | I81: Ilumatic | J81: LP-7 VP-Lâmp.400 | K81: SUPER 4Y | L81: Ferro CEEE | M81: Núcleo de 2 lum. (180°) | O81: NÃO ATENDE | P81: NÃO ATENDE | Q81: ATENDE | R81: 25 | S81: 6.5 | T81: 2.9 | U81: 0 | V81: V1 | W81: 15.3496732 | X81: 30 | Y81: 0.4169469874 | Z81: 0.4 | AA81: 2 | AB81: 0.4 | AC81: 15 | AD81: 48.5 | AE81: 2 | AF81: Canteiro Central | AG81: 400 | AH81: 32 | AI81: 0 | AJ81: 0 | AK81: 0.5 | AL81: =AM81-AK81 -> 0.1 | AM81: 0.6 | AN81: 0° | AO81: 1 | AP81: 42.57 | AQ81: 0.43 | AR81: 2.5 | AS81: 0.4 | AT81: ATENDE | AU81: ATENDE | AV81: ATENDE | AW81: ATENDE | AX81: ATENDE | AY81: ATENDE | AZ81: ATENDE | BE81: 6.5 | BF81: P1 | BG81: 22.21 | BH81: 0.62 | BI81: 20 | BJ81: 0.3 | BK81: ATENDE | BL81: ATENDE | BM81: ATENDE | BN81: 2.9 | BO81: P1 | BP81: 25.43 | BQ81: 0.63 | BR81: 20 | BS81: 0.3 | BT81: ATENDE | BU81: ATENDE | BV81: ATENDE | BW81: L1 | BX81: L1-265 | BZ81: 4 | CA81: 265 | CB81: 0 | CC81: 28359 | CD81: - | CE81: Aumento de pontos por postes para 4 | CH81: 8° | CJ81: Asfalto CIE N3 | CK81: 864 | CL81: 0 | CM81: 864 | CN81: 1060 | CO81: 0 | CP81: 1060
B82: 67 | C82: 67 | D82: 8 | E82: 1 | F82: 4 | G82: Avenida Sertório, ponto 2 | H82: - | I82: Ilumatic | J82: LP-7 VP-Lâmp.400 | K82: SUPER 4Y | L82: IP-PA 15 + Concreto CEEE | M82: Núcleo de 4 lum. (90°) + IP-B1 | N82: Possui dois circuitos de iluminação | O82: NÃO ATENDE | P82: NÃO ATENDE | Q82: NÃO ATENDE | R82: 42 | S82: 1.5 | T82: 1.5 | U82: 0 | V82: V1 | W82: 25.40925926 | X82: 30 | Y82: 0.08264703739 | Z82: 0.4 | AA82: 2 | AB82: 0.4 | AC82: 15 e 8,3 | AD82: 28 e 35 | AE82: 4 | AF82: Canteiro Central e Unilateral | AG82: 400 | AH82: 32 | AI82: 250 | AJ82: 24 | AK82: 8 e 0,3 | AL82: (-7,4) e 2,7 | AM82: 0,6 e 3 | AN82: 0° e 10° | AO82: 16 | AP82: 45.17 | AQ82: 0.5 | AR82: 2.2 | AS82: 0.41 | AT82: ATENDE | AU82: ATENDE | AV82: ATENDE | AW82: ATENDE | AX82: ATENDE | AY82: ATENDE | AZ82: ATENDE | BE82: 1.5 | BF82: P2 | BG82: 24.84 | BH82: 0.89 | BI82: 10 | BJ82: 0.25 | BK82: ATENDE | BL82: ATENDE | BM82: ATENDE | BN82: 1.5 | BO82: P2 | BP82: 22.09 | BQ82: 0.89 | BR82: 10 | BS82: 0.25 | BT82: ATENDE | BU82: ATENDE | BV82: ATENDE | BW82: L1 | BX82: L1-265 | BY82: L1-38 | BZ82: 4 | CA82: 265 | CB82: 38 | CC82: 28359 | CD82: 4471 | CJ82: Asfalto CIE N3 | CK82: 1728 | CL82: 274 | CM82: 2002 | CN82: 1060 | CO82: 38 | CP82: 1098
B83: =C83+67 -> 68 | C83: 1 | D83: 2 | E83: 7 | F83: 5 | G83: Rua Baltimore | H83: ok | I83: Opalo | J83: LP-4 PC-Lâmp.100 | K83: SUPER 4Y | L83: Concreto CEEE | M83: IP-B3 | O83: NÃO ATENDE | P83: NÃO ATENDE | Q83: NÃO ATENDE | R83: 7 | S83: 1.5 | T83: 2 | U83: 0 | V83: V5 | W83: 1.360000002 | X83: 5 | Y83: 0.07352941273 | Z83: 0.2 | AA83: - | AB83: - | AC83: 7.7 | AD83: 35 | AE83: 1 | AF83: Unilateral | AG83: 100 | AH83: 14 | AI83: 0 | AJ83: 0 | AK83: 0.3 | AL83: =AM83-AK83 -> 2.04 | AM83: 2.34 | AN83: 0° | AO83: - | AP83: 5.08 | AQ83: 0.29 | AR83: - | AS83: - | AT83: ATENDE | AU83: ATENDE | AV83: ATENDE | AW83: ATENDE | AX83: - | AY83: - | AZ83: - | BA83: =IF(U83=0,"",U83) ->  | BE83: 1.5 | BF83: P4 | BG83: 3.44 | BH83: 0.31 | BI83: 3 | BJ83: 0.2 | BK83: ATENDE | BL83: ATENDE | BM83: ATENDE | BN83: 2 | BO83: P4 | BP83: 4.52 | BQ83: 0.6 | BR83: 3 | BS83: 0.2 | BT83: ATENDE | BU83: ATENDE | BV83: ATENDE | BW83: L2 | BX83: L2-30-2 | BZ83: 1 | CA83: 30 | CB83: 0 | CC83: 3552 | CD83: - | CJ83: Asfalto CIE N3 | CK83: 114 | CL83: 0 | CM83: 114 | CN83: 30 | CO83: 0 | CP83: 30
B84: 69 | C84: 2 | D84: 2 | E84: 9 | F84: 3 | G84: Av Monte Cristo | H84: - | I84: ILUMATIC ILP -450 | J84: LP-3 VP-Lâmp.150 | K84: PHILIPS PLUS PIA | L84: Concreto CEEE | M84: IP-B3 | N84: Possui ponto próximo com IP-B6 | O84: ATENDE | P84: ATENDE | Q84: ATENDE | R84: 7 | S84: 4.5 | T84: - | U84: 0 | V84: V3 | W84: 15.08666654 | X84: 15 | Y84: 0.2452496739 | Z84: 0.2 | AA84: 1 | AB84: 0.4 | AC84: 7.7 | AD84: 26 | AE84: 1 | AF84: Unilateral | AG84: 150 | AH84: 18 | AI84: 0 | AJ84: 0 | AK84: 4.5 | AL84: -2.16 | AM84: 2.34 | AN84: 0° | AO84: - | AP84: 21.75 | AQ84: 0.54 | AR84: 1.32 | AS84: 0.46 | AT84: ATENDE | AU84: ATENDE | AV84: ATENDE | AW84: ATENDE | AX84: ATENDE | AY84: ATENDE | AZ84: ATENDE | BE84: 4.5 | BF84: P3 | BG84: 24.06 | BH84: 0.48 | BI84: 5 | BJ84: 0.2 | BK84: ATENDE | BL84: ATENDE | BM84: ATENDE | BN84: - | BO84: - | BP84: - | BQ84: - | BR84: - | BS84: - | BT84: - | BU84: - | BV84: - | BW84: L2 | BX84: L2-100-2 | BZ84: 1 | CA84: 100 | CB84: 0 | CC84: 12385 | CD84: - | CJ84: Asfalto CIE N3 | CK84: 168 | CL84: 0 | CM84: 168 | CN84: 100 | CO84: 0 | CP84: 100
B85: 70 | C85: 3 | D85: 2 | E85: 4 | F85: 5 | G85: Rua Joaquim de Carvalho | H85: - | I85: ILUMATIC ILP -450 | J85: LP-3 VP-Lâmp.150 | K85: PHILIPS PLUS PIA | L85: Concreto CEEE | M85: IP-B3 | O85: NÃO ATENDE | P85: ATENDE | Q85: NÃO ATENDE | R85: 11.7 | S85: 0.8 | T85: 2.9 | U85: 0 | V85: V4 | W85: 14.47777777 | X85: 10 | Y85: 0.05525709986 | Z85: 0.2 | AA85: - | AB85: - | AC85: 7.7 | AD85: 32.8 | AE85: 1 | AF85: Unilateral | AG85: 150 | AH85: 18 | AI85: 0 | AJ85: 0 | AK85: 0.3 | AL85: 2.04 | AM85: 2.34 | AN85: 0° | AO85: - | AP85: 11.03 | AQ85: 0.32 | AR85: - | AS85: - | AT85: ATENDE | AU85: ATENDE | AV85: ATENDE | AW85: ATENDE | AX85: - | AY85: - | AZ85: - | BE85: 0.8 | BF85: P4 | BG85: 5.94 | BH85: 0.32 | BI85: 3 | BJ85: 0.2 | BK85: ATENDE | BL85: ATENDE | BM85: ATENDE | BN85: 2.9 | BO85: P4 | BP85: 4.58 | BQ85: 0.75 | BR85: 3 | BS85: 0.2 | BT85: ATENDE | BU85: ATENDE | BV85: ATENDE | BW85: L2 | BX85: L2-80-2 | BZ85: 1 | CA85: 80 | CB85: 0 | CC85: 8489 | CD85: - | CH85: 10° | CI85: Canteiros de grama de 1m e 1,5m entre via-passeio 1 e via-passeio 2, respec. | CJ85: Asfalto CIE N3 | CK85: 168 | CL85: 0 | CM85: 168 | CN85: 80 | CO85: 0 | CP85: 80
B86: 71 | C86: 4 | D86: 2 | E86: 7 | F86: 2 | G86: Rua Jataí | H86: - | I86: ILUMATIC ILP -450 | J86: LP-4 PC-Lâmp.100 | K86: PHILIPS PLUS PIA | L86: Concreto CEEE | M86: IP-B3 | O86: NÃO ATENDE | P86: ATENDE | Q86: NÃO ATENDE | R86: 6.5 | S86: 1.5 | T86: 1.5 | U86: 0 | V86: V5 | W86: 8.17999997 | X86: 5 | Y86: 0.0122249391 | Z86: 0.2 | AA86: - | AB86: - | AC86: 7.7 | AD86: 33 | AE86: 1 | AF86: Unilateral | AG86: 100 | AH86: 14 | AI86: 0 | AJ86: 0 | AK86: 0.3 | AL86: 2.04 | AM86: 2.34 | AN86: 0° | AO86: - | AP86: 5.17 | AQ86: 0.47 | AR86: - | AS86: - | AT86: ATENDE | AU86: ATENDE | AV86: ATENDE | AW86: ATENDE | AX86: - | AY86: - | AZ86: - | BE86: 1.5 | BF86: P4 | BG86: 3.12 | BH86: 0.52 | BI86: 3 | BJ86: 0.2 | BK86: ATENDE | BL86: ATENDE | BM86: ATENDE | BN86: 1.5 | BO86: P4 | BP86: 4.2 | BQ86: 0.54 | BR86: 3 | BS86: 0.2 | BT86: ATENDE | BU86: ATENDE | BV86: ATENDE | BW86: L2 | BX86: L2-30-1 | BZ86: 1 | CA86: 30 | CB86: 0 | CC86: 3603 | CD86: - | CJ86: Asfalto CIE N3 | CK86: 114 | CL86: 0 | CM86: 114 | CN86: 30 | CO86: 0 | CP86: 30
B87: 72 | C87: 5 | D87: 2 | E87: 8 | F87: 4 | G87: Rua Orfanotrófio | H87: - | I87: ILUMATIC ILP -450 | J87: LP-3 VP-Lâmp.150 | K87: PHILIPS PLUS PIA | L87: Concreto CEEE | M87: IP-B3 | N87: Possui ponto próximo com IP-B6 | O87: NÃO ATENDE | P87: ATENDE | Q87: NÃO ATENDE | R87: 9 | S87: 3 | T87: 4 | U87: 0 | V87: V4 | W87: 16.24222239 | X87: 10 | Y87: 0.06772472371 | Z87: 0.2 | AA87: - | AB87: - | AC87: 7.7 | AD87: 38 | AE87: 1 | AF87: Bilateral Alternada | AG87: 150 | AH87: 18 | AI87: 0 | AJ87: 0 | AK87: 0.3 | AL87: 2.04 | AM87: 2.34 | AN87: 0° | AO87: - | AP87: 14.37 | AQ87: 0.63 | AR87: - | AS87: - | AT87: ATENDE | AU87: ATENDE | AV87: ATENDE | AW87: ATENDE | AX87: - | AY87: - | AZ87: - | BE87: 3 | BF87: P4 | BG87: 8.77 | BH87: 0.63 | BI87: 3 | BJ87: 0.2 | BK87: ATENDE | BL87: ATENDE | BM87: ATENDE | BN87: 4 | BO87: P4 | BP87: 8.04 | BQ87: 0.61 | BR87: 3 | BS87: 0.2 | BT87: ATENDE | BU87: ATENDE | BV87: ATENDE | BW87: L2 | BX87: L2-50-1 | BZ87: 1 | CA87: 50 | CB87: 0 | CC87: 6174 | CD87: - | CJ87: Asfalto CIE N3 | CK87: 168 | CL87: 0 | CM87: 168 | CN87: 50 | CO87: 0 | CP87: 50
B88: 73 | C88: 6 | D88: 2 | E88: 5 | F88: 5 | G88: Rua África do Sul | H88: ok | I88: Opalo | J88: LP-4 PC-Lâmp.70 | K88: SUPER 4Y | L88: Concreto CEEE | M88: IP-B7 | O88: ATENDE | P88: ATENDE | Q88: ATENDE | R88: 4.6 | S88: 3 | T88: 1.5 | U88: 0 | V88: V5 | W88: 5.064444436 | X88: 5 | Y88: 0.2369460293 | Z88: 0.2 | AA88: - | AB88: - | AC88: 7.1 | AD88: 32 | AE88: 1 | AF88: Unilateral | AG88: 70 | AH88: 12 | AI88: 0 | AJ88: 0 | AK88: 3 | AL88: -1.42 | AM88: 1.58 | AN88: 10° | AO88: - | AP88: 5.3 | AQ88: 0.41 | AR88: - | AS88: - | AT88: ATENDE | AU88: ATENDE | AV88: ATENDE | AW88: ATENDE | AX88: - | AY88: - | AZ88: - | BE88: 3 | BF88: P4 | BG88: 4.78 | BH88: 0.46 | BI88: 3 | BJ88: 0.2 | BK88: ATENDE | BL88: ATENDE | BM88: ATENDE | BN88: 1.5 | BO88: P4 | BP88: 3.56 | BQ88: 0.53 | BR88: 3 | BS88: 0.2 | BT88: ATENDE | BU88: ATENDE | BV88: ATENDE | BW88: L2 | BX88: L2-30-1 | BZ88: 1 | CA88: 30 | CB88: 0 | CC88: 3603 | CD88: - | CJ88: Asfalto CIE N3 | CK88: 82 | CL88: 0 | CM88: 82 | CN88: 30 | CO88: 0 | CP88: 30
B89: 74 | C89: 7 | D89: 2 | E89: 10 | F89: 1 | G89: Av Deputado Adão Pretto | H89: - | J89: LP-4 PC-Lâmp.100 | K89: SUPER 4Y | L89: Concreto CEEE | M89: IP-B7 | N89: Não consta informação de braço | O89: NÃO ATENDE | P89: NÃO ATENDE | Q89: NÃO ATENDE | R89: 7 | S89: 2.5 | T89: 2.3 | U89: 0 | V89: V3 | W89: 5.977777761 | X89: 15 | Y89: 0.06691449932 | Z89: 0.2 | AA89: 1 | AB89: 0.4 | AC89: 7.1 | AD89: 37 | AE89: 1 | AF89: Unilateral | AG89: 100 | AH89: 14 | AI89: 0 | AJ89: 0 | AK89: 0.3 | AL89: 1.28 | AM89: 1.58 | AN89: 10° | AO89: - | AP89: 19.13 | AQ89: 0.23 | AR89: 1.38 | AS89: 0.48 | AT89: ATENDE | AU89: ATENDE | AV89: ATENDE | AW89: ATENDE | AX89: ATENDE | AY89: ATENDE | AZ89: ATENDE | BE89: 2.5 | BF89: P3 | BG89: 12.33 | BH89: 0.2 | BI89: 5 | BJ89: 0.2 | BK89: ATENDE | BL89: ATENDE | BM89: ATENDE | BN89: 2.3 | BO89: P3 | BP89: 13.43 | BQ89: 0.55 | BR89: 5 | BS89: 0.2 | BT89: ATENDE | BU89: ATENDE | BV89: ATENDE | BW89: L2 | BX89: L2-100-2 | BZ89: 1 | CA89: 100 | CB89: 0 | CC89: 12385 | CD89: - | CH89: 0° | CJ89: Asfalto CIE N3 | CK89: 114 | CL89: 0 | CM89: 114 | CN89: 100 | CO89: 0 | CP89: 100
B90: 75 | C90: 8 | D90: 2 | E90: 7 | F90: 3 | G90: Rua Pedro Golombiewski | H90: ok | I90: Opalo | J90: LP-4 PC-Lâmp.100 | K90: SUPER 4Y | L90: Concreto CEEE | M90: IP-B2 | O90: NÃO ATENDE | P90: ATENDE | Q90: NÃO ATENDE | R90: 6.3 | S90: 2.2 | T90: 2 | U90: 0 | V90: V5 | W90: 7.91777781 | X90: 5 | Y90: 0.05051922592 | Z90: 0.2 | AA90: - | AB90: - | AC90: 7.8 | AD90: 38 | AE90: 1 | AF90: Unilateral | AG90: 100 | AH90: 14 | AI90: 0 | AJ90: 0 | AK90: 0.3 | AL90: 2.05 | AM90: 2.35 | AN90: 10° | AO90: - | AP90: 6.78 | AQ90: 0.36 | AR90: - | AS90: - | AT90: ATENDE | AU90: ATENDE | AV90: ATENDE | AW90: ATENDE | AX90: - | AY90: - | AZ90: - | BE90: 2.2 | BF90: P4 | BG90: 3.8 | BH90: 0.35 | BI90: 3 | BJ90: 0.2 | BK90: ATENDE | BL90: ATENDE | BM90: ATENDE | BN90: 2 | BO90: P4 | BP90: 6.21 | BQ90: 0.45 | BR90: 3 | BS90: 0.2 | BT90: ATENDE | BU90: ATENDE | BV90: ATENDE | BW90: L2 | BX90: L2-50-1 | BZ90: 1 | CA90: 50 | CB90: 0 | CC90: 6174 | CD90: - | CJ90: Asfalto CIE N3 | CK90: 114 | CL90: 0 | CM90: 114 | CN90: 50 | CO90: 0 | CP90: 50
B91: 76 | C91: 9 | D91: 2 | E91: 10 | F91: 2 | G91: Estrada Antônio Borges | H91: - | I91: ILUMATIC ILP -450 | J91: LP-3 PC-Lâmp.150 | K91: PHILIPS PLUS PIA | L91: Concreto CEEE | M91: IP-B3 | O91: NÃO ATENDE | P91: ATENDE | Q91: NÃO ATENDE | R91: 6 | S91: 1.5 | T91: 1.5 | U91: 0 | V91: V3 | W91: 19.29333337 | X91: 15 | Y91: 0.04664823641 | Z91: 0.2 | AA91: 1 | AB91: 0.4 | AC91: 7.7 | AD91: 36 | AE91: 1 | AF91: Unilateral | AG91: 100 | AH91: 14 | AI91: 0 | AJ91: 0 | AK91: 0.3 | AL91: 2.04 | AM91: 2.34 | AN91: 0° | AO91: - | AP91: 17.93 | AQ91: 0.26 | AR91: 1.39 | AS91: 0.49 | AT91: ATENDE | AU91: ATENDE | AV91: ATENDE | AW91: ATENDE | AX91: ATENDE | AY91: ATENDE | AZ91: ATENDE | BE91: 1.5 | BF91: P3 | BG91: 11.51 | BH91: 0.29 | BI91: 5 | BJ91: 0.2 | BK91: ATENDE | BL91: ATENDE | BM91: ATENDE | BN91: 1.5 | BO91: P3 | BP91: 18.18 | BQ91: 0.47 | BR91: 5 | BS91: 0.2 | BT91: ATENDE | BU91: ATENDE | BV91: ATENDE | BW91: L2 | BX91: L2-100-2 | BZ91: 1 | CA91: 100 | CB91: 0 | CC91: 12385 | CD91: - | CJ91: Asfalto CIE N3 | CK91: 114 | CL91: 0 | CM91: 114 | CN91: 100 | CO91: 0 | CP91: 100
B92: 77 | C92: 10 | D92: 2 | E92: 0 | F92: 2 | G92: Av. Professor Oscar Pereira | H92: ok | I92: Ametista 3 | J92: LP-1 VP-Lâmp.250 | K92: PHILIPS PLUS PIA | L92: Concreto CEEE | M92: IP-B2 | O92: ATENDE | P92: ATENDE | Q92: ATENDE | R92: 8.5 | S92: 1.5 | T92: - | U92: 0 | V92: V2 | W92: 20.227 | X92: 20 | Y92: 0.3016 | Z92: 0.3 | AA92: 1.5 | AB92: 0.4 | AC92: 7.8 | AD92: 34 | AE92: 1 | AF92: Unilateral | AG92: 250 | AH92: 24 | AI92: 0 | AJ92: 0 | AK92: 0.3 | AL92: 2.05 | AM92: 2.35 | AN92: 10° | AO92: - | AP92: 25.55 | AQ92: 0.41 | AR92: 1.71 | AS92: 0.43 | AT92: ATENDE | AU92: ATENDE | AV92: ATENDE | AW92: ATENDE | AX92: ATENDE | AY92: ATENDE | AZ92: ATENDE | BE92: 1.5 | BF92: P2 | BG92: 18.25 | BH92: 0.46 | BI92: 10 | BJ92: 0.25 | BK92: ATENDE | BL92: ATENDE | BM92: ATENDE | BN92: - | BO92: - | BP92: - | BQ92: - | BR92: - | BS92: - | BT92: - | BU92: - | BV92: - | BW92: L2 | BX92: L2-150-1 | BZ92: 1 | CA92: 150 | CB92: 0 | CC92: 17710 | CD92: - | CJ92: Asfalto CIE N3 | CK92: 274 | CL92: 0 | CM92: 274 | CN92: 150 | CO92: 0 | CP92: 150
B93: 78 | C93: 11 | D93: 2 | E93: 8 | F93: 2 | G93: Rua Capitão José Padilha | H93: ok | I93: Opalo | J93: LP-4 PC-Lâmp.100 | K93: SUPER 4Y | L93: Concreto CEEE | M93: IP-B7 | O93: NÃO ATENDE | P93: NÃO ATENDE | Q93: NÃO ATENDE | R93: 10 | S93: 2 | T93: 2.2 | U93: 0 | V93: V4 | W93: 7.377777733 | X93: 10 | Y93: 0.09487951704 | Z93: 0.2 | AA93: - | AB93: - | AC93: 7.1 | AD93: 35 | AE93: 1 | AF93: Unilateral | AG93: 100 | AH93: 14 | AI93: 0 | AJ93: 0 | AK93: 0.3 | AL93: 1.28 | AM93: 1.58 | AN93: 10° | AO93: - | AP93: 11.62 | AQ93: 0.43 | AR93: - | AS93: - | AT93: ATENDE | AU93: ATENDE | AV93: ATENDE | AW93: ATENDE | AX93: - | AY93: - | AZ93: - | BE93: 2 | BF93: P4 | BG93: 9.49 | BH93: 0.33 | BI93: 3 | BJ93: 0.2 | BK93: ATENDE | BL93: ATENDE | BM93: ATENDE | BN93: 2.2 | BO93: P4 | BP93: 4.72 | BQ93: 0.67 | BR93: 3 | BS93: 0.2 | BT93: ATENDE | BU93: ATENDE | BV93: ATENDE | BW93: L2 | BX93: L2-80-1 | BZ93: 1 | CA93: 80 | CB93: 0 | CC93: 8318 | CD93: - | CJ93: Asfalto CIE N3 | CK93: 114 | CL93: 0 | CM93: 114 | CN93: 80 | CO93: 0 | CP93: 80
B94: 79 | C94: 12 | D94: 2 | E94: 5 | F94: 1 | G94: Rua Otávio de Faria | H94: - | I94: Indalux | J94: LP-3 PC-Lâmp.150 | K94: PHILIPS PLUS PIA | L94: Concreto CEEE | M94: IP-B2 | O94: NÃO ATENDE | P94: ATENDE | Q94: NÃO ATENDE | R94: 7 | S94: 2.5 | T94: 2.5 | U94: 0 | V94: V5 | W94: 8.94666661 | X94: 5 | Y94: 0.08941877984 | Z94: 0.2 | AA94: - | AB94: - | AC94: 7.8 | AD94: 35 | AE94: 1 | AF94: Unilateral | AG94: 150 | AH94: 18 | AI94: 0 | AJ94: 0 | AK94: 0.3 | AL94: 2.05 | AM94: 2.35 | AN94: 10° | AO94: - | AP94: 5.02 | AQ94: 0.3 | AR94: - | AS94: - | AT94: ATENDE | AU94: ATENDE | AV94: ATENDE | AW94: ATENDE | AX94: - | AY94: - | AZ94: - | BE94: 2.5 | BF94: P4 | BG94: 3.08 | BH94: 0.31 | BI94: 3 | BJ94: 0.2 | BK94: ATENDE | BL94: ATENDE | BM94: ATENDE | BN94: 2.5 | BO94: P4 | BP94: 4.38 | BQ94: 0.62 | BR94: 3 | BS94: 0.2 | BT94: ATENDE | BU94: ATENDE | BV94: ATENDE | BW94: L2 | BX94: L2-30-2 | BZ94: 1 | CA94: 30 | CB94: 0 | CC94: 3552 | CD94: - | CH94: 0° | CJ94: Asfalto CIE N3 | CK94: 168 | CL94: 0 | CM94: 168 | CN94: 30 | CO94: 0 | CP94: 30
B95: 80 | C95: 13 | D95: 2 | E95: 4 | F95: 3 | G95: Rua Dona Otília | H95: - | I95: Indalux | J95: LP-3 PC-Lâmp.150 | K95: PHILIPS PLUS PIA | L95: Concreto CEEE | M95: IP-B3 | O95: NÃO ATENDE | P95: ATENDE | Q95: NÃO ATENDE | R95: 8 | S95: 3.4 | T95: 4.7 | U95: 0 | V95: V5 | W95: 8.011111063 | X95: 5 | Y95: 0.01248266323 | Z95: 0.2 | AA95: - | AB95: - | AC95: 7.7 | AD95: 33 | AE95: 1 | AF95: Unilateral | AG95: 150 | AH95: 18 | AI95: 0 | AJ95: 0 | AK95: 1.7 | AL95: 0.64 | AM95: 2.34 | AN95: 0° | AO95: - | AP95: 8.41 | AQ95: 0.45 | AR95: - | AS95: - | AT95: ATENDE | AU95: ATENDE | AV95: ATENDE | AW95: ATENDE | AX95: - | AY95: - | AZ95: - | BE95: 3.4 | BF95: P4 | BG95: 5.86 | BH95: 0.45 | BI95: 3 | BJ95: 0.2 | BK95: ATENDE | BL95: ATENDE | BM95: ATENDE | BN95: 4.7 | BO95: P4 | BP95: 4.29 | BQ95: 0.59 | BR95: 3 | BS95: 0.2 | BT95: ATENDE | BU95: ATENDE | BV95: ATENDE | BW95: L2 | BX95: L2-50-1 | BZ95: 1 | CA95: 50 | CB95: 0 | CC95: 6174 | CD95: - | CJ95: Asfalto CIE N3 | CK95: 168 | CL95: 0 | CM95: 168 | CN95: 50 | CO95: 0 | CP95: 50
B96: 81 | C96: 14 | D96: 2 | E96: 4 | F96: 4 | G96: Rua Januário Scazilli | H96: - | I96: ILUMATIC ILP -450 | J96: LP-3 VP-Lâmp.150 | K96: PHILIPS PLUS PIA | L96: Concreto CEEE | M96: IP-B2 | N96: Possui ponto próximo com IP-B5 | O96: NÃO ATENDE | P96: ATENDE | Q96: NÃO ATENDE | R96: 9 | S96: 2.8 | T96: 3 | U96: 0 | V96: V5 | W96: 19.48444458 | X96: 5 | Y96: 0.02566149617 | Z96: 0.2 | AA96: - | AB96: - | AC96: 7.8 | AD96: 34 | AE96: 1 | AF96: Unilateral | AG96: 150 | AH96: 18 | AI96: 0 | AJ96: 0 | AK96: 0.3 | AL96: 2.05 | AM96: 2.35 | AN96: 10° | AO96: - | AP96: 5.05 | AQ96: 0.33 | AR96: - | AS96: - | AT96: ATENDE | AU96: ATENDE | AV96: ATENDE | AW96: ATENDE | AX96: - | AY96: - | AZ96: - | BE96: 2.8 | BF96: P4 | BG96: 3.08 | BH96: 0.32 | BI96: 3 | BJ96: 0.2 | BK96: ATENDE | BL96: ATENDE | BM96: ATENDE | BN96: 3 | BO96: P4 | BP96: 3.21 | BQ96: 0.74 | BR96: 3 | BS96: 0.2 | BT96: ATENDE | BU96: ATENDE | BV96: ATENDE | BW96: L2 | BX96: L2-30-2 | BZ96: 1 | CA96: 30 | CB96: 0 | CC96: 3552 | CD96: - | CH96: 0° | CJ96: Asfalto CIE N3 | CK96: 168 | CL96: 0 | CM96: 168 | CN96: 30 | CO96: 0 | CP96: 30
B97: 82 | C97: 15 | D97: 2 | E97: 8 | F97: 3 | G97: Rua João do Rio | H97: ok | I97: Opalo | J97: LP-4 PC-Lâmp.100 | K97: SUPER 4Y | L97: Concreto CEEE | M97: IP-B7 | O97: NÃO ATENDE | P97: NÃO ATENDE | Q97: NÃO ATENDE | R97: 8.8 | S97: 4 | T97: 4 | U97: 0 | V97: V4 | W97: 3.880000042 | X97: 10 | Y97: 0.07731958987 | Z97: 0.2 | AA97: - | AB97: - | AC97: 7.1 | AD97: 32 | AE97: 1 | AF97: Unilateral | AG97: 100 | AH97: 14 | AI97: 0 | AJ97: 0 | AK97: 0.3 | AL97: 1.28 | AM97: 1.58 | AN97: 10° | AO97: - | AP97: 11.18 | AQ97: 0.5 | AR97: - | AS97: - | AT97: ATENDE | AU97: ATENDE | AV97: ATENDE | AW97: ATENDE | AX97: - | AY97: - | AZ97: - | BE97: 4 | BF97: P4 | BG97: 7.35 | BH97: 0.37 | BI97: 3 | BJ97: 0.2 | BK97: ATENDE | BL97: ATENDE | BM97: ATENDE | BN97: 4 | BO97: P4 | BP97: 4.63 | BQ97: 0.61 | BR97: 3 | BS97: 0.2 | BT97: ATENDE | BU97: ATENDE | BV97: ATENDE | BW97: L2 | BX97: L2-60-1 | BZ97: 1 | CA97: 60 | CB97: 0 | CC97: 6915 | CD97: - | CJ97: Asfalto CIE N3 | CK97: 114 | CL97: 0 | CM97: 114 | CN97: 60 | CO97: 0 | CP97: 60
B98: 83 | C98: 16 | D98: 2 | E98: 3 | F98: 5 | G98: Rua Paulino Chaves | H98: ok | I98: Tecnowatt Beta | J98: LP-2 VP-Lâmp.150 | K98: PHILIPS PLUS PIA | L98: Concreto CEEE | M98: IP-B2 | O98: NÃO ATENDE | P98: ATENDE | Q98: NÃO ATENDE | R98: 7 | S98: 3.8 | T98: 2.6 | U98: 0 | V98: V4 | W98: 14.96666685 | X98: 10 | Y98: 0.05345211594 | Z98: 0.2 | AA98: - | AB98: - | AC98: 7.8 | AD98: 30 | AE98: 1 | AF98: Unilateral | AG98: 150 | AH98: 18 | AI98: 0 | AJ98: 0 | AK98: 0.3 | AL98: 2.05 | AM98: 2.35 | AN98: 10° | AO98: - | AP98: 10.38 | AQ98: 0.4 | AR98: - | AS98: - | AT98: ATENDE | AU98: ATENDE | AV98: ATENDE | AW98: ATENDE | AX98: - | AY98: - | AZ98: - | BE98: 3.8 | BF98: P4 | BG98: 5.31 | BH98: 0.37 | BI98: 3 | BJ98: 0.2 | BK98: ATENDE | BL98: ATENDE | BM98: ATENDE | BN98: 2.6 | BO98: P4 | BP98: 8.94 | BQ98: 0.66 | BR98: 3 | BS98: 0.2 | BT98: ATENDE | BU98: ATENDE | BV98: ATENDE | BW98: L2 | BX98: L2-50-2 | BZ98: 1 | CA98: 50 | CB98: 0 | CC98: 6041 | CD98: - | CH98: 0° | CJ98: Asfalto CIE N3 | CK98: 168 | CL98: 0 | CM98: 168 | CN98: 50 | CO98: 0 | CP98: 50
B99: 84 | C99: 17 | D99: 2 | E99: 9 | F99: 2 | G99: Rua Tenente Alpoim | H99: ok | I99: TECNOWATT IEP Alpha | J99: LP-3 VP-Lâmp.150 | K99: PHILIPS PLUS PIA | L99: Concreto CEEE | M99: IP-B3 | O99: NÃO ATENDE | P99: ATENDE | Q99: NÃO ATENDE | R99: 9 | S99: 3.8 | T99: 4 | U99: 0 | V99: V4 | W99: 15.54666688 | X99: 10 | Y99: 0.07075471752 | Z99: 0.2 | AA99: - | AB99: - | AC99: 7.7 | AD99: 29 | AE99: 1 | AF99: Unilateral | AG99: 150 | AH99: 18 | AI99: 0 | AJ99: 0 | AK99: 0.3 | AL99: 2.04 | AM99: 2.34 | AN99: 0° | AO99: - | AP99: 10.6 | AQ99: 0.43 | AR99: - | AS99: - | AT99: ATENDE | AU99: ATENDE | AV99: ATENDE | AW99: ATENDE | AX99: - | AY99: - | AZ99: - | BE99: 3.8 | BF99: P4 | BG99: 5.52 | BH99: 0.38 | BI99: 3 | BJ99: 0.2 | BK99: ATENDE | BL99: ATENDE | BM99: ATENDE | BN99: 4 | BO99: P4 | BP99: 5.5 | BQ99: 0.62 | BR99: 3 | BS99: 0.2 | BT99: ATENDE | BU99: ATENDE | BV99: ATENDE | BW99: L2 | BX99: L2-50-2 | BZ99: 1 | CA99: 50 | CB99: 0 | CC99: 6041 | CD99: - | CJ99: Asfalto CIE N3 | CK99: 168 | CL99: 0 | CM99: 168 | CN99: 50 | CO99: 0 | CP99: 50
B100: 85 | C100: 18 | D100: 2 | E100: 12 | F100: 5 | G100: Rua Ernesto Araújo | H100: ok | I100: Opalo | J100: LP-4 PC-Lâmp.100 | K100: SUPER 4Y | L100: Concreto CEEE | M100: IP-B3 | O100: NÃO ATENDE | P100: NÃO ATENDE | Q100: NÃO ATENDE | R100: 7.5 | S100: 2 | T100: 1.8 | U100: 0 | V100: V4 | W100: 8.375555524 | X100: 10 | Y100: 0.02387901345 | Z100: 0.2 | AA100: - | AB100: - | AC100: 7.7 | AD100: 37 | AE100: 1 | AF100: Unilateral | AG100: 100 | AH100: 14 | AI100: 0 | AJ100: 0 | AK100: 0.3 | AL100: 2.04 | AM100: 2.34 | AN100: 0° | AO100: - | AP100: 10.26 | AQ100: 0.4 | AR100: - | AS100: - | AT100: ATENDE | AU100: ATENDE | AV100: ATENDE | AW100: ATENDE | AX100: - | AY100: - | AZ100: - | BE100: 2 | BF100: P4 | BG100: 6.76 | BH100: 0.4 | BI100: 3 | BJ100: 0.2 | BK100: ATENDE | BL100: ATENDE | BM100: ATENDE | BN100: 1.8 | BO100: P4 | BP100: 6.43 | BQ100: 0.5 | BR100: 3 | BS100: 0.2 | BT100: ATENDE | BU100: ATENDE | BV100: ATENDE | BW100: L2 | BX100: L2-60-1 | BZ100: 1 | CA100: 60 | CB100: 0 | CC100: 6915 | CD100: - | CJ100: Asfalto CIE N3 | CK100: 114 | CL100: 0 | CM100: 114 | CN100: 60 | CO100: 0 | CP100: 60
B101: 86 | C101: 19 | D101: 2 | E101: 8 | F101: 5 | G101: Rua Primeiro de Março | H101: - | I101: Indalux | J101: LP-3 VP-Lâmp.150 | K101: PHILIPS PLUS PIA | L101: Concreto CEEE | M101: IP-B3 | N101: Inspeção local: 1,6m de projeção; IP-B3: projeção de 2,5 m | O101: NÃO ATENDE | P101: NÃO ATENDE | Q101: NÃO ATENDE | R101: 7 | S101: 4.5 | T101: 4 | U101: 0 | V101: V4 | W101: 9.648888922 | X101: 10 | Y101: 0.06218332792 | Z101: 0.2 | AA101: - | AB101: - | AC101: 7.7 | AD101: 47 | AE101: 1 | AF101: Unilateral | AG101: 150 | AH101: 18 | AI101: 0 | AJ101: 0 | AK101: 2 | AL101: 0.34 | AM101: 2.34 | AN101: 0° | AO101: - | AP101: 13.62 | AQ101: 0.22 | AR101: - | AS101: - | AT101: ATENDE | AU101: ATENDE | AV101: ATENDE | AW101: ATENDE | AX101: - | AY101: - | AZ101: - | BE101: 4.5 | BF101: P4 | BG101: 8.63 | BH101: 0.21 | BI101: 3 | BJ101: 0.2 | BK101: ATENDE | BL101: ATENDE | BM101: ATENDE | BN101: 4 | BO101: P4 | BP101: 7.26 | BQ101: 0.3 | BR101: 3 | BS101: 0.2 | BT101: ATENDE | BU101: ATENDE | BV101: ATENDE | BW101: L2 | BX101: L2-100-1 | BZ101: 1 | CA101: 100 | CB101: 0 | CC101: 12349 | CD101: - | CE101: IP-B1 | CF101: 8.3 | CG101: 3 | CH101: 3° | CJ101: Asfalto CIE N3 | CK101: 168 | CL101: 0 | CM101: 168 | CN101: 100 | CO101: 0 | CP101: 100
B102: 87 | C102: 20 | D102: 2 | E102: 12 | F102: 7 | G102: Rua Waldomiro Schapke | H102: ok | I102: TECNOWATT IEP Alpha | J102: LP-3 VP-Lâmp.150 | K102: PHILIPS PLUS PIA | L102: Concreto CEEE | M102: IP-B3 | N102: Inspeção local: 1,5m de projeção; IP-B3: projeção de 2,5 m | O102: NÃO ATENDE | P102: ATENDE | Q102: NÃO ATENDE | R102: 8.5 | S102: 3 | T102: 3.3 | U102: 0 | V102: V5 | W102: 13.89777778 | X102: 5 | Y102: 0.05036776376 | Z102: 0.2 | AA102: - | AB102: - | AC102: 7.7 | AD102: 36 | AE102: 1 | AF102: Unilateral | AG102: 150 | AH102: 18 | AI102: 0 | AJ102: 0 | AK102: 0.3 | AL102: 2.04 | AM102: 2.34 | AN102: 0° | AO102: - | AP102: 7.68 | AQ102: 0.43 | AR102: - | AS102: - | AT102: ATENDE | AU102: ATENDE | AV102: ATENDE | AW102: ATENDE | AX102: - | AY102: - | AZ102: - | BE102: 3 | BF102: P4 | BG102: 4.32 | BH102: 0.41 | BI102: 3 | BJ102: 0.2 | BK102: ATENDE | BL102: ATENDE | BM102: ATENDE | BN102: 3.3 | BO102: P4 | BP102: 5.16 | BQ102: 0.59 | BR102: 3 | BS102: 0.2 | BT102: ATENDE | BU102: ATENDE | BV102: ATENDE | BW102: L2 | BX102: L2-50-1 | BZ102: 1 | CA102: 50 | CB102: 0 | CC102: 6174 | CD102: - | CJ102: Asfalto CIE N3 | CK102: 168 | CL102: 0 | CM102: 168 | CN102: 50 | CO102: 0 | CP102: 50
B103: 88 | C103: 21 | D103: 2 | E103: 4 | F103: 2 | G103: Rua Nunes Machado | H103: ok | I103: Ametista 3 | J103: LP-2 VP-Lâmp.150 | K103: PHILIPS PLUS PIA | L103: Concreto CEEE | M103: IP-B1 | O103: NÃO ATENDE | P103: ATENDE | Q103: NÃO ATENDE | R103: 8 | S103: 4.4 | T103: 4.4 | U103: 0 | V103: V5 | W103: 6.468888959 | X103: 5 | Y103: 0.03091721071 | Z103: 0.2 | AA103: - | AB103: - | AC103: 8.3 | AD103: 40 | AE103: 1 | AF103: Unilateral | AG103: 150 | AH103: 18 | AI103: 0 | AJ103: 0 | AK103: 0.3 | AL103: 2.7 | AM103: 3 | AN103: 10° | AO103: - | AP103: 6.54 | AQ103: 0.39 | AR103: - | AS103: - | AT103: ATENDE | AU103: ATENDE | AV103: ATENDE | AW103: ATENDE | AX103: - | AY103: - | AZ103: - | BE103: 4.4 | BF103: P4 | BG103: 3.03 | BH103: 0.35 | BI103: 3 | BJ103: 0.2 | BK103: ATENDE | BL103: ATENDE | BM103: ATENDE | BN103: 4.4 | BO103: P4 | BP103: 4.8 | BQ103: 0.54 | BR103: 3 | BS103: 0.2 | BT103: ATENDE | BU103: ATENDE | BV103: ATENDE | BW103: L2 | BX103: L2-50-1 | BZ103: 1 | CA103: 50 | CB103: 0 | CC103: 6174 | CD103: - | CH103: 0° | CJ103: Asfalto CIE N3 | CK103: 168 | CL103: 0 | CM103: 168 | CN103: 50 | CO103: 0 | CP103: 50
B104: 89 | C104: 22 | D104: 2 | E104: 5 | F104: 6 | G104: Rua Coronel André Belo | H104: ok | I104: Ametista 3 | J104: LP-2 VP-Lâmp.150 | K104: PHILIPS PLUS PIA | L104: Concreto CEEE | M104: IP-B1 | O104: NÃO ATENDE | P104: ATENDE | Q104: NÃO ATENDE | R104: 8.5 | S104: 4 | T104: 3 | U104: 0 | V104: V5 | W104: 15.71111123 | X104: 5 | Y104: 0.02545968902 | Z104: 0.2 | AA104: - | AB104: - | AC104: 8.3 | AD104: 26 | AE104: 1 | AF104: Unilateral | AG104: 150 | AH104: 18 | AI104: 0 | AJ104: 0 | AK104: 0.3 | AL104: 2.7 | AM104: 3 | AN104: 10° | AO104: - | AP104: 6.27 | AQ104: 0.49 | AR104: - | AS104: - | AT104: ATENDE | AU104: ATENDE | AV104: ATENDE | AW104: ATENDE | AX104: - | AY104: - | AZ104: - | BE104: 4 | BF104: P4 | BG104: 3.21 | BH104: 0.39 | BI104: 3 | BJ104: 0.2 | BK104: ATENDE | BL104: ATENDE | BM104: ATENDE | BN104: 3 | BO104: P4 | BP104: 3.72 | BQ104: 0.69 | BR104: 3 | BS104: 0.2 | BT104: ATENDE | BU104: ATENDE | BV104: ATENDE | BW104: L2 | BX104: L2-30-1 | BZ104: 1 | CA104: 30 | CB104: 0 | CC104: 3603 | CD104: - | CE104: IP-B3 | CF104: 7.7 | CG104: 2.34 | CH104: 0° | CI104: Canteiro de grama de 1m entre Passeio 2 e Via | CJ104: Asfalto CIE N3 | CK104: 168 | CL104: 0 | CM104: 168 | CN104: 30 | CO104: 0 | CP104: 30
B105: 90 | C105: 23 | D105: 2 | E105: 12 | F105: 3 | G105: Rua Alberto Torres | H105: ok | I105: Ametista 3 | J105: LP-2 VP-Lâmp.150 | K105: PHILIPS PLUS PIA | L105: Concreto CEEE | M105: IP-B2 | O105: ATENDE | P105: ATENDE | Q105: ATENDE | R105: 9 | S105: 2.2 | T105: 1.5 | U105: 0 | V105: V5 | W105: 18.67333333 | X105: 5 | Y105: 0.2624062835 | Z105: 0.2 | AA105: - | AB105: - | AC105: 7.8 | AD105: 26 | AE105: 1 | AF105: Unilateral | AG105: 150 | AH105: 18 | AI105: 0 | AJ105: 0 | AK105: 0.3 | AL105: 2.05 | AM105: 2.35 | AN105: 10° | AO105: - | AP105: 5.61 | AQ105: 0.47 | AR105: - | AS105: - | AT105: ATENDE | AU105: ATENDE | AV105: ATENDE | AW105: ATENDE | AX105: - | AY105: - | AZ105: - | BE105: =S105 -> 2.2 | BF105: P4 | BG105: 3.25 | BH105: 0.45 | BI105: 3 | BJ105: 0.2 | BK105: ATENDE | BL105: ATENDE | BM105: ATENDE | BN105: =T105 -> 1.5 | BO105: P4 | BP105: 3.87 | BQ105: 0.65 | BR105: 3 | BS105: 0.2 | BT105: ATENDE | BU105: ATENDE | BV105: ATENDE | BW105: L2 | BX105: L2-30-1 | BZ105: 1 | CA105: 30 | CB105: 0 | CC105: 3603 | CD105: - | CJ105: Asfalto CIE N3 | CK105: 168 | CL105: 0 | CM105: 168 | CN105: 30 | CO105: 0 | CP105: 30
B106: 91 | C106: 24 | D106: 2 | E106: 12 | F106: 2 | G106: Rua Tomas Flores | H106: ok | I106: Ametista 3 | J106: LP-2 VP-Lâmp.150 | K106: PHILIPS PLUS PIA | L106: Ferro CEEE | M106: IP-B1 | O106: NÃO ATENDE | P106: ATENDE | Q106: NÃO ATENDE | R106: 8.6 | S106: 4.4 | T106: 4.4 | U106: 0 | V106: V4 | W106: 16.20444454 | X106: 10 | Y106: 0.06171146426 | Z106: 0.2 | AA106: - | AB106: - | AC106: 8.3 | AD106: 33 | AE106: 1 | AF106: Unilateral | AG106: 150 | AH106: 18 | AI106: 0 | AJ106: 0 | AK106: 0.3 | AL106: 2.7 | AM106: 3 | AN106: 10° | AO106: - | AP106: 10.53 | AQ106: 0.5 | AR106: - | AS106: - | AT106: ATENDE | AU106: ATENDE | AV106: ATENDE | AW106: ATENDE | AX106: - | AY106: - | AZ106: - | BE106: =S106 -> 4.4 | BF106: P4 | BG106: 5.75 | BH106: 0.54 | BI106: 3 | BJ106: 0.2 | BK106: ATENDE | BL106: ATENDE | BM106: ATENDE | BN106: 4.4 | BO106: P4 | BP106: 5.37 | BQ106: 0.56 | BR106: 3 | BS106: 0.2 | BT106: ATENDE | BU106: ATENDE | BV106: ATENDE | BW106: L2 | BX106: L2-60-1 | BZ106: 1 | CA106: 60 | CB106: 0 | CC106: 6915 | CD106: - | CH106: 0° | CJ106: Asfalto CIE N3 | CK106: 168 | CL106: 0 | CM106: 168 | CN106: 60 | CO106: 0 | CP106: 60
B107: 92 | C107: 25 | D107: 2 | E107: 8 | F107: 1 | G107: Rua Alfredo Ferreira Rodrigues | H107: ok | I107: Opalo | J107: LP-4 PC-Lâmp.100 | K107: SUPER 4Y | L107: Concreto CEEE | M107: IP-B3 | N107: Possui ponto próximo com IP-B6 | O107: NÃO ATENDE | P107: ATENDE | Q107: NÃO ATENDE | R107: 6.1 | S107: 4.3 | T107: 4 | U107: 0 | V107: V5 | W107: 6.04000002 | X107: 5 | Y107: 0.1490066181 | Z107: 0.2 | AA107: - | AB107: - | AC107: 7.7 | AD107: 28 | AE107: 1 | AF107: Unilateral | AG107: 100 | AH107: 14 | AI107: 0 | AJ107: 0 | AK107: 1.5 | AL107: 0.84 | AM107: 2.34 | AN107: 0° | AO107: - | AP107: 5.75 | AQ107: 0.46 | AR107: - | AS107: - | AT107: ATENDE | AU107: ATENDE | AV107: ATENDE | AW107: ATENDE | AX107: - | AY107: - | AZ107: - | BE107: 4.3 | BF107: P4 | BG107: 3.16 | BH107: 0.4 | BI107: 3 | BJ107: 0.2 | BK107: ATENDE | BL107: ATENDE | BM107: ATENDE | BN107: 4 | BO107: P4 | BP107: 3.86 | BQ107: 0.57 | BR107: 3 | BS107: 0.2 | BT107: ATENDE | BU107: ATENDE | BV107: ATENDE | BW107: L2 | BX107: L2-30-1 | BZ107: 1 | CA107: 30 | CB107: 0 | CC107: 3603 | CD107: - | CJ107: Asfalto CIE N3 | CK107: 114 | CL107: 0 | CM107: 114 | CN107: 30 | CO107: 0 | CP107: 30
B108: 93 | C108: 26 | D108: 2 | E108: 7 | F108: 1 | G108: Rua Sérgio Porto | H108: ok | I108: Opalo | J108: LP-4 PC-Lâmp.100 | K108: SUPER 4Y | L108: Concreto CEEE | M108: IP-B3 | O108: NÃO ATENDE | P108: ATENDE | Q108: NÃO ATENDE | R108: 5 | S108: 1 | T108: 1.3 | U108: 0 | V108: V5 | W108: 8.877777841 | X108: 5 | Y108: 0.1126408002 | Z108: 0.2 | AA108: - | AB108: - | AC108: 7.7 | AD108: 42 | AE108: 1 | AF108: Unilateral | AG108: 100 | AH108: 14 | AI108: 0 | AJ108: 0 | AK108: 0.3 | AL108: 2.04 | AM108: 2.34 | AN108: 0° | AO108: - | AP108: 6.98 | AQ108: 0.33 | AR108: - | AS108: - | AT108: ATENDE | AU108: ATENDE | AV108: ATENDE | AW108: ATENDE | AX108: - | AY108: - | AZ108: - | BE108: =S108 -> 1 | BF108: P4 | BG108: 4.27 | BH108: 0.46 | BI108: 3 | BJ108: 0.2 | BK108: ATENDE | BL108: ATENDE | BM108: ATENDE | BN108: 1.3 | BO108: P4 | BP108: 6.77 | BQ108: 0.37 | BR108: 3 | BS108: 0.2 | BT108: ATENDE | BU108: ATENDE | BV108: ATENDE | BW108: L2 | BX108: L2-50-1 | BZ108: 1 | CA108: 50 | CB108: 0 | CC108: 6174 | CD108: - | CJ108: Asfalto CIE N3 | CK108: 114 | CL108: 0 | CM108: 114 | CN108: 50 | CO108: 0 | CP108: 50
B109: 94 | C109: 27 | D109: 2 | E109: 3 | F109: 2 | G109: Rua Nossa Senhora Aparecida | H109: ok | I109: Tecnowatt Beta | J109: LP-2 VP-Lâmp.150 | K109: PHILIPS PLUS PIA | L109: Concreto CEEE | M109: IP-B2 | O109: NÃO ATENDE | P109: ATENDE | Q109: NÃO ATENDE | R109: 5.2 | S109: - | T109: - | U109: 0 | V109: V5 | W109: 9.204444351 | X109: 5 | Y109: 0.08691453621 | Z109: 0.2 | AA109: - | AB109: - | AC109: 7.8 | AD109: 32 | AE109: 1 | AF109: Unilateral | AG109: 150 | AH109: 18 | AI109: 0 | AJ109: 0 | AK109: 0.3 | AL109: 2.05 | AM109: 2.35 | AN109: 10° | AO109: - | AP109: 7.91 | AQ109: 0.42 | AR109: - | AS109: - | AT109: ATENDE | AU109: ATENDE | AV109: ATENDE | AW109: ATENDE | AX109: - | AY109: - | AZ109: - | BE109: - | BF109: - | BG109: - | BH109: - | BI109: - | BJ109: - | BK109: - | BL109: - | BM109: - | BN109: - | BO109: - | BP109: - | BQ109: - | BR109: - | BS109: - | BT109: - | BU109: - | BV109: - | BW109: L2 | BX109: L2-50-1 | BZ109: 1 | CA109: 50 | CB109: 0 | CC109: 6174 | CD109: - | CJ109: Asfalto CIE N3 | CK109: 168 | CL109: 0 | CM109: 168 | CN109: 50 | CO109: 0 | CP109: 50
B110: 95 | C110: 28 | D110: 2 | E110: 7 | F110: 4 | G110: Rua Gioconda | H110: ok | I110: TECNOWATT IEP Alpha | J110: LP-4 VP-Lâmp.100 | K110: SUPER 4Y | L110: Concreto CEEE | M110: IP-B3 | O110: ATENDE | P110: ATENDE | Q110: ATENDE | R110: 6.7 | S110: 1.6 | T110: 3.6 | U110: 0 | V110: V5 | W110: 10.73333332 | X110: 5 | Y110: 0.2236024848 | Z110: 0.2 | AA110: - | AB110: - | AC110: 7.7 | AD110: 28 | AE110: 1 | AF110: Unilateral | AG110: 100 | AH110: 14 | AI110: 0 | AJ110: 0 | AK110: 0.5 | AL110: 1.84 | AM110: 2.34 | AN110: 0° | AO110: - | AP110: 6.12 | AQ110: 0.46 | AR110: - | AS110: - | AT110: ATENDE | AU110: ATENDE | AV110: ATENDE | AW110: ATENDE | AX110: - | AY110: - | AZ110: - | BE110: 1.6 | BF110: P4 | BG110: 3.76 | BH110: 0.57 | BI110: 3 | BJ110: 0.2 | BK110: ATENDE | BL110: ATENDE | BM110: ATENDE | BN110: 3.6 | BO110: P4 | BP110: 4.47 | BQ110: 0.63 | BR110: 3 | BS110: 0.2 | BT110: ATENDE | BU110: ATENDE | BV110: ATENDE | BW110: L2 | BX110: L2-30-1 | BZ110: 1 | CA110: 30 | CB110: 0 | CC110: 3603 | CD110: - | CJ110: Asfalto CIE N3 | CK110: 114 | CL110: 0 | CM110: 114 | CN110: 30 | CO110: 0 | CP110: 30
B111: 96 | C111: 29 | D111: 2 | E111: 3 | F111: 4 | G111: Rua Ariovaldo Pinheiro | H111: - | I111: ILUMATIC ILP -450 | J111: LP-3 VP-Lâmp.150 | K111: PHILIPS PLUS PIA | L111: Concreto CEEE | M111: IP-B3 | O111: NÃO ATENDE | P111: ATENDE | Q111: NÃO ATENDE | R111: 7 | S111: 1 | T111: 1.5 | U111: 0 | V111: V5 | W111: 19.55555541 | X111: 5 | Y111: 0.02045454591 | Z111: 0.2 | AA111: - | AB111: - | AC111: 7.7 | AD111: 37 | AE111: 1 | AF111: Unilateral | AG111: 150 | AH111: 18 | AI111: 0 | AJ111: 0 | AK111: 0.3 | AL111: 2.04 | AM111: 2.34 | AN111: 0° | AO111: - | AP111: 7.77 | AQ111: 0.42 | AR111: - | AS111: - | AT111: ATENDE | AU111: ATENDE | AV111: ATENDE | AW111: ATENDE | AX111: - | AY111: - | AZ111: - | BE111: 1 | BF111: P4 | BG111: 4.86 | BH111: 0.5 | BI111: 3 | BJ111: 0.2 | BK111: ATENDE | BL111: ATENDE | BM111: ATENDE | BN111: 2 | BO111: P4 | BP111: 4.48 | BQ111: 0.62 | BR111: 3 | BS111: 0.2 | BT111: ATENDE | BU111: ATENDE | BV111: ATENDE | BW111: L2 | BX111: L2-50-1 | BZ111: 1 | CA111: 50 | CB111: 0 | CC111: 6174 | CD111: - | CI111: Canteiro de grama de 3m entre via-passeio 2 | CJ111: Asfalto CIE N3 | CK111: 168 | CL111: 0 | CM111: 168 | CN111: 50 | CO111: 0 | CP111: 50
B112: 97 | C112: 30 | D112: 2 | E112: 6 | F112: 1 | G112: Rua Seberi | H112: ok | I112: Opalo | J112: LP-4 PC-Lâmp.70 | K112: SUPER 4Y | L112: Concreto CEEE | M112: IP-B7 | O112: NÃO ATENDE | P112: NÃO ATENDE | Q112: NÃO ATENDE | R112: 7 | S112: 1.6 | T112: 3 | U112: 0 | V112: V5 | W112: 3.124444466 | X112: 5 | Y112: 0.09601707285 | Z112: 0.2 | AA112: - | AB112: - | AC112: 7.1 | AD112: 36 | AE112: 1 | AF112: Unilateral | AG112: 70 | AH112: 12 | AI112: 0 | AJ112: 0 | AK112: 0.3 | AL112: 1.28 | AM112: 1.58 | AN112: 10° | AO112: - | AP112: 7.81 | AQ112: 0.4 | AR112: - | AS112: - | AT112: ATENDE | AU112: ATENDE | AV112: ATENDE | AW112: ATENDE | AX112: - | AY112: - | AZ112: - | BE112: 1.6 | BF112: P4 | BG112: 5.27 | BH112: 0.38 | BI112: 3 | BJ112: 0.2 | BK112: ATENDE | BL112: ATENDE | BM112: ATENDE | BN112: =T112 -> 3 | BO112: P4 | BP112: 5.17 | BQ112: 0.52 | BR112: 3 | BS112: 0.2 | BT112: ATENDE | BU112: ATENDE | BV112: ATENDE | BW112: L2 | BX112: L2-50-1 | BZ112: 1 | CA112: 50 | CB112: 0 | CC112: 6174 | CD112: - | CJ112: Asfalto CIE N3 | CK112: 82 | CL112: 0 | CM112: 82 | CN112: 50 | CO112: 0 | CP112: 50
B113: 98 | C113: 31 | D113: 2 | E113: 12 | F113: 4 | G113: Rua Francisca Lechner | H113: ok | I113: Opalo | J113: LP-4 PC-Lâmp.100 | K113: SUPER 4Y | L113: Concreto CEEE | M113: IP-B3 | N113: Inspeção local: 1,5m de projeção; IP-B3: projeção de 2,5 m | O113: ATENDE | P113: ATENDE | Q113: ATENDE | R113: 7.5 | S113: 2.2 | T113: 2.2 | U113: 0 | V113: V5 | W113: 12.23777766 | X113: 5 | Y113: 0.2206282934 | Z113: 0.2 | AA113: - | AB113: - | AC113: 7.7 | AD113: 28 | AE113: 1 | AF113: Unilateral | AG113: 100 | AH113: 14 | AI113: 0 | AJ113: 0 | AK113: 0.3 | AL113: 2.04 | AM113: 2.34 | AN113: 0° | AO113: - | AP113: 6.33 | AQ113: 0.45 | AR113: - | AS113: - | AT113: ATENDE | AU113: ATENDE | AV113: ATENDE | AW113: ATENDE | AX113: - | AY113: - | AZ113: - | BE113: 2.2 | BF113: P4 | BG113: 4 | BH113: 0.46 | BI113: 3 | BJ113: 0.2 | BK113: ATENDE | BL113: ATENDE | BM113: ATENDE | BN113: 2.2 | BO113: P4 | BP113: 5.27 | BQ113: 0.74 | BR113: 3 | BS113: 0.2 | BT113: ATENDE | BU113: ATENDE | BV113: ATENDE | BW113: L2 | BX113: L2-30-2 | BZ113: 1 | CA113: 30 | CB113: 0 | CC113: 3552 | CD113: - | CJ113: Asfalto CIE N3 | CK113: 114 | CL113: 0 | CM113: 114 | CN113: 30 | CO113: 0 | CP113: 30
B114: 99 | C114: 32 | D114: 2 | E114: 5 | F114: 3 | G114: Rua Cristóvão Jaques | H114: - | I114: Indalux | J114: LP-3 VP-Lâmp.150 | K114: PHILIPS PLUS PIA | L114: Concreto CEEE | M114: IP-B3 | N114: Inspeção local: 1,8m de projeção; IP-B3: projeção de 2,5 m | O114: NÃO ATENDE | P114: ATENDE | Q114: NÃO ATENDE | R114: 7 | S114: 1.5 | T114: 2 | U114: 0 | V114: V5 | W114: 6.659999977 | X114: 5 | Y114: 0.03003003058 | Z114: 0.2 | AA114: - | AB114: - | AC114: 7.7 | AD114: 30 | AE114: 1 | AF114: Unilateral | AG114: 150 | AH114: 18 | AI114: 0 | AJ114: 0 | AK114: 0.3 | AL114: 2.04 | AM114: 2.34 | AN114: 0° | AO114: - | AP114: 5.63 | AQ114: 0.47 | AR114: - | AS114: - | AT114: ATENDE | AU114: ATENDE | AV114: ATENDE | AW114: ATENDE | AX114: - | AY114: - | AZ114: - | BE114: 1.5 | BF114: P4 | BG114: 3.44 | BH114: 0.56 | BI114: 3 | BJ114: 0.2 | BK114: ATENDE | BL114: ATENDE | BM114: ATENDE | BN114: 2 | BO114: P4 | BP114: 4.37 | BQ114: 0.59 | BR114: 3 | BS114: 0.2 | BT114: ATENDE | BU114: ATENDE | BV114: ATENDE | BW114: L2 | BX114: L2-30-1 | BZ114: 1 | CA114: 30 | CB114: 0 | CC114: 3603 | CD114: - | CJ114: Asfalto CIE N3 | CK114: 168 | CL114: 0 | CM114: 168 | CN114: 30 | CO114: 0 | CP114: 30
B115: =C115+67 -> 100 | C115: 33 | D115: 2 | E115: 6 | F115: 5 | G115: Rua Lila Ripoll | H115: ok | I115: TECNOWATT IEP Alpha | J115: LP-4 VP-Lâmp.100 | K115: SUPER 4Y | L115: Concreto CEEE | M115: IP-B3 | N115: Inspeção local: 1,5m de projeção; IP-B3: projeção de 2,5 m | O115: NÃO ATENDE | P115: ATENDE | Q115: NÃO ATENDE | R115: 7 | S115: 2.4 | T115: 2.8 | U115: 0 | V115: V5 | W115: 8.657777755 | X115: 5 | Y115: 0.03465092549 | Z115: 0.2 | AA115: - | AB115: - | AC115: 7.7 | AD115: 38 | AE115: 1 | AF115: Unilateral | AG115: 100 | AH115: 14 | AI115: 0 | AJ115: 0 | AK115: 0.3 | AL115: =AM115-AK115 -> 2.04 | AM115: 2.34 | AN115: 0° | AO115: - | AP115: 7.56 | AQ115: 0.4 | AR115: - | AS115: - | AT115: ATENDE | AU115: ATENDE | AV115: ATENDE | AW115: ATENDE | AX115: - | AY115: - | AZ115: - | BE115: 2.4 | BF115: P4 | BG115: 4.32 | BH115: 0.41 | BI115: 3 | BJ115: 0.2 | BK115: ATENDE | BL115: ATENDE | BM115: ATENDE | BN115: 2.8 | BO115: P4 | BP115: 5.72 | BQ115: 0.51 | BR115: 3 | BS115: 0.2 | BT115: ATENDE | BU115: ATENDE | BV115: ATENDE | BW115: L2 | BX115: L2-50-1 | BZ115: 1 | CA115: 50 | CB115: 0 | CC115: 6174 | CD115: - | CJ115: Asfalto CIE N3 | CK115: 114 | CL115: 0 | CM115: 114 | CN115: 50 | CO115: 0 | CP115: 50
B116: 101 | C116: 34 | D116: 2 | E116: 6 | F116: 2 | G116: Rua Um | H116: ok | I116: Opalo | J116: LP-4 PC-Lâmp.70 | K116: SUPER 4Y | L116: Concreto CEEE | M116: IP-B7 | N116: Não consta informação de poste; Reluz: IP-B3 e Inspeção: IP-B7 | O116: NÃO ATENDE | P116: ATENDE | Q116: NÃO ATENDE | R116: 8 | S116: 1 | T116: 1.5 | U116: 0 | V116: V5 | W116: 5.406666637 | X116: 5 | Y116: 0.07398273888 | Z116: 0.2 | AA116: - | AB116: - | AC116: 7.1 | AD116: 35 | AE116: 1 | AF116: Unilateral | AG116: 70 | AH116: 12 | AI116: 0 | AJ116: 0 | AK116: 0.3 | AL116: 1.28 | AM116: 1.58 | AN116: 10° | AO116: - | AP116: 7.77 | AQ116: 0.4 | AR116: - | AS116: - | AT116: ATENDE | AU116: ATENDE | AV116: ATENDE | AW116: ATENDE | AX116: - | AY116: - | AZ116: - | BE116: 1 | BF116: P4 | BG116: 5.73 | BH116: 0.42 | BI116: 3 | BJ116: 0.2 | BK116: ATENDE | BL116: ATENDE | BM116: ATENDE | BN116: 1.5 | BO116: P4 | BP116: 5.12 | BQ116: 0.55 | BR116: 3 | BS116: 0.2 | BT116: ATENDE | BU116: ATENDE | BV116: ATENDE | BW116: L2 | BX116: L2-50-1 | BZ116: 1 | CA116: 50 | CB116: 0 | CC116: 6174 | CD116: - | CJ116: Asfalto CIE N3 | CK116: 82 | CL116: 0 | CM116: 82 | CN116: 50 | CO116: 0 | CP116: 50
B117: 102 | C117: 35 | D117: 2 | E117: 12 | F117: 1 | G117: Avenida Polonia | H117: ok | I117: Ametista 3 | J117: LP-2 VP-Lâmp.150 | K117: PHILIPS PLUS PIA | L117: Concreto CEEE | M117: IP-B1 | O117: NÃO ATENDE | P117: NÃO ATENDE | Q117: NÃO ATENDE | R117: 8.5 | S117: 4 | T117: 4.4 | U117: 0 | V117: V3 | W117: 14 | X117: 15 | Y117: 0.02142857228 | Z117: 0.2 | AA117: 1 | AB117: 0.4 | AC117: 8.3 | AD117: 40 | AE117: 1 | AF117: Unilateral | AG117: 150 | AH117: 18 | AI117: 0 | AJ117: 0 | AK117: 0.3 | AL117: 2.7 | AM117: 3 | AN117: 10° | AO117: - | AP117: 15.53 | AQ117: 0.25 | AR117: 1.09 | AS117: 0.41 | AT117: ATENDE | AU117: ATENDE | AV117: ATENDE | AW117: ATENDE | AX117: ATENDE | AY117: ATENDE | AZ117: ATENDE | BE117: 4 | BF117: P3 | BG117: 6.87 | BH117: 0.25 | BI117: 5 | BJ117: 0.2 | BK117: ATENDE | BL117: ATENDE | BM117: ATENDE | BN117: 4.4 | BO117: P3 | BP117: 13.71 | BQ117: 0.58 | BR117: 5 | BS117: 0.2 | BT117: ATENDE | BU117: ATENDE | BV117: ATENDE | BW117: L2 | BX117: L2-150-2 | BZ117: 1 | CA117: 150 | CB117: 0 | CC117: 16039 | CD117: - | CE117: IP-B4 | CF117: 9.1 | CG117: 3 | CH117: 10° | CJ117: Asfalto CIE N3 | CK117: 168 | CL117: 0 | CM117: 168 | CN117: 150 | CO117: 0 | CP117: 150
B118: 103 | C118: 36 | D118: 2 | E118: 12 | F118: 6 | G118: Praça João Bergman | H118: ok | I118: TECNOWATT IEP Alpha | J118: LP-3 VP-Lâmp.150 | K118: PHILIPS PLUS PIA | L118: IP-PA10 | M118: IP-B3 | N118: Reluz: Núcleo para 4 luminárias; Inspeção: IP-B3 | O118: NÃO ATENDE | P118: ATENDE | Q118: NÃO ATENDE | R118: 7.7 | S118: 1 | T118: 2 | U118: 0 | V118: V5 | W118: 23.45111104 | X118: 5 | Y118: 0.01279257138 | Z118: 0.2 | AA118: - | AB118: - | AC118: 7.7 | AD118: 46 | AE118: 1 | AF118: Unilateral | AG118: 150 | AH118: 18 | AI118: 0 | AJ118: 0 | AK118: 0.3 | AL118: 2.04 | AM118: 2.34 | AN118: 0° | AO118: - | AP118: 6.13 | AQ118: 0.27 | AR118: - | AS118: - | AT118: ATENDE | AU118: ATENDE | AV118: ATENDE | AW118: ATENDE | AX118: - | AY118: - | AZ118: - | BE118: 1 | BF118: P4 | BG118: 3.91 | BH118: 0.34 | BI118: 3 | BJ118: 0.2 | BK118: ATENDE | BL118: ATENDE | BM118: ATENDE | BN118: 2 | BO118: P4 | BP118: 4.63 | BQ118: 0.41 | BR118: 3 | BS118: 0.2 | BT118: ATENDE | BU118: ATENDE | BV118: ATENDE | BW118: L2 | BX118: L2-50-1 | BZ118: 1 | CA118: 50 | CB118: 0 | CC118: 6174 | CD118: - | CJ118: Asfalto CIE N3 | CK118: 168 | CL118: 0 | CM118: 168 | CN118: 50 | CO118: 0 | CP118: 50
B119: 104 | C119: 37 | D119: 2 | E119: 10 | F119: 3 | G119: Avenida Edgar Pires de Castro | H119: ok | I119: Tecnowatt Beta | J119: LP-2 VP-Lâmp.150 | K119: PHILIPS PLUS PIA | L119: Concreto CEEE | M119: IP-B3 | N119: Possui ponto próximo com IP-B6 | O119: NÃO ATENDE | P119: NÃO ATENDE | Q119: NÃO ATENDE | R119: 6.5 | S119: 3 | T119: - | U119: 0 | V119: V2 | W119: 4.08 | X119: 20 | Y119: 0 | Z119: 0.3 | AA119: 1.5 | AB119: 0.4 | AC119: 7.7 | AD119: 35 | AE119: 1 | AF119: Unilateral | AG119: 150 | AH119: 18 | AI119: 0 | AJ119: 0 | AK119: 4.5 | AL119: -2.16 | AM119: 2.34 | AN119: 0° | AO119: - | AP119: 31.72 | AQ119: 0.45 | AR119: 1.93 | AS119: 0.45 | AT119: ATENDE | AU119: ATENDE | AV119: ATENDE | AW119: ATENDE | AX119: ATENDE | AY119: ATENDE | AZ119: ATENDE | BE119: 4 | BF119: P2 | BG119: 30.04 | BH119: 0.27 | BI119: 10 | BJ119: 0.25 | BK119: ATENDE | BL119: ATENDE | BM119: ATENDE | BN119: - | BO119: - | BP119: - | BQ119: - | BR119: - | BS119: - | BT119: - | BU119: - | BV119: - | BW119: L2 | BX119: L2-200-2 | BZ119: 1 | CA119: 200 | CB119: 0 | CC119: 21523 | CD119: - | CJ119: Asfalto CIE N3 | CK119: 168 | CL119: 0 | CM119: 168 | CN119: 200 | CO119: 0 | CP119: 200
B120: 105 | C120: 38 | D120: 2 | E120: 5 | F120: 4 | G120: Rua Alberto Hoffman | H120: ok | I120: TECNOWATT IEP Alpha | J120: LP-3 VP-Lâmp.150 | K120: PHILIPS PLUS PIA | L120: Concreto CEEE | M120: IP-B2 | N120: Inspeção local: 0,5m de projeção; IP-B2: projeção de 2,5 m | O120: NÃO ATENDE | P120: ATENDE | Q120: NÃO ATENDE | R120: 9.5 | S120: - | T120: 2 | U120: 2 | V120: V5 | W120: 14.10222222 | X120: 5 | Y120: 0.09927513394 | Z120: 0.2 | AA120: - | AB120: - | AC120: 7.8 | AD120: 28 | AE120: 1 | AF120: Unilateral | AG120: 150 | AH120: 18 | AI120: 0 | AJ120: 0 | AK120: 0.3 | AL120: 2.05 | AM120: 2.35 | AN120: 10° | AO120: - | AP120: 8.71 | AQ120: 0.44 | AR120: - | AS120: - | AT120: ATENDE | AU120: ATENDE | AV120: ATENDE | AW120: ATENDE | AX120: - | AY120: - | AZ120: - | BA120: 2 | BB120: C3 | BC120: 5.48 | BD120: 0.69 | BE120: =S120 -> - | BF120: - | BG120: - | BH120: - | BI120: - | BJ120: - | BK120: - | BL120: - | BM120: - | BN120: 2 | BO120: P4 | BP120: 4.43 | BQ120: 0.76 | BR120: 3 | BS120: 0.2 | BT120: ATENDE | BU120: ATENDE | BV120: ATENDE | BW120: L2 | BX120: L2-50-1 | BZ120: 1 | CA120: 50 | CB120: 0 | CC120: 6174 | CD120: - | CI120: Canteiros de grama de 0,5m entre via e ciclovia; e ciclovia e passeio 2 | CJ120: Asfalto CIE N3 | CK120: 168 | CL120: 0 | CM120: 168 | CN120: 50 | CO120: 0 | CP120: 50
B121: 106 | C121: 39 | D121: 2 | E121: 3 | F121: 1 | G121: Rua Eustáquio Inácio | H121: ok | I121: TECNOWATT IEP Alpha | J121: LP-3 VP-Lâmp.150 | K121: PHILIPS PLUS PIA | L121: Concreto CEEE | M121: IP-B3 | O121: NÃO ATENDE | P121: ATENDE | Q121: NÃO ATENDE | R121: 5 | S121: 2.5 | T121: 2.5 | U121: 0 | V121: V4 | W121: 16.82222222 | X121: 10 | Y121: 0.09511228534 | Z121: 0.2 | AA121: - | AB121: - | AC121: 7.7 | AD121: 31 | AE121: 1 | AF121: Unilateral | AG121: 150 | AH121: 18 | AI121: 0 | AJ121: 0 | AK121: 2.6 | AL121: -0.26 | AM121: 2.34 | AN121: 0° | AO121: - | AP121: 12.46 | AQ121: 0.57 | AR121: - | AS121: - | AT121: ATENDE | AU121: ATENDE | AV121: ATENDE | AW121: ATENDE | AX121: - | AY121: - | AZ121: - | BE121: 2.8 | BF121: P4 | BG121: 11.55 | BH121: 0.49 | BI121: 3 | BJ121: 0.2 | BK121: ATENDE | BL121: ATENDE | BM121: ATENDE | BN121: 2.5 | BO121: P4 | BP121: 7.49 | BQ121: 0.63 | BR121: 3 | BS121: 0.2 | BT121: ATENDE | BU121: ATENDE | BV121: ATENDE | BW121: L2 | BX121: L2-60-1 | BZ121: 1 | CA121: 60 | CB121: 0 | CC121: 6915 | CD121: - | CJ121: Asfalto CIE N3 | CK121: 168 | CL121: 0 | CM121: 168 | CN121: 60 | CO121: 0 | CP121: 60
B122: 107 | C122: 40 | D122: 2 | E122: 6 | F122: 3 | G122: Rua Joffre Veríssimo | H122: ok | I122: TECNOWATT IEP Alpha | J122: LP-4 PC-Lâmp.70 | K122: SUPER 4Y | L122: Concreto CEEE | M122: IP-B7 | O122: NÃO ATENDE | P122: ATENDE | Q122: NÃO ATENDE | R122: 6 | S122: 1 | T122: - | U122: 0 | V122: V5 | W122: 5.131111111 | X122: 5 | Y122: 0.05846686877 | Z122: 0.2 | AA122: - | AB122: - | AC122: 7.1 | AD122: 35 | AE122: 1 | AF122: Unilateral | AG122: 70 | AH122: 12 | AI122: 0 | AJ122: 0 | AK122: 1 | AL122: 0.58 | AM122: 1.58 | AN122: 10° | AO122: - | AP122: 5 | AQ122: 0.41 | AR122: - | AS122: - | AT122: ATENDE | AU122: ATENDE | AV122: ATENDE | AW122: ATENDE | AX122: - | AY122: - | AZ122: - | BE122: =S122 -> 1 | BF122: P4 | BG122: 4.14 | BH122: 0.52 | BI122: 3 | BJ122: 0.2 | BK122: ATENDE | BL122: ATENDE | BM122: ATENDE | BN122: 1 | BO122: P4 | BP122: 3.74 | BQ122: 0.54 | BR122: 3 | BS122: 0.2 | BT122: ATENDE | BU122: ATENDE | BV122: ATENDE | BW122: L2 | BX122: L2-30-1 | BZ122: 1 | CA122: 30 | CB122: 0 | CC122: 3603 | CD122: - | CH122: 0° | CJ122: Asfalto CIE N3 | CK122: 82 | CL122: 0 | CM122: 82 | CN122: 30 | CO122: 0 | CP122: 30
B123: 108 | C123: 41 | D123: 2 | E123: 6 | F123: 4 | G123: Rua Dorival Castilho Machado | H123: ok | I123: TECNOWATT IEP Alpha | J123: LP-4 VP-Lâmp.100 | K123: SUPER 4Y | L123: Concreto CEEE | M123: IP-B7 | O123: NÃO ATENDE | P123: ATENDE | Q123: NÃO ATENDE | R123: 6.6 | S123: 1 | T123: 3.5 | U123: 0 | V123: V5 | W123: 6.468888889 | X123: 5 | Y123: 0.03091721058 | Z123: 0.2 | AA123: - | AB123: - | AC123: 7.1 | AD123: 33 | AE123: 1 | AF123: Unilateral | AG123: 100 | AH123: 14 | AI123: 0 | AJ123: 0 | AK123: 2.5 | AL123: -0.92 | AM123: 1.58 | AN123: 10° | AO123: - | AP123: 5.09 | AQ123: 0.39 | AR123: - | AS123: - | AT123: ATENDE | AU123: ATENDE | AV123: ATENDE | AW123: ATENDE | AX123: - | AY123: - | AZ123: - | BE123: 1 | BF123: P4 | BG123: 5.49 | BH123: 0.29 | BI123: 3 | BJ123: 0.2 | BK123: ATENDE | BL123: ATENDE | BM123: ATENDE | BN123: =T123 -> 3.5 | BO123: P4 | BP123: 3.08 | BQ123: 0.71 | BR123: 3 | BS123: 0.2 | BT123: ATENDE | BU123: ATENDE | BV123: ATENDE | BW123: L2 | BX123: L2-30-2 | BZ123: 1 | CA123: 30 | CB123: 0 | CC123: 3552 | CD123: - | CJ123: Asfalto CIE N3 | CK123: 114 | CL123: 0 | CM123: 114 | CN123: 30 | CO123: 0 | CP123: 30
B124: 109 | C124: 42 | D124: 2 | E124: 4 | F124: 1 | G124: Rua Guenoas | H124: ok | I124: TECNOWATT IEP Alpha | J124: LP-3 VP-Lâmp.150 | K124: PHILIPS PLUS PIA | L124: Concreto CEEE | M124: IP-B3 | O124: NÃO ATENDE | P124: ATENDE | Q124: NÃO ATENDE | R124: 7 | S124: 3.5 | T124: 3.5 | U124: 0 | V124: V5 | W124: 9.382222207 | X124: 5 | Y124: 0.02131691145 | Z124: 0.2 | AA124: - | AB124: - | AC124: 7.7 | AD124: 32 | AE124: 1 | AF124: Unilateral | AG124: 150 | AH124: 18 | AI124: 0 | AJ124: 0 | AK124: 0.3 | AL124: 2.04 | AM124: 2.34 | AN124: 0° | AO124: - | AP124: 8.98 | AQ124: 0.47 | AR124: - | AS124: - | AT124: ATENDE | AU124: ATENDE | AV124: ATENDE | AW124: ATENDE | AX124: - | AY124: - | AZ124: - | BE124: 3.5 | BF124: P4 | BG124: 4.63 | BH124: 0.4 | BI124: 3 | BJ124: 0.2 | BK124: ATENDE | BL124: ATENDE | BM124: ATENDE | BN124: 3.5 | BO124: P4 | BP124: 6.62 | BQ124: 0.59 | BR124: 3 | BS124: 0.2 | BT124: ATENDE | BU124: ATENDE | BV124: ATENDE | BW124: L2 | BX124: L2-50-1 | BZ124: 1 | CA124: 50 | CB124: 0 | CC124: 6174 | CD124: - | CJ124: Asfalto CIE N3 | CK124: 168 | CL124: 0 | CM124: 168 | CN124: 50 | CO124: 0 | CP124: 50
B125: 110 | C125: 43 | D125: 2 | E125: 3 | F125: 3 | G125: Rua Lemúria | H125: ok | I125: TECNOWATT IEP Alpha | J125: LP-3 VP-Lâmp.150 | K125: PHILIPS PLUS PIA | L125: Concreto CEEE | M125: IP-B3 | O125: NÃO ATENDE | P125: ATENDE | Q125: NÃO ATENDE | R125: 6 | S125: 2.5 | T125: 2 | U125: 0 | V125: V5 | W125: 11.65111111 | X125: 5 | Y125: 0.008582872401 | Z125: 0.2 | AA125: - | AB125: - | AC125: 7.7 | AD125: 45.5 | AE125: 1 | AF125: Unilateral | AG125: 150 | AH125: 18 | AI125: 0 | AJ125: 0 | AK125: 0.3 | AL125: 2.04 | AM125: 2.34 | AN125: 0° | AO125: - | AP125: 6.44 | AQ125: 0.26 | AR125: - | AS125: - | AT125: ATENDE | AU125: ATENDE | AV125: ATENDE | AW125: ATENDE | AX125: - | AY125: - | AZ125: - | BE125: 2.5 | BF125: P4 | BG125: 3.58 | BH125: 0.34 | BI125: 3 | BJ125: 0.2 | BK125: ATENDE | BL125: ATENDE | BM125: ATENDE | BN125: 2 | BO125: P4 | BP125: 5.33 | BQ125: 0.37 | BR125: 3 | BS125: 0.2 | BT125: ATENDE | BU125: ATENDE | BV125: ATENDE | BW125: L2 | BX125: L2-50-1 | BZ125: 1 | CA125: 50 | CB125: 0 | CC125: 6174 | CD125: - | CJ125: Asfalto CIE N3 | CK125: 168 | CL125: 0 | CM125: 168 | CN125: 50 | CO125: 0 | CP125: 50
B126: 111 | C126: 44 | D126: 2 | E126: 9 | F126: 1 | G126: Rua Dinarte Ribeiro | H126: ok | I126: Ametista 3 | J126: LP-2 VP-Lâmp.150 | K126: PHILIPS PLUS PIA | L126: Concreto CEEE | M126: IP-B1 e LP-D3 | N126: Possui dois circuitos de iluminação | O126: NÃO ATENDE | P126: ATENDE | Q126: NÃO ATENDE | R126: 9 | S126: 2.7 | T126: 4.9 | U126: 0 | V126: V4 | W126: 29.8644445 | X126: 10 | Y126: 0.05357541554 | Z126: 0.2 | AA126: - | AB126: - | AC126: 8,3 e 4 | AD126: 37 e 30 | AE126: 1 | AF126: Unilateral e Bilateral Alternada | AG126: 150 | AH126: 18 | AI126: 80 | AJ126: 0 | AK126: 0.3 | AL126: 2.7 | AM126: 3 | AN126: 10 e 0 | AO126: - | AP126: 24.29 | AQ126: 0.21 | AR126: - | AS126: - | AT126: ATENDE | AU126: ATENDE | AV126: ATENDE | AW126: ATENDE | AX126: - | AY126: - | AZ126: - | BE126: 2.7 | BF126: P4 | BG126: 18.82 | BH126: 0.33 | BI126: 3 | BJ126: 0.2 | BK126: ATENDE | BL126: ATENDE | BM126: ATENDE | BN126: 4.9 | BO126: P4 | BP126: 18.08 | BQ126: 0.28 | BR126: 3 | BS126: 0.2 | BT126: ATENDE | BU126: ATENDE | BV126: ATENDE | BW126: L2 | BX126: L2-30-1 | BY126: T-80-D | BZ126: 1 | CA126: 30 | CB126: 80 | CC126: 3603 | CD126: 6338 | CI126: IP Sec. (Bil. Alter.) distante de 20 m de IP Princ. | CJ126: Asfalto CIE N3 | CK126: 168 | CL126: 80 | CM126: 248 | CN126: 30 | CO126: 80 | CP126: 110
B127: 112 | C127: 45 | D127: 2 | E127: 0 | F127: 1 | G127: Rua Professor Cristiano Fisher | H127: ok | I127: Ametista 3 | J127: LP-1 VP-Lâmp.250 | K127: PHILIPS PLUS PIA | L127: Concreto CEEE | M127: IP-B1 | O127: NÃO ATENDE | P127: ATENDE | Q127: NÃO ATENDE | R127: 6.2 | S127: 4.6 | T127: 5 | U127: 0 | V127: V2 | W127: 31.83111106 | X127: 20 | Y127: 0.02513264492 | Z127: 0.3 | AA127: 1.5 | AB127: 0.4 | AC127: 8.3 | AD127: 46 | AE127: 1 | AF127: Unilateral | AG127: 250 | AH127: 24 | AI127: 0 | AJ127: 0 | AK127: 0.3 | AL127: 2.7 | AM127: 3 | AN127: 10° | AO127: - | AP127: 20.96 | AQ127: 0.22 | AR127: 1.63 | AS127: 0.42 | AT127: NÃO ATENDE | AU127: NÃO ATENDE | AV127: ATENDE | AW127: NÃO ATENDE | AX127: ATENDE | AY127: ATENDE | AZ127: ATENDE | BE127: 4.6 | BF127: P2 | BG127: 20.5 | BH127: 0.43 | BI127: 10 | BJ127: 0.25 | BK127: ATENDE | BL127: ATENDE | BM127: ATENDE | BN127: 5 | BO127: P2 | BP127: 9.77 | BQ127: 0.22 | BR127: 10 | BS127: 0.25 | BT127: NÃO ATENDE | BU127: NÃO ATENDE | BV127: NÃO ATENDE | BW127: L2 | BX127: L2-200-2 | BZ127: 1 | CA127: 200 | CB127: 0 | CC127: 21523 | CD127: - | CE127: IP-B4 | CF127: 9.1 | CG127: 3 | CH127: 0° | CJ127: Asfalto CIE N3 | CK127: 274 | CL127: 0 | CM127: 274 | CN127: 200 | CO127: 0 | CP127: 200
B128: 113 | C128: 46 | D128: 3 | E128: 11 | F128: 6 | G128: Rua Siqueira Campos | H128: OK(DIP) | I128: LED | J128: (não informado) | K128: (não informado) | L128: IP-PAC 8S | M128: IP-PAC | O128: ATENDE | P128: ATENDE | Q128: ATENDE | R128: 14 | S128: 2 | T128: 1.5 | U128: 0 | V128: V3 | W128: 54.59365079 | X128: 15 | Y128: 0.2289643542 | Z128: 0.2 | AA128: 1 | AB128: 0.4 | AC128: 8 | AD128: 23 | AE128: 1 | AF128: Unilateral | AG128: 100 | AH128: 0 | AI128: 0 | AJ128: 0 | AK128: 0.3 | AL128: 1.7 | AM128: 2 | AN128: 10° | AO128: - | AP128: 22.92 | AQ128: 0.56 | AR128: 1.45 | AS128: 0.4 | AT128: ATENDE | AU128: ATENDE | AV128: ATENDE | AW128: ATENDE | AX128: ATENDE | AY128: ATENDE | AZ128: ATENDE | BE128: 2 | BF128: P3 | BG128: 15.81 | BH128: 0.57 | BI128: 5 | BJ128: 0.2 | BK128: ATENDE | BL128: ATENDE | BM128: ATENDE | BN128: 1.5 | BO128: P3 | BP128: 10.12 | BQ128: 0.9 | BR128: 5 | BS128: 0.2 | BT128: ATENDE | BU128: ATENDE | BV128: ATENDE | BW128: L2 | BX128: L2-120-2 | BZ128: 1 | CA128: 120 | CB128: 0 | CC128: 13570 | CD128: - | CH128: 10° | CJ128: Asfalto CIE N3 | CK128: 100 | CL128: 0 | CM128: 100 | CN128: 120 | CO128: 0 | CP128: 120
B129: 114 | C129: 47 | D129: 3 | E129: 11 | F129: 4 | G129: Avenida da Legalidade e da Democracia | H129: OK(DIP) | I129: LED | J129: (não informado) | K129: (não informado) | L129: IP-PC 15 ou PA 15 | M129: (não informado) | N129: Reluz: IP-B7 (incoerente) | O129: NÃO ATENDE | P129: ATENDE | Q129: NÃO ATENDE | R129: 10 | S129: - | T129: - | U129: 0 | V129: V1 | W129: 40.4047619 | X129: 30 | Y129: 0.1856216853 | Z129: 0.4 | AA129: 2 | AB129: 0.4 | AC129: 12 | AD129: 30 | AE129: 1 | AF129: Unilateral | AG129: 210 | AH129: 0 | AI129: 0 | AJ129: 0 | AK129: 2.3 | AL129: -0.3 | AM129: 2 | AN129: 0° | AO129: - | AP129: 28.19 | AQ129: 0.62 | AR129: 1.75 | AS129: 0.47 | AT129: NÃO ATENDE | AU129: NÃO ATENDE | AV129: NÃO ATENDE | AW129: ATENDE | AX129: NÃO ATENDE | AY129: NÃO ATENDE | AZ129: ATENDE | BE129: - | BF129: - | BG129: - | BH129: - | BI129: - | BJ129: - | BK129: - | BL129: - | BM129: - | BN129: - | BO129: - | BP129: - | BQ129: - | BR129: - | BS129: - | BT129: - | BU129: - | BV129: - | BW129: L2 | BX129: L2-240-1 | BZ129: 1 | CA129: 240 | CB129: 0 | CC129: 25361 | CD129: - | CJ129: Asfalto CIE N3 | CK129: 210 | CL129: 0 | CM129: 210 | CN129: 240 | CO129: 0 | CP129: 240
B130: 115 | C130: 48 | D130: 3 | E130: 9 | F130: 4 | G130: Rua Dona Margarida | H130: ok | I130: Ametista 3 | J130: LP-2 VP-Lâmp.150 | K130: PHILIPS PLUS PIA | L130: Concreto CEEE | M130: IP-B1 | N130: Possui ponto próximo com IP-B4 | O130: NÃO ATENDE | P130: NÃO ATENDE | Q130: NÃO ATENDE | R130: 10 | S130: 2 | T130: 3 | U130: 0 | V130: V3 | W130: 12.84603175 | X130: 15 | Y130: 0.06227604102 | Z130: 0.2 | AA130: 1 | AB130: 0.4 | AC130: 8.3 | AD130: 38 | AE130: 1 | AF130: Unilateral | AG130: 150 | AH130: 18 | AI130: 0 | AJ130: 0 | AK130: 0.3 | AL130: 2.7 | AM130: 3 | AN130: 10° | AO130: - | AP130: 18.35 | AQ130: 0.31 | AR130: 1.25 | AS130: 0.45 | AT130: ATENDE | AU130: ATENDE | AV130: ATENDE | AW130: ATENDE | AX130: ATENDE | AY130: ATENDE | AZ130: ATENDE | BE130: 2 | BF130: P3 | BG130: 11.04 | BH130: 0.35 | BI130: 5 | BJ130: 0.2 | BK130: ATENDE | BL130: ATENDE | BM130: ATENDE | BN130: 3 | BO130: P3 | BP130: 13.23 | BQ130: 0.67 | BR130: 5 | BS130: 0.2 | BT130: ATENDE | BU130: ATENDE | BV130: ATENDE | BW130: L2 | BX130: L2-150-2 | BZ130: 1 | CA130: 150 | CB130: 0 | CC130: 16039 | CD130: - | CE130: IP-B4 | CF130: 9.1 | CG130: 3 | CH130: 0° | CJ130: Asfalto CIE N3 | CK130: 168 | CL130: 0 | CM130: 168 | CN130: 150 | CO130: 0 | CP130: 150
B131: 116 | C131: 49 | D131: 3 | E131: 9 | F131: 5 | G131: Rua Garibaldi | H131: ok | I131: TECNOWATT IEP Alpha | J131: LP-3 VP-Lâmp.150 | K131: PHILIPS PLUS PIA | L131: Ferro CEEE | M131: IP-B1 | O131: NÃO ATENDE | P131: ATENDE | Q131: NÃO ATENDE | R131: 8 | S131: 2.8 | T131: 4 | U131: 0 | V131: V3 | W131: 18.63809524 | X131: 15 | Y131: 0.01609606541 | Z131: 0.2 | AA131: 1 | AB131: 0.4 | AC131: 8.3 | AD131: 34 | AE131: 1 | AF131: Unilateral | AG131: 150 | AH131: 18 | AI131: 0 | AJ131: 0 | AK131: 0.3 | AL131: 2.7 | AM131: 3 | AN131: 10° | AO131: - | AP131: 17.35 | AQ131: 0.31 | AR131: 1.27 | AS131: 0.43 | AT131: ATENDE | AU131: ATENDE | AV131: ATENDE | AW131: ATENDE | AX131: ATENDE | AY131: ATENDE | AZ131: ATENDE | BE131: 2.8 | BF131: P3 | BG131: 8.94 | BH131: 0.35 | BI131: 5 | BJ131: 0.2 | BK131: ATENDE | BL131: ATENDE | BM131: ATENDE | BN131: 4 | BO131: P3 | BP131: 14 | BQ131: 0.6 | BR131: 5 | BS131: 0.2 | BT131: ATENDE | BU131: ATENDE | BV131: ATENDE | BW131: L2 | BX131: L2-100-2 | BZ131: 1 | CA131: 100 | CB131: 0 | CC131: 12385 | CD131: - | CH131: 0° | CJ131: Asfalto CIE N3 | CK131: 168 | CL131: 0 | CM131: 168 | CN131: 100 | CO131: 0 | CP131: 100
B132: 117 | C132: 50 | D132: 3 | E132: 11 | F132: 1 | G132: Estrada Costa Gama | H132: - | I132: ILUMATIC ILP -450 | J132: LP-3 VP-Lâmp.150 | K132: PHILIPS PLUS PIA | L132: Concreto CEEE | M132: IP-B3 | N132: Possui ponto próximo com IP-B6 | O132: NÃO ATENDE | P132: NÃO ATENDE | Q132: NÃO ATENDE | R132: 12.8 | S132: 2 | T132: 1.8 | U132: 0 | V132: V2 | W132: 7.366666651 | X132: 20 | Y132: 0.1085972869 | Z132: 0.3 | AA132: 1.5 | AB132: 0.4 | AC132: 7.7 | AD132: 33 | AE132: 1 | AF132: Unilateral | AG132: 100 | AH132: 14 | AI132: 0 | AJ132: 0 | AK132: 0.3 | AL132: 2.04 | AM132: 2.34 | AN132: 0° | AO132: - | AP132: 25.49 | AQ132: 0.5 | AR132: 1.6 | AS132: 0.44 | AT132: ATENDE | AU132: ATENDE | AV132: ATENDE | AW132: ATENDE | AX132: ATENDE | AY132: ATENDE | AZ132: ATENDE | BE132: 2 | BF132: P2 | BG132: 18.57 | BH132: 0.59 | BI132: 10 | BJ132: 0.25 | BK132: ATENDE | BL132: ATENDE | BM132: ATENDE | BN132: 1.8 | BO132: P2 | BP132: 12.63 | BQ132: 0.81 | BR132: 10 | BS132: 0.25 | BT132: ATENDE | BU132: ATENDE | BV132: ATENDE | BW132: L2 | BX132: L2-200-1 | BZ132: 1 | CA132: 200 | CB132: 0 | CC132: 21523 | CD132: - | CE132: IP-B4 | CF132: 9.1 | CG132: 3 | CH132: 10° | CJ132: Asfalto CIE N3 | CK132: 114 | CL132: 0 | CM132: 114 | CN132: 200 | CO132: 0 | CP132: 200
B133: 118 | C133: 51 | D133: 4 | E133: 10 | F133: 4 | G133: Rua José de Alencar | H133: ok | I133: Ametista 3 | J133: LP-2 VP-Lâmp.150 | K133: PHILIPS PLUS PIA | L133: Concreto CEEE | M133: IP-B1 | O133: ATENDE | P133: ATENDE | Q133: ATENDE | R133: 14 | S133: 1.5 | T133: 3 | U133: 2x0,8 | V133: V2 | W133: 22.99259259 | X133: 20 | Y133: 0.3479381443 | Z133: 0.3 | AA133: 1.5 | AB133: 0.4 | AC133: 8.3 | AD133: 18 | AE133: 1 | AF133: Bilateral Alternada | AG133: 150 | AH133: 18 | AI133: 0 | AJ133: 0 | AK133: 1.1 | AL133: 1.9 | AM133: 3 | AN133: 10° | AO133: 0.8 | AP133: 27.73 | AQ133: 0.8 | AR133: 1.88 | AS133: 0.7 | AT133: ATENDE | AU133: ATENDE | AV133: ATENDE | AW133: ATENDE | AX133: ATENDE | AY133: ATENDE | AZ133: ATENDE | BA133: 2x0,8 | BB133: C2 | BC133: 20.19 | BD133: 0.92 | BE133: 3.5 | BF133: P2 | BG133: 13.96 | BH133: 0.76 | BI133: 10 | BJ133: 0.25 | BK133: ATENDE | BL133: ATENDE | BM133: ATENDE | BN133: 5.5 | BO133: P2 | BP133: 11.91 | BQ133: 0.62 | BR133: 10 | BS133: 0.25 | BT133: ATENDE | BU133: ATENDE | BV133: ATENDE | BW133: L2 | BX133: L2-50-2 | BZ133: 1 | CA133: 50 | CB133: 0 | CC133: 6041 | CD133: - | CJ133: Asfalto CIE N3 | CK133: 168 | CL133: 0 | CM133: 168 | CN133: 50 | CO133: 0 | CP133: 50
B134: 119 | C134: 52 | D134: 4 | E134: 10 | F134: 5 | G134: Avenida São Sebastião | H134: - | I134: Indalux | J134: LP-3 VP-Lâmp.150 | K134: PHILIPS PLUS PIA | L134: Concreto CEEE | M134: IP-B3 | O134: NÃO ATENDE | P134: NÃO ATENDE | Q134: NÃO ATENDE | R134: 19.5 | S134: 5.5 | T134: 4.5 | U134: 0 | V134: V2 | W134: 5.320987653 | X134: 20 | Y134: 0 | Z134: 0.3 | AA134: 1.5 | AB134: 0.4 | AC134: 7.7 | AD134: 38 | AE134: 2 | AF134: Canteiro Central | AG134: 150 | AH134: 18 | AI134: 0 | AJ134: 0 | AK134: 3 | AL134: -0.66 | AM134: 2.34 | AN134: 0° | AO134: 6 | AP134: 26.45 | AQ134: 0.44 | AR134: 1.66 | AS134: 0.42 | AT134: ATENDE | AU134: ATENDE | AV134: ATENDE | AW134: ATENDE | AX134: ATENDE | AY134: ATENDE | AZ134: ATENDE | BE134: =S134 -> 5.5 | BF134: P2 | BG134: 11.73 | BH134: 0.55 | BI134: 10 | BJ134: 0.25 | BK134: ATENDE | BL134: ATENDE | BM134: ATENDE | BN134: =T134 -> 4.5 | BO134: P2 | BP134: 12.58 | BQ134: 0.61 | BR134: 10 | BS134: 0.25 | BT134: ATENDE | BU134: ATENDE | BV134: ATENDE | BW134: L2 | BX134: L2-150-1 | BZ134: 2 | CA134: 150 | CB134: 0 | CC134: 17710 | CD134: - | CE134: IP-B1 | CF134: 8.3 | CG134: 3 | CH134: 10° | CJ134: Asfalto CIE N3 | CK134: 336 | CL134: 0 | CM134: 336 | CN134: 300 | CO134: 0 | CP134: 300
B135: 120 | C135: 53 | D135: 4 | E135: 0 | F135: 3 | G135: Rua Nestor Ludwig | H135: - | J135: (não informado) | K135: (não informado) | L135: Concreto CEEE | M135: IP-B4 + IP-B7 | N135: Não consta informação de poste/braço | O135: NÃO ATENDE | P135: NÃO ATENDE | Q135: NÃO ATENDE | R135: 12 | S135: 3 | T135: 3 | U135: 3 | V135: V3 | W135: 14.66172832 | X135: 15 | Y135: 0.1227686063 | Z135: 0.2 | AA135: 1 | AB135: 0.4 | AC135: 9,1 e 7,7 | AD135: 28 | AE135: 1 | AF135: Unilateral | AG135: 250 | AH135: 24 | AI135: 150 | AJ135: 18 | AK135: 0.3 | AL135: 2,7 e 2,04 | AM135: 3 e 2,34 | AN135: 10° e 0° | AO135: - | AP135: 18.37 | AQ135: 0.54 | AR135: 1.11 | AS135: 0.58 | AT135: ATENDE | AU135: ATENDE | AV135: ATENDE | AW135: ATENDE | AX135: ATENDE | AY135: ATENDE | AZ135: ATENDE | BA135: 3 | BB135: C3 | BC135: 13.51 | BD135: 0.57 | BE135: 3 | BF135: P3 | BG135: 12.07 | BH135: 0.79 | BI135: 5 | BJ135: 0.2 | BK135: ATENDE | BL135: ATENDE | BM135: ATENDE | BN135: 3 | BO135: P3 | BP135: 11.38 | BQ135: 0.49 | BR135: 5 | BS135: 0.2 | BT135: ATENDE | BU135: ATENDE | BV135: ATENDE | BW135: L2 | BX135: L2-100-2 | BY135: L2-30-1 | BZ135: 1 | CA135: 100 | CB135: 30 | CC135: 12385 | CD135: 3603 | CJ135: Asfalto CIE N3 | CK135: 274 | CL135: 168 | CM135: 442 | CN135: 100 | CO135: 30 | CP135: 130
B136: 121 | C136: 54 | D136: 4 | E136: 2 | F136: 3 | G136: Estrada João de Oliveira Remião | H136: ok | I136: Opalo | J136: LP-4 PC-Lâmp.100 | K136: SUPER 4Y | L136: IP- PA 12 | M136: Núcleo de 2 lum. (180°) | O136: NÃO ATENDE | P136: NÃO ATENDE | Q136: NÃO ATENDE | R136: 15.4 | S136: 3.5 | T136: - | U136: 0 | V136: V1 | W136: 20.8172839 | X136: 30 | Y136: 0.0480370064 | Z136: 0.4 | AA136: 2 | AB136: 0.4 | AC136: 12 | AD136: 29 | AE136: 2 | AF136: Canteiro Central | AG136: 250 | AH136: 24 | AI136: 0 | AJ136: 0 | AK136: 0.5 | AL136: =AM136-AK136 -> 0 | AM136: 0.5 | AN136: 0° | AO136: 1 | AP136: 37.18 | AQ136: 0.68 | AR136: 2.51 | AS136: 0.56 | AT136: ATENDE | AU136: ATENDE | AV136: ATENDE | AW136: ATENDE | AX136: ATENDE | AY136: ATENDE | AZ136: ATENDE | BE136: 3.5 | BF136: P2 | BG136: 23.55 | BH136: 0.77 | BI136: 10 | BJ136: 0.25 | BK136: ATENDE | BL136: ATENDE | BM136: ATENDE | BN136: - | BO136: - | BP136: - | BQ136: - | BR136: - | BS136: - | BT136: - | BU136: - | BV136: - | BW136: L2 | BX136: L2-150-1 | BZ136: 2 | CA136: 150 | CB136: 0 | CC136: 17710 | CD136: - | CJ136: Asfalto CIE N3 | CK136: 548 | CL136: 0 | CM136: 548 | CN136: 300 | CO136: 0 | CP136: 300
B137: 122 | C137: 55 | D137: 6 | E137: 10 | F137: 6 | G137: Avenida Adelino Ferreira Jardim | H137: ok | I137: Ametista 3 | J137: LP-2 VP-Lâmp.150 | K137: PHILIPS PLUS PIA | L137: Concreto CEEE | M137: IP-B2 | O137: NÃO ATENDE | P137: NÃO ATENDE | Q137: NÃO ATENDE | R137: 23 | S137: 2.5 | T137: 1.5 | U137: 0 | V137: V2 | W137: 17.5973913 | X137: 20 | Y137: 0.04546128379 | Z137: 0.3 | AA137: 1.5 | AB137: 0.4 | AC137: 7.8 | AD137: 31 | AE137: 2 | AF137: Canteiro Central | AG137: 150 | AH137: 18 | AI137: 0 | AJ137: 0 | AK137: 0.5 | AL137: 1.85 | AM137: 2.35 | AN137: 10° | AO137: 1 | AP137: 27.23 | AQ137: 0.45 | AR137: 1.66 | AS137: 0.44 | AT137: ATENDE | AU137: ATENDE | AV137: ATENDE | AW137: ATENDE | AX137: ATENDE | AY137: ATENDE | AZ137: ATENDE | BE137: 2.5 | BF137: P2 | BG137: 14.04 | BH137: 0.73 | BI137: 10 | BJ137: 0.25 | BK137: ATENDE | BL137: ATENDE | BM137: ATENDE | BN137: 1.5 | BO137: P2 | BP137: 15.15 | BQ137: 0.75 | BR137: 10 | BS137: 0.25 | BT137: ATENDE | BU137: ATENDE | BV137: ATENDE | BW137: L2 | BX137: L2-150-2 | BZ137: 2 | CA137: 150 | CB137: 0 | CC137: 16039 | CD137: - | CJ137: Asfalto CIE N3 | CK137: 336 | CL137: 0 | CM137: 336 | CN137: 300 | CO137: 0 | CP137: 300
B138: 123 | C138: 56 | D138: 6 | E138: 0 | F138: 4 | G138: Avenida Plínio Brasil | H138: ok | I138: Ametista 3 | J138: LP-1 VP-Lâmp.250 | K138: PHILIPS PLUS PIA | L138: Concreto CEEE | M138: IP-B1 | N138: Possui ponto próximo com IP-B4 | O138: NÃO ATENDE | P138: NÃO ATENDE | Q138: NÃO ATENDE | R138: 22 | S138: 1.5 | T138: 2 | U138: 0 | V138: V1 | W138: 10.83846154 | X138: 30 | Y138: 0.009226401703 | Z138: 0.4 | AA138: 2 | AB138: 0.4 | AC138: 8.3 | AD138: 31 | AE138: 1 | AF138: Bilateral Frontal | AG138: 250 | AH138: 24 | AI138: 0 | AJ138: 0 | AK138: 0.3 | AL138: 2.7 | AM138: 3 | AN138: 10° | AO138: 2 | AP138: 38.99 | AQ138: 0.4 | AR138: 2.43 | AS138: 0.46 | AT138: ATENDE | AU138: ATENDE | AV138: ATENDE | AW138: ATENDE | AX138: ATENDE | AY138: ATENDE | AZ138: ATENDE | BE138: 1.5 | BF138: P2 | BG138: 23.01 | BH138: 0.58 | BI138: 10 | BJ138: 0.25 | BK138: ATENDE | BL138: ATENDE | BM138: ATENDE | BN138: 2 | BO138: P2 | BP138: 22.2 | BQ138: 0.59 | BR138: 10 | BS138: 0.25 | BT138: ATENDE | BU138: ATENDE | BV138: ATENDE | BW138: L2 | BX138: L2-200-1 | BZ138: 1 | CA138: 200 | CB138: 0 | CC138: 21523 | CD138: - | CJ138: Asfalto CIE N3 | CK138: 274 | CL138: 0 | CM138: 274 | CN138: 200 | CO138: 0 | CP138: 200
B139: 124 | C139: 57 | D139: 6 | E139: 11 | F139: 3 | G139: Avenida Bento Gonçalves | H139: ok | I139: Ametista 3 | J139: LP-2 VP-Lâmp.250 | K139: PHILIPS PLUS PIA | L139: Concreto CEEE | M139: IP-B1 | O139: NÃO ATENDE | P139: NÃO ATENDE | Q139: NÃO ATENDE | R139: 24 | S139: 3.4 | T139: 3.4 | U139: 0 | V139: V1 | W139: 22.08547009 | X139: 30 | Y139: 0.1086687307 | Z139: 0.4 | AA139: 2 | AB139: 0.4 | AC139: 8.3 | AD139: 32 | AE139: 1 | AF139: Bilateral Frontal | AG139: 250 | AH139: 24 | AI139: 0 | AJ139: 0 | AK139: 0.3 | AL139: 2.7 | AM139: 3 | AN139: 10° | AO139: 1.5 | AP139: 33.02 | AQ139: 0.53 | AR139: 2.09 | AS139: 0.51 | AT139: ATENDE | AU139: ATENDE | AV139: ATENDE | AW139: ATENDE | AX139: ATENDE | AY139: ATENDE | AZ139: ATENDE | BE139: 3.4 | BF139: P2 | BG139: 20.04 | BH139: 0.54 | BI139: 10 | BJ139: 0.25 | BK139: ATENDE | BL139: ATENDE | BM139: ATENDE | BN139: 3.4 | BO139: P2 | BP139: 20.04 | BQ139: 0.54 | BR139: 10 | BS139: 0.25 | BT139: ATENDE | BU139: ATENDE | BV139: ATENDE | BW139: L2 | BX139: L2-200-1 | BZ139: 1 | CA139: 200 | CB139: 0 | CC139: 21523 | CD139: - | CH139: 0° | CJ139: Asfalto CIE N3 | CK139: 274 | CL139: 0 | CM139: 274 | CN139: 200 | CO139: 0 | CP139: 200
B140: 125 | C140: 58 | D140: 6 | E140: 2 | F140: 1 | G140: Avenida Princesa Isabel | H140: - | I140: Ilumatic | J140: LP-7 VP-Lâmp.400 | K140: SUPER 4Y | L140: IP-PA 15 | M140: Núcleo de 2 lum. (180°) | O140: NÃO ATENDE | P140: NÃO ATENDE | Q140: NÃO ATENDE | R140: 22 | S140: 4.2 | T140: 2.2 | U140: 0 | V140: V1 | W140: 13.90940171 | X140: 30 | Y140: 0.02156814551 | Z140: 0.4 | AA140: 2 | AB140: 0.4 | AC140: 15 | AD140: 43 | AE140: 2 | AF140: Canteiro Central | AG140: 400 | AH140: 32 | AI140: 0 | AJ140: 0 | AK140: 0.75 | AL140: -0.25 | AM140: 0.5 | AN140: 0° | AO140: 1.5 | AP140: 41.26 | AQ140: 0.47 | AR140: 2.15 | AS140: 0.48 | AT140: ATENDE | AU140: ATENDE | AV140: ATENDE | AW140: ATENDE | AX140: ATENDE | AY140: ATENDE | AZ140: ATENDE | BE140: 4.2 | BF140: P2 | BG140: 25.8 | BH140: 0.54 | BI140: 10 | BJ140: 0.25 | BK140: ATENDE | BL140: ATENDE | BM140: ATENDE | BN140: 2.2 | BO140: P2 | BP140: 28.22 | BQ140: 0.58 | BR140: 10 | BS140: 0.25 | BT140: ATENDE | BU140: ATENDE | BV140: ATENDE | BW140: L2 | BX140: L2-200-1 | BZ140: 4 | CA140: 200 | CB140: 0 | CC140: 21523 | CD140: - | CE140: Aumento de pontos por postes para 4 | CJ140: Asfalto CIE N3 | CK140: 864 | CL140: 0 | CM140: 864 | CN140: 800 | CO140: 0 | CP140: 800
B141: 126 | C141: 59 | D141: 6 | E141: 2 | F141: 4 | G141: Avenida Protásio Alves | H141: ok | I141: Ametista 3 | J141: LP-1 VP-Lâmp.250 | K141: PHILIPS PLUS PIA | L141: Concreto CEEE | M141: IP-B2 | N141: Possui diversos pontos com IP-B1 do outro lado da avenida | O141: NÃO ATENDE | P141: NÃO ATENDE | Q141: NÃO ATENDE | R141: 23 | S141: 1.5 | T141: 1.5 | U141: 0 | V141: V1 | W141: 25.81538462 | X141: 30 | Y141: 0.02711561383 | Z141: 0.4 | AA141: 2 | AB141: 0.4 | AC141: 7.8 | AD141: 40 | AE141: 1 | AF141: Bilateral Frontal | AG141: 250 | AH141: 24 | AI141: 0 | AJ141: 0 | AK141: 0.3 | AL141: 2.05 | AM141: 2.35 | AN141: 10° | AO141: 1 | AP141: 31.55 | AQ141: 0.43 | AR141: 1.99 | AS141: 0.4 | AT141: ATENDE | AU141: ATENDE | AV141: ATENDE | AW141: ATENDE | AX141: ATENDE | AY141: ATENDIMENTO LIMIAR | AZ141: ATENDE | BE141: 1.5 | BF141: P2 | BG141: 20.19 | BH141: 0.48 | BI141: 10 | BJ141: 0.25 | BK141: ATENDE | BL141: ATENDE | BM141: ATENDE | BN141: 1.5 | BO141: P2 | BP141: 20.19 | BQ141: 0.48 | BR141: 10 | BS141: 0.25 | BT141: ATENDE | BU141: ATENDE | BV141: ATENDE | BW141: L2 | BX141: L2-240-1 | BZ141: 1 | CA141: 240 | CB141: 0 | CC141: 25361 | CD141: - | CE141: IP-B4 | CF141: 9.1 | CG141: 3 | CH141: 0° | CJ141: Asfalto CIE N3 | CK141: 274 | CL141: 0 | CM141: 274 | CN141: 240 | CO141: 0 | CP141: 240
B142: 127 | C142: 60 | D142: 6 | E142: 1 | F142: 1 | G142: Avenida Sertório, Ponto 1 | H142: - | I142: Ilumatic | J142: LP-7 VP-Lâmp.400 | K142: SUPER 4Y | L142: IP-PA 15 | M142: Núcleo de 2 lum. (180°) | O142: NÃO ATENDE | P142: NÃO ATENDE | Q142: NÃO ATENDE | R142: 23 | S142: 4.6 | T142: 3.9 | U142: 0 | V142: V1 | W142: 16.02393162 | X142: 30 | Y142: 0.01872199701 | Z142: 0.4 | AA142: 2 | AB142: 0.4 | AC142: 15 | AD142: 44 | AE142: 2 | AF142: Canteiro Central | AG142: 400 | AH142: 32 | AI142: 0 | AJ142: 0 | AK142: 1 | AL142: -0.4 | AM142: 0.6 | AN142: 0° | AO142: 2 | AP142: 38.58 | AQ142: 0.5 | AR142: 2.24 | AS142: 0.47 | AT142: ATENDE | AU142: ATENDE | AV142: ATENDE | AW142: ATENDE | AX142: ATENDE | AY142: ATENDE | AZ142: ATENDE | BE142: 4.6 | BF142: P2 | BG142: 25.11 | BH142: 0.58 | BI142: 10 | BJ142: 0.25 | BK142: ATENDE | BL142: ATENDE | BM142: ATENDE | BN142: 3.9 | BO142: P2 | BP142: 25.82 | BQ142: 0.6 | BR142: 10 | BS142: 0.25 | BT142: ATENDE | BU142: ATENDE | BV142: ATENDE | BW142: L2 | BX142: L2-200-2 | BZ142: 4 | CA142: 200 | CB142: 0 | CC142: 21523 | CD142: - | CE142: Aumento de pontos por postes para 4 | CJ142: Asfalto CIE N3 | CK142: 864 | CL142: 0 | CM142: 864 | CN142: 800 | CO142: 0 | CP142: 800
B143: 128 | C143: 61 | D143: 6 | E143: 11 | F143: 5 | G143: Avenida Borges de Medeiros | H143: OK(DIP) | I143: LED | J143: (não informado) | K143: (não informado) | L143: (não informado) | M143: (não informado) | N143: Não possui informação de luminária/braço/poste | O143: ATENDE | P143: ATENDE | Q143: ATENDE | R143: 18 | S143: 4.5 | T143: 2.4 | U143: 0 | V143: V1 | W143: 63.94880299 | X143: 30 | Y143: 0.4269040032 | Z143: 0.4 | AA143: 2 | AB143: 0.4 | AC143: 8 | AD143: 23 | AE143: 2 | AF143: Canteiro Central | AG143: 150 | AH143: 0 | AI143: 0 | AJ143: 0 | AK143: 1 | AL143: 1 | AM143: 2 | AN143: 0° | AO143: 2 | AP143: 45.25 | AQ143: 0.65 | AR143: 2.88 | AS143: 0.53 | AT143: ATENDE | AU143: ATENDE | AV143: ATENDE | AW143: ATENDE | AX143: ATENDE | AY143: ATENDE | AZ143: ATENDE | BE143: 4.5 | BF143: P1 | BG143: 21.18 | BH143: 0.62 | BI143: 20 | BJ143: 0.3 | BK143: ATENDE | BL143: ATENDE | BM143: ATENDE | BN143: 2.4 | BO143: P1 | BP143: 26.04 | BQ143: 0.77 | BR143: 20 | BS143: 0.3 | BT143: ATENDE | BU143: ATENDE | BV143: ATENDE | BW143: L2 | BX143: L2-150-2 | BZ143: 2 | CA143: 150 | CB143: 0 | CC143: 16039 | CD143: - | CJ143: Asfalto CIE N3 | CK143: 300 | CL143: 0 | CM143: 300 | CN143: 300 | CO143: 0 | CP143: 300
B144: 129 | C144: 62 | D144: 6 | E144: 1 | F144: 2 | G144: Avenida Wenceslau Escobar | H144: - | I144: Ilumatic | J144: LP-7 VP-Lâmp.400 | K144: SUPER 4Y | L144: Concreto CEEE | M144: Núcleo de 4 lum. (90°) | O144: NÃO ATENDE | P144: NÃO ATENDE | Q144: NÃO ATENDE | R144: 22 | S144: 2.7 | T144: - | U144: 0 | V144: V1 | W144: 16.40150876 | X144: 30 | Y144: 0.3414319979 | Z144: 0.4 | AA144: 2 | AB144: 0.4 | AC144: 20 | AD144: 40 | AE144: 4 | AF144: Canteiro Central | AG144: 400 | AH144: 32 | AI144: 0 | AJ144: 0 | AK144: 0.5 | AL144: 0 | AM144: 0.5 | AN144: 0° | AO144: 1 | AP144: 40.51 | AQ144: 0.78 | AR144: 2.47 | AS144: 0.65 | AT144: =IF(AX144="-",IF(AU144="ATENDE","ATENDE","NÃO ATENDE"),IF(AU144="NÃO ATENDE","NÃO ATENDE",IF(AX144="NÃO ATENDE","NÃO ATENDE","ATENDE"))) -> ATENDE | AU144: =IF(AV144="NÃO ATENDE","NÃO ATENDE",IF(AW144="ATENDE","ATENDE","NÃO ATENDE")) -> ATENDE | AV144: =IF(AP144>=X144,"ATENDE",IF(AP144>=0.99*X144,"ATENDIMENTO LIMIAR","NÃO ATENDE")) -> ATENDE | AW144: =IF(AQ144>=Z144,"ATENDE",IF(AQ144>=(Z144-0.02),"ATENDIMENTO LIMIAR","NÃO ATENDE")) -> ATENDE | AX144: =IF(V144="V4","-",IF(V144="V5","-",IF(AY144="NÃO ATENDE","NÃO ATENDE",IF(AZ144="ATENDE","ATENDE","NÃO ATENDE")))) -> ATENDE | AY144: =IF(V144="V4","-",IF(V144="V5","-",IF(AR144>=AA144,"ATENDE",IF(AR144>=0.99*AA144,"ATENDIMENTO LIMIAR","NÃO ATENDE")))) -> ATENDE | AZ144: =IF(V144="V4","-",IF(V144="V5","-",IF(AS144>=AB144,"ATENDE",IF(AS144>=(AB144-0.02),"ATENDIMENTO LIMIAR","NÃO ATENDE")))) -> ATENDE | BE144: 2.7 | BF144: P1 | BG144: 33.09 | BH144: 0.87 | BI144: 20 | BJ144: 0.3 | BK144: =IF(BL144="-","-",IF(BL144="NÃO ATENDE","NÃO ATENDE",IF(BM144="NÃO ATENDE","NÃO ATENDE","ATENDE"))) -> ATENDE | BL144: =IF(BE144="-","-",IF(BG144>=BI144,"ATENDE",IF(BG144>=(BI144*0.99),"ATENDIMENTO LIMIAR","NÃO ATENDE"))) -> ATENDE | BM144: =IF(BE144="-","-",IF(BH144>=BJ144,"ATENDE",IF(BH144>=(BJ144-0.02),"ATENDIMENTO LIMIAR","NÃO ATENDE"))) -> ATENDE | BN144: 2.7 | BO144: P1 | BP144: 33.09 | BQ144: 0.87 | BR144: 20 | BS144: 0.3 | BT144: =IF(BN144="-","-",IF(BU144="NÃO ATENDE","NÃO ATENDE",IF(BV144="NÃO ATENDE","NÃO ATENDE","ATENDE"))) -> ATENDE | BU144: =IF(BN144="-","-",IF(BP144>=(BR144),"ATENDE",IF(BP144>=(0.99*BR144),"ATENDIMENTO LIMIAR","NÃO ATENDE"))) -> ATENDE | BV144: =IF(BN144="-","-",IF(BQ144>=BS144,"ATENDE",IF(BQ144>=(BS144-0.02),"ATENDIMENTO LIMIAR","NÃO ATENDE"))) -> ATENDE | BW144: L2 | BX144: L2-240-2 | BZ144: 4 | CA144: 240 | CB144: 0 | CC144: 25347 | CD144: - | CJ144: Asfalto CIE N3 | CK144: =(AG144+AH144)*AE144 -> 1728 | CL144: =(AI144+AJ144) -> 0 | CM144: =CK144+CL144 -> 1728 | CN144: =CA144*BZ144 -> 960 | CO144: =CB144 -> 0 | CP144: =CN144+CO144 -> 960
B145: 130 | C145: 63 | D145: 6 | E145: 2 | F145: 2 | G145: Avenida da Cavalhada | H145: ok | I145: Ametista 3 | J145: LP-2 VP-Lâmp.250 | K145: PHILIPS PLUS PIA | L145: Concreto CEEE | M145: IP-B1 | N145: Possui ponto próximo com IP-B4 | O145: NÃO ATENDE | P145: NÃO ATENDE | Q145: NÃO ATENDE | R145: 22.5 | S145: 3.5 | T145: 3.5 | U145: 0 | V145: V1 | W145: 19.8344424 | X145: 30 | Y145: 0.05041734875 | Z145: 0.4 | AA145: 2 | AB145: 0.4 | AC145: 8.3 | AD145: 40 | AE145: 1 | AF145: Bilateral Alternada | AG145: 250 | AH145: 24 | AI145: 0 | AJ145: 0 | AK145: 0.3 | AL145: 2.7 | AM145: 3 | AN145: 10° | AO145: 2 | AP145: 33.81 | AQ145: 0.28 | AR145: 2.15 | AS145: 0.41 | AT145: NÃO ATENDE | AU145: NÃO ATENDE | AV145: ATENDE | AW145: NÃO ATENDE | AX145: ATENDE | AY145: ATENDE | AZ145: ATENDE | BE145: 3.5 | BF145: P2 | BG145: 15.71 | BH145: 0.34 | BI145: 10 | BJ145: 0.25 | BK145: ATENDE | BL145: ATENDE | BM145: ATENDE | BN145: =T145 -> 3.5 | BO145: P2 | BP145: 15.71 | BQ145: 0.34 | BR145: 10 | BS145: 0.25 | BT145: ATENDE | BU145: ATENDE | BV145: ATENDE | BW145: L2 | BX145: L2-240-2 | BZ145: 1 | CA145: 240 | CB145: 0 | CC145: 25347 | CD145: - | CE145: IP-B4 | CF145: 9.1 | CG145: 3 | CH145: 0° | CJ145: Asfalto CIE N3 | CK145: 274 | CL145: 0 | CM145: 274 | CN145: 240 | CO145: 0 | CP145: 240
B146: 131 | C146: 64 | D146: 6 | E146: 0 | F146: 5 | G146: Avenida Diário de Notícias | H146: - | J146: (não informado) | K146: (não informado) | L146: Concreto CEEE | M146: IP-B4 + IP-B3 | N146: Não possui informação de luminária/braço/poste | O146: NÃO ATENDE | P146: NÃO ATENDE | Q146: NÃO ATENDE | R146: 22 | S146: 1 | T146: - | U146: 2.5 | V146: V1 | W146: 23.93225601 | X146: 30 | Y146: 0.3551691908 | Z146: 0.4 | AA146: 2 | AB146: 0.4 | AC146: 9,1 e 7,7 | AD146: 35 | AE146: 1 | AF146: Bilateral Alternada | AG146: 250 | AH146: 24 | AI146: 150 | AJ146: 18 | AK146: 0.3 | AL146: 2,7 e 2,04 | AM146: 3 e 2,34 | AN146: 10 e 0 | AO146: 3 | AP146: 33.82 | AQ146: 0.41 | AR146: 2.13 | AS146: 0.47 | AT146: ATENDE | AU146: ATENDE | AV146: ATENDE | AW146: ATENDE | AX146: ATENDE | AY146: ATENDE | AZ146: ATENDE | BA146: 2.5 | BB146: C3 | BC146: 21.57 | BD146: 0.6 | BE146: 1 | BF146: P2 | BG146: 17.75 | BH146: 0.6 | BI146: 10 | BJ146: 0.25 | BK146: ATENDE | BL146: ATENDE | BM146: ATENDE | BN146: 1 | BO146: P2 | BP146: 17.75 | BQ146: 0.6 | BR146: 10 | BS146: 0.25 | BT146: ATENDE | BU146: ATENDE | BV146: ATENDE | BW146: L2 | BX146: L2-200-1 | BY146: L2-30-1 | BZ146: 1 | CA146: 200 | CB146: 30 | CC146: 21523 | CD146: 3603 | CI146: Canteiro de grama de 0,6m entre a via-ciclovia | CJ146: Asfalto CIE N3 | CK146: 274 | CL146: 168 | CM146: 442 | CN146: 200 | CO146: 30 | CP146: 230
B147: =C147+67 -> 132 | C147: 65 | D147: 6 | E147: 11 | F147: 2 | G147: Avenida Economista Nilo Wulff | H147: ok | I147: Ametista 3 | J147: LP-2 VP-Lâmp.150 | K147: PHILIPS PLUS PIA | L147: Concreto CEEE | M147: IP-B3 | O147: NÃO ATENDE | P147: NÃO ATENDE | Q147: NÃO ATENDE | R147: 25 | S147: 5.4 | T147: 2.4 | U147: 2x1,5 | V147: V2 | W147: 14.04210979 | X147: 20 | Y147: 0.04272862191 | Z147: 0.3 | AA147: 1.5 | AB147: 0.4 | AC147: 7.7 | AD147: 35 | AE147: 2 | AF147: Canteiro Central | AG147: 100 | AH147: 14 | AI147: 0 | AJ147: 0 | AK147: 1.5 | AL147: =AM147-AK147 -> 0.84 | AM147: 2.34 | AN147: 0° | AO147: 3 | AP147: 28.67 | AQ147: 0.53 | AR147: 1.72 | AS147: 0.49 | AT147: ATENDE | AU147: ATENDE | AV147: ATENDE | AW147: ATENDE | AX147: ATENDE | AY147: ATENDE | AZ147: ATENDE | BA147: 2x1,5 | BB147: C2 | BC147: 32.49 | BD147: 0.43 | BE147: 5.4 | BF147: P2 | BG147: 13.74 | BH147: 0.63 | BI147: 10 | BJ147: 0.25 | BK147: ATENDE | BL147: ATENDE | BM147: ATENDE | BN147: =T147 -> 2.4 | BO147: P2 | BP147: 16.94 | BQ147: 0.75 | BR147: 10 | BS147: 0.25 | BT147: ATENDE | BU147: ATENDE | BV147: ATENDE | BW147: L2 | BX147: L2-200-2 | BZ147: 2 | CA147: 200 | CB147: 0 | CC147: 21523 | CD147: - | CE147: IP-B4 | CF147: 9.1 | CG147: 3 | CH147: 10° | CJ147: Asfalto CIE N3 | CK147: 228 | CL147: 0 | CM147: 228 | CN147: 400 | CO147: 0 | CP147: 400
B148: 133 | C148: 66 | D148: 8 | E148: 1 | F148: 3 | G148: Avenida Assis Brasil | H148: - | I148: Ilumatic | J148: LP-7 VP-Lâmp.400 | K148: SUPER 4Y | L148: Ferro CEEE | M148: Núcleo de 2 lum. (180°) | O148: NÃO ATENDE | P148: NÃO ATENDE | Q148: ATENDE | R148: 25 | S148: 6.5 | T148: 2.9 | U148: 0 | V148: V1 | W148: 15.3496732 | X148: 30 | Y148: 0.4169469874 | Z148: 0.4 | AA148: 2 | AB148: 0.4 | AC148: 15 | AD148: 48.5 | AE148: 2 | AF148: Canteiro Central | AG148: 400 | AH148: 32 | AI148: 0 | AJ148: 0 | AK148: 0.5 | AL148: =AM148-AK148 -> 0.1 | AM148: 0.6 | AN148: 0° | AO148: 1 | AP148: 40.64 | AQ148: 0.42 | AR148: 2.34 | AS148: 0.41 | AT148: ATENDE | AU148: ATENDE | AV148: ATENDE | AW148: ATENDE | AX148: ATENDE | AY148: ATENDE | AZ148: ATENDE | BE148: 6.5 | BF148: P1 | BG148: 22.7 | BH148: 0.46 | BI148: 20 | BJ148: 0.3 | BK148: ATENDE | BL148: ATENDE | BM148: ATENDE | BN148: 2.9 | BO148: P1 | BP148: 26.49 | BQ148: 0.55 | BR148: 20 | BS148: 0.3 | BT148: ATENDE | BU148: ATENDE | BV148: ATENDE | BW148: L2 | BX148: L2-240-2 | BZ148: 4 | CA148: 240 | CB148: 0 | CC148: 25347 | CD148: - | CE148: Aumento de pontos por postes para 4 | CJ148: Asfalto CIE N3 | CK148: 864 | CL148: 0 | CM148: 864 | CN148: 960 | CO148: 0 | CP148: 960
B149: 134 | C149: 67 | D149: 8 | E149: 1 | F149: 4 | G149: Avenida Sertório, ponto 2 | H149: - | I149: Ilumatic | J149: LP-7 VP-Lâmp.400 | K149: SUPER 4Y | L149: IP-PA 15 + Concreto CEEE | M149: Núcleo de 4 lum. (90°) + IP-B1 | N149: Possui dois circuitos de iluminação | O149: NÃO ATENDE | P149: NÃO ATENDE | Q149: NÃO ATENDE | R149: 42 | S149: 1.5 | T149: 1.5 | U149: 0 | V149: V1 | W149: 25.40925926 | X149: 30 | Y149: 0.08264703739 | Z149: 0.4 | AA149: 2 | AB149: 0.4 | AC149: 15 e 8,3 | AD149: 28 e 35 | AE149: 4 | AF149: Canteiro Central e Unilateral | AG149: 400 | AH149: 32 | AI149: 250 | AJ149: 24 | AK149: 8 e 0,3 | AL149: (-7,4) e 2,7 | AM149: 0,6 e 3 | AN149: 0° e 10° | AO149: 16 | AP149: 44.57 | AQ149: 0.54 | AR149: 2.11 | AS149: 0.42 | AT149: ATENDE | AU149: ATENDE | AV149: ATENDE | AW149: ATENDE | AX149: ATENDE | AY149: ATENDE | AZ149: ATENDE | BE149: 1.5 | BF149: P2 | BG149: 25.78 | BH149: 0.8 | BI149: 10 | BJ149: 0.25 | BK149: ATENDE | BL149: ATENDE | BM149: ATENDE | BN149: 1.5 | BO149: P2 | BP149: 21.02 | BQ149: 0.92 | BR149: 10 | BS149: 0.25 | BT149: ATENDE | BU149: ATENDE | BV149: ATENDE | BW149: L2 | BX149: L2-240-2 | BY149: L2-50-2 | BZ149: 4 | CA149: 240 | CB149: 50 | CC149: 25347 | CD149: 6041 | CJ149: Asfalto CIE N3 | CK149: 1728 | CL149: 274 | CM149: 2002 | CN149: 960 | CO149: 50 | CP149: 1010
B150: =C150+134 -> 135 | C150: 1 | D150: 2 | E150: 7 | F150: 5 | G150: Rua Baltimore | H150: ok | I150: Opalo | J150: LP-4 PC-Lâmp.100 | K150: SUPER 4Y | L150: Concreto CEEE | M150: IP-B3 | O150: NÃO ATENDE | P150: NÃO ATENDE | Q150: NÃO ATENDE | R150: 7 | S150: 1.5 | T150: 2 | U150: 0 | V150: V5 | W150: 1.360000002 | X150: 5 | Y150: 0.07352941273 | Z150: 0.2 | AA150: - | AB150: - | AC150: 7.7 | AD150: 35 | AE150: 1 | AF150: Unilateral | AG150: 100 | AH150: 14 | AI150: 0 | AJ150: 0 | AK150: 0.3 | AL150: =AM150-AK150 -> 2.04 | AM150: 2.34 | AN150: 0° | AO150: - | AP150: 5.6 | AQ150: 0.37 | AR150: - | AS150: - | AT150: ATENDE | AU150: ATENDE | AV150: ATENDE | AW150: ATENDE | AX150: - | AY150: - | AZ150: - | BA150: =IF(U150=0,"",U150) ->  | BE150: 1.5 | BF150: P4 | BG150: 3.55 | BH150: 0.44 | BI150: 3 | BJ150: 0.2 | BK150: ATENDE | BL150: ATENDE | BM150: ATENDE | BN150: 2 | BO150: P4 | BP150: 3.75 | BQ150: 0.63 | BR150: 3 | BS150: 0.2 | BT150: ATENDE | BU150: ATENDE | BV150: ATENDE | BW150: L3 | BX150: L3-36 | BZ150: 1 | CA150: 36 | CB150: 0 | CC150: 3912 | CD150: - | CH150: 10° | CJ150: Asfalto CIE N3 | CK150: 114 | CL150: 0 | CM150: 114 | CN150: 36 | CO150: 0 | CP150: 36
B151: 136 | C151: 2 | D151: 2 | E151: 9 | F151: 3 | G151: Av Monte Cristo | H151: - | I151: ILUMATIC ILP -450 | J151: LP-3 VP-Lâmp.150 | K151: PHILIPS PLUS PIA | L151: Concreto CEEE | M151: IP-B3 | N151: Possui ponto próximo com IP-B6 | O151: ATENDE | P151: ATENDE | Q151: ATENDE | R151: 7 | S151: 4.5 | T151: - | U151: 0 | V151: V3 | W151: 15.08666654 | X151: 15 | Y151: 0.2452496739 | Z151: 0.2 | AA151: 1 | AB151: 0.4 | AC151: 7.7 | AD151: 26 | AE151: 1 | AF151: Unilateral | AG151: 150 | AH151: 18 | AI151: 0 | AJ151: 0 | AK151: 4.5 | AL151: -2.16 | AM151: 2.34 | AN151: 0° | AO151: - | AP151: 18.83 | AQ151: 0.52 | AR151: 1.19 | AS151: 0.42 | AT151: ATENDE | AU151: ATENDE | AV151: ATENDE | AW151: ATENDE | AX151: ATENDE | AY151: ATENDE | AZ151: ATENDE | BE151: 4.5 | BF151: P3 | BG151: 25.2 | BH151: 0.53 | BI151: 5 | BJ151: 0.2 | BK151: ATENDE | BL151: ATENDE | BM151: ATENDE | BN151: - | BO151: - | BP151: - | BQ151: - | BR151: - | BS151: - | BT151: - | BU151: - | BV151: - | BW151: L3 | BX151: L3-144-1 | BZ151: 1 | CA151: 108 | CB151: 0 | CC151: 13756 | CD151: - | CJ151: Asfalto CIE N3 | CK151: 168 | CL151: 0 | CM151: 168 | CN151: 108 | CO151: 0 | CP151: 108
B152: 137 | C152: 3 | D152: 2 | E152: 4 | F152: 5 | G152: Rua Joaquim de Carvalho | H152: - | I152: ILUMATIC ILP -450 | J152: LP-3 VP-Lâmp.150 | K152: PHILIPS PLUS PIA | L152: Concreto CEEE | M152: IP-B3 | O152: NÃO ATENDE | P152: ATENDE | Q152: NÃO ATENDE | R152: 11.7 | S152: 0.8 | T152: 2.9 | U152: 0 | V152: V4 | W152: 14.47777777 | X152: 10 | Y152: 0.05525709986 | Z152: 0.2 | AA152: - | AB152: - | AC152: 7.7 | AD152: 32.8 | AE152: 1 | AF152: Unilateral | AG152: 150 | AH152: 18 | AI152: 0 | AJ152: 0 | AK152: 0.3 | AL152: 2.04 | AM152: 2.34 | AN152: 0° | AO152: - | AP152: 10.9 | AQ152: 0.39 | AR152: - | AS152: - | AT152: ATENDE | AU152: ATENDE | AV152: ATENDE | AW152: ATENDE | AX152: - | AY152: - | AZ152: - | BE152: 0.8 | BF152: P4 | BG152: 9.47 | BH152: 0.45 | BI152: 3 | BJ152: 0.2 | BK152: ATENDE | BL152: ATENDE | BM152: ATENDE | BN152: 2.9 | BO152: P4 | BP152: 3.02 | BQ152: 0.67 | BR152: 3 | BS152: 0.2 | BT152: ATENDE | BU152: ATENDE | BV152: ATENDE | BW152: L3 | BX152: L3-96-1 | BZ152: 1 | CA152: 71 | CB152: 0 | CC152: 9094 | CD152: - | CI152: Canteiros de grama de 1m e 1,5m entre via-passeio 1 e via-passeio 2, respec. | CJ152: Asfalto CIE N3 | CK152: 168 | CL152: 0 | CM152: 168 | CN152: 71 | CO152: 0 | CP152: 71
B153: 138 | C153: 4 | D153: 2 | E153: 7 | F153: 2 | G153: Rua Jataí | H153: - | I153: ILUMATIC ILP -450 | J153: LP-4 PC-Lâmp.100 | K153: PHILIPS PLUS PIA | L153: Concreto CEEE | M153: IP-B3 | O153: NÃO ATENDE | P153: ATENDE | Q153: NÃO ATENDE | R153: 6.5 | S153: 1.5 | T153: 1.5 | U153: 0 | V153: V5 | W153: 8.17999997 | X153: 5 | Y153: 0.0122249391 | Z153: 0.2 | AA153: - | AB153: - | AC153: 7.7 | AD153: 33 | AE153: 1 | AF153: Unilateral | AG153: 100 | AH153: 14 | AI153: 0 | AJ153: 0 | AK153: 0.3 | AL153: 2.04 | AM153: 2.34 | AN153: 0° | AO153: - | AP153: 6.28 | AQ153: 0.43 | AR153: - | AS153: - | AT153: ATENDE | AU153: ATENDE | AV153: ATENDE | AW153: ATENDE | AX153: - | AY153: - | AZ153: - | BE153: 1.5 | BF153: P4 | BG153: 4.72 | BH153: 0.44 | BI153: 3 | BJ153: 0.2 | BK153: ATENDE | BL153: ATENDE | BM153: ATENDE | BN153: 1.5 | BO153: P4 | BP153: 3.61 | BQ153: 0.69 | BR153: 3 | BS153: 0.2 | BT153: ATENDE | BU153: ATENDE | BV153: ATENDE | BW153: L3 | BX153: L3-36 | BZ153: 1 | CA153: 36 | CB153: 0 | CC153: 3912 | CD153: - | CJ153: Asfalto CIE N3 | CK153: 114 | CL153: 0 | CM153: 114 | CN153: 36 | CO153: 0 | CP153: 36
B154: 139 | C154: 5 | D154: 2 | E154: 8 | F154: 4 | G154: Rua Orfanotrófio | H154: - | I154: ILUMATIC ILP -450 | J154: LP-3 VP-Lâmp.150 | K154: PHILIPS PLUS PIA | L154: Concreto CEEE | M154: IP-B3 | N154: Possui ponto próximo com IP-B6 | O154: NÃO ATENDE | P154: ATENDE | Q154: NÃO ATENDE | R154: 9 | S154: 3 | T154: 4 | U154: 0 | V154: V4 | W154: 16.24222239 | X154: 10 | Y154: 0.06772472371 | Z154: 0.2 | AA154: - | AB154: - | AC154: 7.7 | AD154: 38 | AE154: 1 | AF154: Bilateral Alternada | AG154: 150 | AH154: 18 | AI154: 0 | AJ154: 0 | AK154: 0.3 | AL154: 2.04 | AM154: 2.34 | AN154: 0° | AO154: - | AP154: 16.54 | AQ154: 0.54 | AR154: - | AS154: - | AT154: ATENDE | AU154: ATENDE | AV154: ATENDE | AW154: ATENDE | AX154: - | AY154: - | AZ154: - | BE154: 3 | BF154: P4 | BG154: 7.85 | BH154: 0.46 | BI154: 3 | BJ154: 0.2 | BK154: ATENDE | BL154: ATENDE | BM154: ATENDE | BN154: 4 | BO154: P4 | BP154: 6.9 | BQ154: 0.43 | BR154: 3 | BS154: 0.2 | BT154: ATENDE | BU154: ATENDE | BV154: ATENDE | BW154: L3 | BX154: L3-55 | BZ154: 1 | CA154: 55 | CB154: 0 | CC154: 6494 | CD154: - | CJ154: Asfalto CIE N3 | CK154: 168 | CL154: 0 | CM154: 168 | CN154: 55 | CO154: 0 | CP154: 55
B155: 140 | C155: 6 | D155: 2 | E155: 5 | F155: 5 | G155: Rua África do Sul | H155: ok | I155: Opalo | J155: LP-4 PC-Lâmp.70 | K155: SUPER 4Y | L155: Concreto CEEE | M155: IP-B7 | O155: ATENDE | P155: ATENDE | Q155: ATENDE | R155: 4.6 | S155: 3 | T155: 1.5 | U155: 0 | V155: V5 | W155: 5.064444436 | X155: 5 | Y155: 0.2369460293 | Z155: 0.2 | AA155: - | AB155: - | AC155: 7.1 | AD155: 32 | AE155: 1 | AF155: Unilateral | AG155: 70 | AH155: 12 | AI155: 0 | AJ155: 0 | AK155: 3 | AL155: -1.42 | AM155: 1.58 | AN155: 10° | AO155: - | AP155: 6.08 | AQ155: 0.5 | AR155: - | AS155: - | AT155: ATENDE | AU155: ATENDE | AV155: ATENDE | AW155: ATENDE | AX155: - | AY155: - | AZ155: - | BE155: 3 | BF155: P4 | BG155: 6.78 | BH155: 0.39 | BI155: 3 | BJ155: 0.2 | BK155: ATENDE | BL155: ATENDE | BM155: ATENDE | BN155: 1.5 | BO155: P4 | BP155: 3.12 | BQ155: 0.71 | BR155: 3 | BS155: 0.2 | BT155: ATENDE | BU155: ATENDE | BV155: ATENDE | BW155: L3 | BX155: L3-36 | BZ155: 1 | CA155: 36 | CB155: 0 | CC155: 3912 | CD155: - | CJ155: Asfalto CIE N3 | CK155: 82 | CL155: 0 | CM155: 82 | CN155: 36 | CO155: 0 | CP155: 36
B156: 141 | C156: 7 | D156: 2 | E156: 10 | F156: 1 | G156: Av Deputado Adão Pretto | H156: - | J156: LP-4 PC-Lâmp.100 | K156: SUPER 4Y | L156: Concreto CEEE | M156: IP-B7 | N156: Não consta informação de braço | O156: NÃO ATENDE | P156: NÃO ATENDE | Q156: NÃO ATENDE | R156: 7 | S156: 2.5 | T156: 2.3 | U156: 0 | V156: V3 | W156: 5.977777761 | X156: 15 | Y156: 0.06691449932 | Z156: 0.2 | AA156: 1 | AB156: 0.4 | AC156: 7.1 | AD156: 37 | AE156: 1 | AF156: Unilateral | AG156: 100 | AH156: 14 | AI156: 0 | AJ156: 0 | AK156: 0.3 | AL156: 1.28 | AM156: 1.58 | AN156: 10° | AO156: - | AP156: 15.73 | AQ156: 0.23 | AR156: 1.11 | AS156: 0.46 | AT156: ATENDE | AU156: ATENDE | AV156: ATENDE | AW156: ATENDE | AX156: ATENDE | AY156: ATENDE | AZ156: ATENDE | BE156: 2.5 | BF156: P3 | BG156: 8.62 | BH156: 0.22 | BI156: 5 | BJ156: 0.2 | BK156: ATENDE | BL156: ATENDE | BM156: ATENDE | BN156: 2.3 | BO156: P3 | BP156: 10.07 | BQ156: 0.55 | BR156: 5 | BS156: 0.2 | BT156: ATENDE | BU156: ATENDE | BV156: ATENDE | BW156: L3 | BX156: L3-96-2 | BZ156: 1 | CA156: 71 | CB156: 0 | CC156: 9094 | CD156: - | CJ156: Asfalto CIE N3 | CK156: 114 | CL156: 0 | CM156: 114 | CN156: 71 | CO156: 0 | CP156: 71
B157: 142 | C157: 8 | D157: 2 | E157: 7 | F157: 3 | G157: Rua Pedro Golombiewski | H157: ok | I157: Opalo | J157: LP-4 PC-Lâmp.100 | K157: SUPER 4Y | L157: Concreto CEEE | M157: IP-B2 | O157: NÃO ATENDE | P157: ATENDE | Q157: NÃO ATENDE | R157: 6.3 | S157: 2.2 | T157: 2 | U157: 0 | V157: V5 | W157: 7.91777781 | X157: 5 | Y157: 0.05051922592 | Z157: 0.2 | AA157: - | AB157: - | AC157: 7.8 | AD157: 38 | AE157: 1 | AF157: Unilateral | AG157: 100 | AH157: 14 | AI157: 0 | AJ157: 0 | AK157: 0.3 | AL157: 2.05 | AM157: 2.35 | AN157: 10° | AO157: - | AP157: 9.07 | AQ157: 0.34 | AR157: - | AS157: - | AT157: ATENDE | AU157: ATENDE | AV157: ATENDE | AW157: ATENDE | AX157: - | AY157: - | AZ157: - | BE157: 2.2 | BF157: P4 | BG157: 5.19 | BH157: 0.37 | BI157: 3 | BJ157: 0.2 | BK157: ATENDE | BL157: ATENDE | BM157: ATENDE | BN157: 2 | BO157: P4 | BP157: 7.07 | BQ157: 0.56 | BR157: 3 | BS157: 0.2 | BT157: ATENDE | BU157: ATENDE | BV157: ATENDE | BW157: L3 | BX157: L3-55 | BZ157: 1 | CA157: 55 | CB157: 0 | CC157: 6494 | CD157: - | CJ157: Asfalto CIE N3 | CK157: 114 | CL157: 0 | CM157: 114 | CN157: 55 | CO157: 0 | CP157: 55
B158: 143 | C158: 9 | D158: 2 | E158: 10 | F158: 2 | G158: Estrada Antônio Borges | H158: - | I158: ILUMATIC ILP -450 | J158: LP-3 PC-Lâmp.150 | K158: PHILIPS PLUS PIA | L158: Concreto CEEE | M158: IP-B3 | O158: NÃO ATENDE | P158: ATENDE | Q158: NÃO ATENDE | R158: 6 | S158: 1.5 | T158: 1.5 | U158: 0 | V158: V3 | W158: 19.29333337 | X158: 15 | Y158: 0.04664823641 | Z158: 0.2 | AA158: 1 | AB158: 0.4 | AC158: 7.7 | AD158: 36 | AE158: 1 | AF158: Unilateral | AG158: 100 | AH158: 14 | AI158: 0 | AJ158: 0 | AK158: 0.3 | AL158: 2.04 | AM158: 2.34 | AN158: 0° | AO158: - | AP158: 16.74 | AQ158: 0.28 | AR158: 1.28 | AS158: 0.48 | AT158: ATENDE | AU158: ATENDE | AV158: ATENDE | AW158: ATENDE | AX158: ATENDE | AY158: ATENDE | AZ158: ATENDE | BE158: 1.5 | BF158: P3 | BG158: 9.37 | BH158: 0.32 | BI158: 5 | BJ158: 0.2 | BK158: ATENDE | BL158: ATENDE | BM158: ATENDE | BN158: 1.5 | BO158: P3 | BP158: 14.27 | BQ158: 0.51 | BR158: 5 | BS158: 0.2 | BT158: ATENDE | BU158: ATENDE | BV158: ATENDE | BW158: L3 | BX158: L3-96-2 | BZ158: 1 | CA158: 71 | CB158: 0 | CC158: 9094 | CD158: - | CJ158: Asfalto CIE N3 | CK158: 114 | CL158: 0 | CM158: 114 | CN158: 71 | CO158: 0 | CP158: 71
B159: 144 | C159: 10 | D159: 2 | E159: 0 | F159: 2 | G159: Av. Professor Oscar Pereira | H159: ok | I159: Ametista 3 | J159: LP-1 VP-Lâmp.250 | K159: PHILIPS PLUS PIA | L159: Concreto CEEE | M159: IP-B2 | O159: ATENDE | P159: ATENDE | Q159: ATENDE | R159: 8.5 | S159: 1.5 | T159: - | U159: 0 | V159: V2 | W159: 20.227 | X159: 20 | Y159: 0.3016 | Z159: 0.3 | AA159: 1.5 | AB159: 0.4 | AC159: 7.8 | AD159: 34 | AE159: 1 | AF159: Unilateral | AG159: 250 | AH159: 24 | AI159: 0 | AJ159: 0 | AK159: 0.3 | AL159: 2.05 | AM159: 2.35 | AN159: 10° | AO159: - | AP159: 22.67 | AQ159: 0.4 | AR159: 1.71 | AS159: 0.43 | AT159: ATENDE | AU159: ATENDE | AV159: ATENDE | AW159: ATENDE | AX159: ATENDE | AY159: ATENDE | AZ159: ATENDE | BE159: 1.5 | BF159: P2 | BG159: 18.68 | BH159: 0.4 | BI159: 10 | BJ159: 0.25 | BK159: ATENDE | BL159: ATENDE | BM159: ATENDE | BN159: - | BO159: - | BP159: - | BQ159: - | BR159: - | BS159: - | BT159: - | BU159: - | BV159: - | BW159: L3 | BX159: L3-192-1 | BZ159: 1 | CA159: 142 | CB159: 0 | CC159: 18259 | CD159: - | CJ159: Asfalto CIE N3 | CK159: 274 | CL159: 0 | CM159: 274 | CN159: 142 | CO159: 0 | CP159: 142
B160: 145 | C160: 11 | D160: 2 | E160: 8 | F160: 2 | G160: Rua Capitão José Padilha | H160: ok | I160: Opalo | J160: LP-4 PC-Lâmp.100 | K160: SUPER 4Y | L160: Concreto CEEE | M160: IP-B7 | O160: NÃO ATENDE | P160: NÃO ATENDE | Q160: NÃO ATENDE | R160: 10 | S160: 2 | T160: 2.2 | U160: 0 | V160: V4 | W160: 7.377777733 | X160: 10 | Y160: 0.09487951704 | Z160: 0.2 | AA160: - | AB160: - | AC160: 7.1 | AD160: 35 | AE160: 1 | AF160: Unilateral | AG160: 100 | AH160: 14 | AI160: 0 | AJ160: 0 | AK160: 0.3 | AL160: 1.28 | AM160: 1.58 | AN160: 10° | AO160: - | AP160: 10.82 | AQ160: 0.38 | AR160: - | AS160: - | AT160: ATENDE | AU160: ATENDE | AV160: ATENDE | AW160: ATENDE | AX160: - | AY160: - | AZ160: - | BE160: 2 | BF160: P4 | BG160: 10.24 | BH160: 0.33 | BI160: 3 | BJ160: 0.2 | BK160: ATENDE | BL160: ATENDE | BM160: ATENDE | BN160: 2.2 | BO160: P4 | BP160: 5.14 | BQ160: 0.62 | BR160: 3 | BS160: 0.2 | BT160: ATENDE | BU160: ATENDE | BV160: ATENDE | BW160: L3 | BX160: L3-96-1 | BZ160: 1 | CA160: 71 | CB160: 0 | CC160: 9094 | CD160: - | CJ160: Asfalto CIE N3 | CK160: 114 | CL160: 0 | CM160: 114 | CN160: 71 | CO160: 0 | CP160: 71
B161: 146 | C161: 12 | D161: 2 | E161: 5 | F161: 1 | G161: Rua Otávio de Faria | H161: - | I161: Indalux | J161: LP-3 PC-Lâmp.150 | K161: PHILIPS PLUS PIA | L161: Concreto CEEE | M161: IP-B2 | O161: NÃO ATENDE | P161: ATENDE | Q161: NÃO ATENDE | R161: 7 | S161: 2.5 | T161: 2.5 | U161: 0 | V161: V5 | W161: 8.94666661 | X161: 5 | Y161: 0.08941877984 | Z161: 0.2 | AA161: - | AB161: - | AC161: 7.8 | AD161: 35 | AE161: 1 | AF161: Unilateral | AG161: 150 | AH161: 18 | AI161: 0 | AJ161: 0 | AK161: 0.3 | AL161: 2.05 | AM161: 2.35 | AN161: 10° | AO161: - | AP161: 5.54 | AQ161: 0.38 | AR161: - | AS161: - | AT161: ATENDE | AU161: ATENDE | AV161: ATENDE | AW161: ATENDE | AX161: - | AY161: - | AZ161: - | BE161: 2.5 | BF161: P4 | BG161: 3.07 | BH161: 0.44 | BI161: 3 | BJ161: 0.2 | BK161: ATENDE | BL161: ATENDE | BM161: ATENDE | BN161: 2.5 | BO161: P4 | BP161: 3.57 | BQ161: 0.62 | BR161: 3 | BS161: 0.2 | BT161: ATENDE | BU161: ATENDE | BV161: ATENDE | BW161: L3 | BX161: L3-36 | BZ161: 1 | CA161: 36 | CB161: 0 | CC161: 3912 | CD161: - | CJ161: Asfalto CIE N3 | CK161: 168 | CL161: 0 | CM161: 168 | CN161: 36 | CO161: 0 | CP161: 36
B162: 147 | C162: 13 | D162: 2 | E162: 4 | F162: 3 | G162: Rua Dona Otília | H162: - | I162: Indalux | J162: LP-3 PC-Lâmp.150 | K162: PHILIPS PLUS PIA | L162: Concreto CEEE | M162: IP-B3 | O162: NÃO ATENDE | P162: ATENDE | Q162: NÃO ATENDE | R162: 8 | S162: 3.4 | T162: 4.7 | U162: 0 | V162: V5 | W162: 8.011111063 | X162: 5 | Y162: 0.01248266323 | Z162: 0.2 | AA162: - | AB162: - | AC162: 7.7 | AD162: 33 | AE162: 1 | AF162: Unilateral | AG162: 150 | AH162: 18 | AI162: 0 | AJ162: 0 | AK162: 1.7 | AL162: 0.64 | AM162: 2.34 | AN162: 0° | AO162: - | AP162: 9.42 | AQ162: 0.48 | AR162: - | AS162: - | AT162: ATENDE | AU162: ATENDE | AV162: ATENDE | AW162: ATENDE | AX162: - | AY162: - | AZ162: - | BE162: 3.4 | BF162: P4 | BG162: 6.16 | BH162: 0.47 | BI162: 3 | BJ162: 0.2 | BK162: ATENDE | BL162: ATENDE | BM162: ATENDE | BN162: 4.7 | BO162: P4 | BP162: 3.57 | BQ162: 0.5 | BR162: 3 | BS162: 0.2 | BT162: ATENDE | BU162: ATENDE | BV162: ATENDE | BW162: L3 | BX162: L3-55 | BZ162: 1 | CA162: 55 | CB162: 0 | CC162: 6494 | CD162: - | CE162: IP-B1 | CF162: 8.3 | CG162: 3 | CH162: 10° | CJ162: Asfalto CIE N3 | CK162: 168 | CL162: 0 | CM162: 168 | CN162: 55 | CO162: 0 | CP162: 55
B163: 148 | C163: 14 | D163: 2 | E163: 4 | F163: 4 | G163: Rua Januário Scazilli | H163: - | I163: ILUMATIC ILP -450 | J163: LP-3 VP-Lâmp.150 | K163: PHILIPS PLUS PIA | L163: Concreto CEEE | M163: IP-B2 | N163: Possui ponto próximo com IP-B5 | O163: NÃO ATENDE | P163: ATENDE | Q163: NÃO ATENDE | R163: 9 | S163: 2.8 | T163: 3 | U163: 0 | V163: V5 | W163: 19.48444458 | X163: 5 | Y163: 0.02566149617 | Z163: 0.2 | AA163: - | AB163: - | AC163: 7.8 | AD163: 34 | AE163: 1 | AF163: Unilateral | AG163: 150 | AH163: 18 | AI163: 0 | AJ163: 0 | AK163: 0.3 | AL163: 2.05 | AM163: 2.35 | AN163: 10° | AO163: - | AP163: 9.32 | AQ163: 0.43 | AR163: - | AS163: - | AT163: ATENDE | AU163: ATENDE | AV163: ATENDE | AW163: ATENDE | AX163: - | AY163: - | AZ163: - | BE163: 2.8 | BF163: P4 | BG163: 5.32 | BH163: 0.45 | BI163: 3 | BJ163: 0.2 | BK163: ATENDE | BL163: ATENDE | BM163: ATENDE | BN163: 3 | BO163: P4 | BP163: 3.64 | BQ163: 0.65 | BR163: 3 | BS163: 0.2 | BT163: ATENDE | BU163: ATENDE | BV163: ATENDE | BW163: L3 | BX163: L3-55 | BZ163: 1 | CA163: 55 | CB163: 0 | CC163: 6494 | CD163: - | CJ163: Asfalto CIE N3 | CK163: 168 | CL163: 0 | CM163: 168 | CN163: 55 | CO163: 0 | CP163: 55
B164: 149 | C164: 15 | D164: 2 | E164: 8 | F164: 3 | G164: Rua João do Rio | H164: ok | I164: Opalo | J164: LP-4 PC-Lâmp.100 | K164: SUPER 4Y | L164: Concreto CEEE | M164: IP-B7 | O164: NÃO ATENDE | P164: NÃO ATENDE | Q164: NÃO ATENDE | R164: 8.8 | S164: 4 | T164: 4 | U164: 0 | V164: V4 | W164: 3.880000042 | X164: 10 | Y164: 0.07731958987 | Z164: 0.2 | AA164: - | AB164: - | AC164: 7.1 | AD164: 32 | AE164: 1 | AF164: Unilateral | AG164: 100 | AH164: 14 | AI164: 0 | AJ164: 0 | AK164: 0.3 | AL164: 1.28 | AM164: 1.58 | AN164: 10° | AO164: - | AP164: 12.45 | AQ164: 0.42 | AR164: - | AS164: - | AT164: ATENDE | AU164: ATENDE | AV164: ATENDE | AW164: ATENDE | AX164: - | AY164: - | AZ164: - | BE164: 4 | BF164: P4 | BG164: 9.83 | BH164: 0.32 | BI164: 3 | BJ164: 0.2 | BK164: ATENDE | BL164: ATENDE | BM164: ATENDE | BN164: 4 | BO164: P4 | BP164: 5.93 | BQ164: 0.6 | BR164: 3 | BS164: 0.2 | BT164: ATENDE | BU164: ATENDE | BV164: ATENDE | BW164: L3 | BX164: L3-96-1 | BZ164: 1 | CA164: 71 | CB164: 0 | CC164: 9094 | CD164: - | CJ164: Asfalto CIE N3 | CK164: 114 | CL164: 0 | CM164: 114 | CN164: 71 | CO164: 0 | CP164: 71
B165: 150 | C165: 16 | D165: 2 | E165: 3 | F165: 5 | G165: Rua Paulino Chaves | H165: ok | I165: Tecnowatt Beta | J165: LP-2 VP-Lâmp.150 | K165: PHILIPS PLUS PIA | L165: Concreto CEEE | M165: IP-B2 | O165: NÃO ATENDE | P165: ATENDE | Q165: NÃO ATENDE | R165: 7 | S165: 3.8 | T165: 2.6 | U165: 0 | V165: V4 | W165: 14.96666685 | X165: 10 | Y165: 0.05345211594 | Z165: 0.2 | AA165: - | AB165: - | AC165: 7.8 | AD165: 30 | AE165: 1 | AF165: Unilateral | AG165: 150 | AH165: 18 | AI165: 0 | AJ165: 0 | AK165: 0.3 | AL165: 2.05 | AM165: 2.35 | AN165: 10° | AO165: - | AP165: 11.35 | AQ165: 0.43 | AR165: - | AS165: - | AT165: ATENDE | AU165: ATENDE | AV165: ATENDE | AW165: ATENDE | AX165: - | AY165: - | AZ165: - | BE165: 3.8 | BF165: P4 | BG165: 5.15 | BH165: 0.43 | BI165: 3 | BJ165: 0.2 | BK165: ATENDE | BL165: ATENDE | BM165: ATENDE | BN165: 2.6 | BO165: P4 | BP165: 7.24 | BQ165: 0.65 | BR165: 3 | BS165: 0.2 | BT165: ATENDE | BU165: ATENDE | BV165: ATENDE | BW165: L3 | BX165: L3-55 | BZ165: 1 | CA165: 55 | CB165: 0 | CC165: 6494 | CD165: - | CJ165: Asfalto CIE N3 | CK165: 168 | CL165: 0 | CM165: 168 | CN165: 55 | CO165: 0 | CP165: 55
B166: 151 | C166: 17 | D166: 2 | E166: 9 | F166: 2 | G166: Rua Tenente Alpoim | H166: ok | I166: TECNOWATT IEP Alpha | J166: LP-3 VP-Lâmp.150 | K166: PHILIPS PLUS PIA | L166: Concreto CEEE | M166: IP-B3 | O166: NÃO ATENDE | P166: ATENDE | Q166: NÃO ATENDE | R166: 9 | S166: 3.8 | T166: 4 | U166: 0 | V166: V4 | W166: 15.54666688 | X166: 10 | Y166: 0.07075471752 | Z166: 0.2 | AA166: - | AB166: - | AC166: 7.7 | AD166: 29 | AE166: 1 | AF166: Unilateral | AG166: 150 | AH166: 18 | AI166: 0 | AJ166: 0 | AK166: 0.3 | AL166: 2.04 | AM166: 2.34 | AN166: 0° | AO166: - | AP166: 11.02 | AQ166: 0.48 | AR166: - | AS166: - | AT166: ATENDE | AU166: ATENDE | AV166: ATENDE | AW166: ATENDE | AX166: - | AY166: - | AZ166: - | BE166: 3.8 | BF166: P4 | BG166: 5.33 | BH166: 0.43 | BI166: 3 | BJ166: 0.2 | BK166: ATENDE | BL166: ATENDE | BM166: ATENDE | BN166: 4 | BO166: P4 | BP166: 3.71 | BQ166: 0.55 | BR166: 3 | BS166: 0.2 | BT166: ATENDE | BU166: ATENDE | BV166: ATENDE | BW166: L3 | BX166: L3-55 | BZ166: 1 | CA166: 55 | CB166: 0 | CC166: 6494 | CD166: - | CH166: 10° | CJ166: Asfalto CIE N3 | CK166: 168 | CL166: 0 | CM166: 168 | CN166: 55 | CO166: 0 | CP166: 55
B167: 152 | C167: 18 | D167: 2 | E167: 12 | F167: 5 | G167: Rua Ernesto Araújo | H167: ok | I167: Opalo | J167: LP-4 PC-Lâmp.100 | K167: SUPER 4Y | L167: Concreto CEEE | M167: IP-B3 | O167: NÃO ATENDE | P167: NÃO ATENDE | Q167: NÃO ATENDE | R167: 7.5 | S167: 2 | T167: 1.8 | U167: 0 | V167: V4 | W167: 8.375555524 | X167: 10 | Y167: 0.02387901345 | Z167: 0.2 | AA167: - | AB167: - | AC167: 7.7 | AD167: 37 | AE167: 1 | AF167: Unilateral | AG167: 100 | AH167: 14 | AI167: 0 | AJ167: 0 | AK167: 0.3 | AL167: 2.04 | AM167: 2.34 | AN167: 0° | AO167: - | AP167: 11.29 | AQ167: 0.34 | AR167: - | AS167: - | AT167: ATENDE | AU167: ATENDE | AV167: ATENDE | AW167: ATENDE | AX167: - | AY167: - | AZ167: - | BE167: 2 | BF167: P4 | BG167: 8.92 | BH167: 0.36 | BI167: 3 | BJ167: 0.2 | BK167: ATENDE | BL167: ATENDE | BM167: ATENDE | BN167: 1.8 | BO167: P4 | BP167: 7.98 | BQ167: 0.51 | BR167: 3 | BS167: 0.2 | BT167: ATENDE | BU167: ATENDE | BV167: ATENDE | BW167: L3 | BX167: L3-96-1 | BZ167: 1 | CA167: 71 | CB167: 0 | CC167: 9094 | CD167: - | CJ167: Asfalto CIE N3 | CK167: 114 | CL167: 0 | CM167: 114 | CN167: 71 | CO167: 0 | CP167: 71
B168: 153 | C168: 19 | D168: 2 | E168: 8 | F168: 5 | G168: Rua Primeiro de Março | H168: - | I168: Indalux | J168: LP-3 VP-Lâmp.150 | K168: PHILIPS PLUS PIA | L168: Concreto CEEE | M168: IP-B3 | N168: Inspeção local: 1,6m de projeção; IP-B3: projeção de 2,5 m | O168: NÃO ATENDE | P168: NÃO ATENDE | Q168: NÃO ATENDE | R168: 7 | S168: 4.5 | T168: 4 | U168: 0 | V168: V4 | W168: 9.648888922 | X168: 10 | Y168: 0.06218332792 | Z168: 0.2 | AA168: - | AB168: - | AC168: 7.7 | AD168: 47 | AE168: 1 | AF168: Unilateral | AG168: 150 | AH168: 18 | AI168: 0 | AJ168: 0 | AK168: 2 | AL168: 0.34 | AM168: 2.34 | AN168: 0° | AO168: - | AP168: 12.94 | AQ168: 0.28 | AR168: - | AS168: - | AT168: ATENDE | AU168: ATENDE | AV168: ATENDE | AW168: ATENDE | AX168: - | AY168: - | AZ168: - | BE168: 4.5 | BF168: P4 | BG168: 11.3 | BH168: 0.23 | BI168: 3 | BJ168: 0.2 | BK168: ATENDE | BL168: ATENDE | BM168: ATENDE | BN168: 4 | BO168: P4 | BP168: 6.64 | BQ168: 0.49 | BR168: 3 | BS168: 0.2 | BT168: ATENDE | BU168: ATENDE | BV168: ATENDE | BW168: L3 | BX168: L3-144-1 | BZ168: 1 | CA168: 108 | CB168: 0 | CC168: 13756 | CD168: - | CJ168: Asfalto CIE N3 | CK168: 168 | CL168: 0 | CM168: 168 | CN168: 108 | CO168: 0 | CP168: 108
B169: 154 | C169: 20 | D169: 2 | E169: 12 | F169: 7 | G169: Rua Waldomiro Schapke | H169: ok | I169: TECNOWATT IEP Alpha | J169: LP-3 VP-Lâmp.150 | K169: PHILIPS PLUS PIA | L169: Concreto CEEE | M169: IP-B3 | N169: Inspeção local: 1,5m de projeção; IP-B3: projeção de 2,5 m | O169: NÃO ATENDE | P169: ATENDE | Q169: NÃO ATENDE | R169: 8.5 | S169: 3 | T169: 3.3 | U169: 0 | V169: V5 | W169: 13.89777778 | X169: 5 | Y169: 0.05036776376 | Z169: 0.2 | AA169: - | AB169: - | AC169: 7.7 | AD169: 36 | AE169: 1 | AF169: Unilateral | AG169: 150 | AH169: 18 | AI169: 0 | AJ169: 0 | AK169: 0.3 | AL169: 2.04 | AM169: 2.34 | AN169: 0° | AO169: - | AP169: 9.08 | AQ169: 0.39 | AR169: - | AS169: - | AT169: ATENDE | AU169: ATENDE | AV169: ATENDE | AW169: ATENDE | AX169: - | AY169: - | AZ169: - | BE169: 3 | BF169: P4 | BG169: 4.88 | BH169: 0.4 | BI169: 3 | BJ169: 0.2 | BK169: ATENDE | BL169: ATENDE | BM169: ATENDE | BN169: 3.3 | BO169: P4 | BP169: 3.73 | BQ169: 0.61 | BR169: 3 | BS169: 0.2 | BT169: ATENDE | BU169: ATENDE | BV169: ATENDE | BW169: L3 | BX169: L3-55 | BZ169: 1 | CA169: 55 | CB169: 0 | CC169: 6494 | CD169: - | CH169: 10° | CJ169: Asfalto CIE N3 | CK169: 168 | CL169: 0 | CM169: 168 | CN169: 55 | CO169: 0 | CP169: 55
B170: 155 | C170: 21 | D170: 2 | E170: 4 | F170: 2 | G170: Rua Nunes Machado | H170: ok | I170: Ametista 3 | J170: LP-2 VP-Lâmp.150 | K170: PHILIPS PLUS PIA | L170: Concreto CEEE | M170: IP-B1 | O170: NÃO ATENDE | P170: ATENDE | Q170: NÃO ATENDE | R170: 8 | S170: 4.4 | T170: 4.4 | U170: 0 | V170: V5 | W170: 6.468888959 | X170: 5 | Y170: 0.03091721071 | Z170: 0.2 | AA170: - | AB170: - | AC170: 8.3 | AD170: 40 | AE170: 1 | AF170: Unilateral | AG170: 150 | AH170: 18 | AI170: 0 | AJ170: 0 | AK170: 0.3 | AL170: 2.7 | AM170: 3 | AN170: 10° | AO170: - | AP170: 8.09 | AQ170: 0.36 | AR170: - | AS170: - | AT170: ATENDE | AU170: ATENDE | AV170: ATENDE | AW170: ATENDE | AX170: - | AY170: - | AZ170: - | BE170: 4.4 | BF170: P4 | BG170: 3.61 | BH170: 0.37 | BI170: 3 | BJ170: 0.2 | BK170: ATENDE | BL170: ATENDE | BM170: ATENDE | BN170: 4.4 | BO170: P4 | BP170: 3.6 | BQ170: 0.51 | BR170: 3 | BS170: 0.2 | BT170: ATENDE | BU170: ATENDE | BV170: ATENDE | BW170: L3 | BX170: L3-55 | BZ170: 1 | CA170: 55 | CB170: 0 | CC170: 6494 | CD170: - | CH170: 5° | CJ170: Asfalto CIE N3 | CK170: 168 | CL170: 0 | CM170: 168 | CN170: 55 | CO170: 0 | CP170: 55
B171: 156 | C171: 22 | D171: 2 | E171: 5 | F171: 6 | G171: Rua Coronel André Belo | H171: ok | I171: Ametista 3 | J171: LP-2 VP-Lâmp.150 | K171: PHILIPS PLUS PIA | L171: Concreto CEEE | M171: IP-B1 | O171: NÃO ATENDE | P171: ATENDE | Q171: NÃO ATENDE | R171: 8.5 | S171: 4 | T171: 3 | U171: 0 | V171: V5 | W171: 15.71111123 | X171: 5 | Y171: 0.02545968902 | Z171: 0.2 | AA171: - | AB171: - | AC171: 8.3 | AD171: 26 | AE171: 1 | AF171: Unilateral | AG171: 150 | AH171: 18 | AI171: 0 | AJ171: 0 | AK171: 0.3 | AL171: 2.7 | AM171: 3 | AN171: 10° | AO171: - | AP171: 11.95 | AQ171: 0.5 | AR171: - | AS171: - | AT171: ATENDE | AU171: ATENDE | AV171: ATENDE | AW171: ATENDE | AX171: - | AY171: - | AZ171: - | BE171: 4 | BF171: P4 | BG171: 4.75 | BH171: 0.43 | BI171: 3 | BJ171: 0.2 | BK171: ATENDE | BL171: ATENDE | BM171: ATENDE | BN171: 3 | BO171: P4 | BP171: 5.31 | BQ171: 0.65 | BR171: 3 | BS171: 0.2 | BT171: ATENDE | BU171: ATENDE | BV171: ATENDE | BW171: L3 | BX171: L3-55 | BZ171: 1 | CA171: 55 | CB171: 0 | CC171: 6494 | CD171: - | CI171: Canteiro de grama de 1m entre Passeio 2 e Via | CJ171: Asfalto CIE N3 | CK171: 168 | CL171: 0 | CM171: 168 | CN171: 55 | CO171: 0 | CP171: 55
B172: 157 | C172: 23 | D172: 2 | E172: 12 | F172: 3 | G172: Rua Alberto Torres | H172: ok | I172: Ametista 3 | J172: LP-2 VP-Lâmp.150 | K172: PHILIPS PLUS PIA | L172: Concreto CEEE | M172: IP-B2 | O172: ATENDE | P172: ATENDE | Q172: ATENDE | R172: 9 | S172: 2.2 | T172: 1.5 | U172: 0 | V172: V5 | W172: 18.67333333 | X172: 5 | Y172: 0.2624062835 | Z172: 0.2 | AA172: - | AB172: - | AC172: 7.8 | AD172: 26 | AE172: 1 | AF172: Unilateral | AG172: 150 | AH172: 18 | AI172: 0 | AJ172: 0 | AK172: 0.3 | AL172: 2.05 | AM172: 2.35 | AN172: 10° | AO172: - | AP172: 6.96 | AQ172: 0.52 | AR172: - | AS172: - | AT172: ATENDE | AU172: ATENDE | AV172: ATENDE | AW172: ATENDE | AX172: - | AY172: - | AZ172: - | BE172: =S172 -> 2.2 | BF172: P4 | BG172: 4.34 | BH172: 0.56 | BI172: 3 | BJ172: 0.2 | BK172: ATENDE | BL172: ATENDE | BM172: ATENDE | BN172: =T172 -> 1.5 | BO172: P4 | BP172: 3.26 | BQ172: 0.73 | BR172: 3 | BS172: 0.2 | BT172: ATENDE | BU172: ATENDE | BV172: ATENDE | BW172: L3 | BX172: L3-36 | BZ172: 1 | CA172: 36 | CB172: 0 | CC172: 3912 | CD172: - | CJ172: Asfalto CIE N3 | CK172: 168 | CL172: 0 | CM172: 168 | CN172: 36 | CO172: 0 | CP172: 36
B173: 158 | C173: 24 | D173: 2 | E173: 12 | F173: 2 | G173: Rua Tomas Flores | H173: ok | I173: Ametista 3 | J173: LP-2 VP-Lâmp.150 | K173: PHILIPS PLUS PIA | L173: Ferro CEEE | M173: IP-B1 | O173: NÃO ATENDE | P173: ATENDE | Q173: NÃO ATENDE | R173: 8.6 | S173: 4.4 | T173: 4.4 | U173: 0 | V173: V4 | W173: 16.20444454 | X173: 10 | Y173: 0.06171146426 | Z173: 0.2 | AA173: - | AB173: - | AC173: 8.3 | AD173: 33 | AE173: 1 | AF173: Unilateral | AG173: 150 | AH173: 18 | AI173: 0 | AJ173: 0 | AK173: 0.3 | AL173: 2.7 | AM173: 3 | AN173: 10° | AO173: - | AP173: 11.05 | AQ173: 0.42 | AR173: - | AS173: - | AT173: ATENDE | AU173: ATENDE | AV173: ATENDE | AW173: ATENDE | AX173: - | AY173: - | AZ173: - | BE173: =S173 -> 4.4 | BF173: P4 | BG173: 7.06 | BH173: 0.38 | BI173: 3 | BJ173: 0.2 | BK173: ATENDE | BL173: ATENDE | BM173: ATENDE | BN173: 4.4 | BO173: P4 | BP173: 7.26 | BQ173: 0.6 | BR173: 3 | BS173: 0.2 | BT173: ATENDE | BU173: ATENDE | BV173: ATENDE | BW173: L3 | BX173: L3-96-1 | BZ173: 1 | CA173: 71 | CB173: 0 | CC173: 9094 | CD173: - | CJ173: Asfalto CIE N3 | CK173: 168 | CL173: 0 | CM173: 168 | CN173: 71 | CO173: 0 | CP173: 71
B174: 159 | C174: 25 | D174: 2 | E174: 8 | F174: 1 | G174: Rua Alfredo Ferreira Rodrigues | H174: ok | I174: Opalo | J174: LP-4 PC-Lâmp.100 | K174: SUPER 4Y | L174: Concreto CEEE | M174: IP-B3 | N174: Possui ponto próximo com IP-B6 | O174: NÃO ATENDE | P174: ATENDE | Q174: NÃO ATENDE | R174: 6.1 | S174: 4.3 | T174: 4 | U174: 0 | V174: V5 | W174: 6.04000002 | X174: 5 | Y174: 0.1490066181 | Z174: 0.2 | AA174: - | AB174: - | AC174: 7.7 | AD174: 28 | AE174: 1 | AF174: Unilateral | AG174: 100 | AH174: 14 | AI174: 0 | AJ174: 0 | AK174: 1.5 | AL174: 0.84 | AM174: 2.34 | AN174: 0° | AO174: - | AP174: 7.74 | AQ174: 0.51 | AR174: - | AS174: - | AT174: ATENDE | AU174: ATENDE | AV174: ATENDE | AW174: ATENDE | AX174: - | AY174: - | AZ174: - | BE174: 4.3 | BF174: P4 | BG174: 3.77 | BH174: 0.57 | BI174: 3 | BJ174: 0.2 | BK174: ATENDE | BL174: ATENDE | BM174: ATENDE | BN174: 4 | BO174: P4 | BP174: 4.59 | BQ174: 0.44 | BR174: 3 | BS174: 0.2 | BT174: ATENDE | BU174: ATENDE | BV174: ATENDE | BW174: L3 | BX174: L3-36 | BZ174: 1 | CA174: 36 | CB174: 0 | CC174: 3912 | CD174: - | CJ174: Asfalto CIE N3 | CK174: 114 | CL174: 0 | CM174: 114 | CN174: 36 | CO174: 0 | CP174: 36
B175: 160 | C175: 26 | D175: 2 | E175: 7 | F175: 1 | G175: Rua Sérgio Porto | H175: ok | I175: Opalo | J175: LP-4 PC-Lâmp.100 | K175: SUPER 4Y | L175: Concreto CEEE | M175: IP-B3 | O175: NÃO ATENDE | P175: ATENDE | Q175: NÃO ATENDE | R175: 5 | S175: 1 | T175: 1.3 | U175: 0 | V175: V5 | W175: 8.877777841 | X175: 5 | Y175: 0.1126408002 | Z175: 0.2 | AA175: - | AB175: - | AC175: 7.7 | AD175: 42 | AE175: 1 | AF175: Unilateral | AG175: 100 | AH175: 14 | AI175: 0 | AJ175: 0 | AK175: 0.3 | AL175: 2.04 | AM175: 2.34 | AN175: 0° | AO175: - | AP175: 5.14 | AQ175: 0.31 | AR175: - | AS175: - | AT175: ATENDE | AU175: ATENDE | AV175: ATENDE | AW175: ATENDE | AX175: - | AY175: - | AZ175: - | BE175: =S175 -> 1 | BF175: P4 | BG175: 3.9 | BH175: 0.34 | BI175: 3 | BJ175: 0.2 | BK175: ATENDE | BL175: ATENDE | BM175: ATENDE | BN175: 1.3 | BO175: P4 | BP175: 4.34 | BQ175: 0.42 | BR175: 3 | BS175: 0.2 | BT175: ATENDE | BU175: ATENDE | BV175: ATENDE | BW175: L3 | BX175: L3-36 | BZ175: 1 | CA175: 36 | CB175: 0 | CC175: 3912 | CD175: - | CJ175: Asfalto CIE N3 | CK175: 114 | CL175: 0 | CM175: 114 | CN175: 36 | CO175: 0 | CP175: 36
B176: 161 | C176: 27 | D176: 2 | E176: 3 | F176: 2 | G176: Rua Nossa Senhora Aparecida | H176: ok | I176: Tecnowatt Beta | J176: LP-2 VP-Lâmp.150 | K176: PHILIPS PLUS PIA | L176: Concreto CEEE | M176: IP-B2 | O176: NÃO ATENDE | P176: ATENDE | Q176: NÃO ATENDE | R176: 5.2 | S176: - | T176: - | U176: 0 | V176: V5 | W176: 9.204444351 | X176: 5 | Y176: 0.08691453621 | Z176: 0.2 | AA176: - | AB176: - | AC176: 7.8 | AD176: 32 | AE176: 1 | AF176: Unilateral | AG176: 150 | AH176: 18 | AI176: 0 | AJ176: 0 | AK176: 0.3 | AL176: 2.05 | AM176: 2.35 | AN176: 10° | AO176: - | AP176: 6.15 | AQ176: 0.39 | AR176: - | AS176: - | AT176: ATENDE | AU176: ATENDE | AV176: ATENDE | AW176: ATENDE | AX176: - | AY176: - | AZ176: - | BE176: - | BF176: - | BG176: - | BH176: - | BI176: - | BJ176: - | BK176: - | BL176: - | BM176: - | BN176: - | BO176: - | BP176: - | BQ176: - | BR176: - | BS176: - | BT176: - | BU176: - | BV176: - | BW176: L3 | BX176: L3-36 | BZ176: 1 | CA176: 36 | CB176: 0 | CC176: 3912 | CD176: - | CJ176: Asfalto CIE N3 | CK176: 168 | CL176: 0 | CM176: 168 | CN176: 36 | CO176: 0 | CP176: 36
B177: 162 | C177: 28 | D177: 2 | E177: 7 | F177: 4 | G177: Rua Gioconda | H177: ok | I177: TECNOWATT IEP Alpha | J177: LP-4 VP-Lâmp.100 | K177: SUPER 4Y | L177: Concreto CEEE | M177: IP-B3 | O177: ATENDE | P177: ATENDE | Q177: ATENDE | R177: 6.7 | S177: 1.6 | T177: 3.6 | U177: 0 | V177: V5 | W177: 10.73333332 | X177: 5 | Y177: 0.2236024848 | Z177: 0.2 | AA177: - | AB177: - | AC177: 7.7 | AD177: 28 | AE177: 1 | AF177: Unilateral | AG177: 100 | AH177: 14 | AI177: 0 | AJ177: 0 | AK177: 0.5 | AL177: 1.84 | AM177: 2.34 | AN177: 0° | AO177: - | AP177: 7.06 | AQ177: 0.45 | AR177: - | AS177: - | AT177: ATENDE | AU177: ATENDE | AV177: ATENDE | AW177: ATENDE | AX177: - | AY177: - | AZ177: - | BE177: 1.6 | BF177: P4 | BG177: 4.63 | BH177: 0.55 | BI177: 3 | BJ177: 0.2 | BK177: ATENDE | BL177: ATENDE | BM177: ATENDE | BN177: 3.6 | BO177: P4 | BP177: 4 | BQ177: 0.6 | BR177: 3 | BS177: 0.2 | BT177: ATENDE | BU177: ATENDE | BV177: ATENDE | BW177: L3 | BX177: L3-36 | BZ177: 1 | CA177: 36 | CB177: 0 | CC177: 3912 | CD177: - | CH177: 10° | CJ177: Asfalto CIE N3 | CK177: 114 | CL177: 0 | CM177: 114 | CN177: 36 | CO177: 0 | CP177: 36
B178: 163 | C178: 29 | D178: 2 | E178: 3 | F178: 4 | G178: Rua Ariovaldo Pinheiro | H178: - | I178: ILUMATIC ILP -450 | J178: LP-3 VP-Lâmp.150 | K178: PHILIPS PLUS PIA | L178: Concreto CEEE | M178: IP-B3 | O178: NÃO ATENDE | P178: ATENDE | Q178: NÃO ATENDE | R178: 7 | S178: 1 | T178: 1.5 | U178: 0 | V178: V5 | W178: 19.55555541 | X178: 5 | Y178: 0.02045454591 | Z178: 0.2 | AA178: - | AB178: - | AC178: 7.7 | AD178: 37 | AE178: 1 | AF178: Unilateral | AG178: 150 | AH178: 18 | AI178: 0 | AJ178: 0 | AK178: 0.3 | AL178: 2.04 | AM178: 2.34 | AN178: 0° | AO178: - | AP178: 8.6 | AQ178: 0.36 | AR178: - | AS178: - | AT178: ATENDE | AU178: ATENDE | AV178: ATENDE | AW178: ATENDE | AX178: - | AY178: - | AZ178: - | BE178: 1 | BF178: P4 | BG178: 5.21 | BH178: 0.48 | BI178: 3 | BJ178: 0.2 | BK178: ATENDE | BL178: ATENDE | BM178: ATENDE | BN178: 2 | BO178: P4 | BP178: 3.69 | BQ178: 0.71 | BR178: 3 | BS178: 0.2 | BT178: ATENDE | BU178: ATENDE | BV178: ATENDE | BW178: L3 | BX178: L3-55 | BZ178: 1 | CA178: 55 | CB178: 0 | CC178: 6494 | CD178: - | CE178: IP-B1 | CF178: 8.3 | CG178: 3 | CH178: 10° | CI178: Canteiro de grama de 3m entre via-passeio 2 | CJ178: Asfalto CIE N3 | CK178: 168 | CL178: 0 | CM178: 168 | CN178: 55 | CO178: 0 | CP178: 55
B179: 164 | C179: 30 | D179: 2 | E179: 6 | F179: 1 | G179: Rua Seberi | H179: ok | I179: Opalo | J179: LP-4 PC-Lâmp.70 | K179: SUPER 4Y | L179: Concreto CEEE | M179: IP-B7 | O179: NÃO ATENDE | P179: NÃO ATENDE | Q179: NÃO ATENDE | R179: 7 | S179: 1.6 | T179: 3 | U179: 0 | V179: V5 | W179: 3.124444466 | X179: 5 | Y179: 0.09601707285 | Z179: 0.2 | AA179: - | AB179: - | AC179: 7.1 | AD179: 36 | AE179: 1 | AF179: Unilateral | AG179: 70 | AH179: 12 | AI179: 0 | AJ179: 0 | AK179: 0.3 | AL179: 1.28 | AM179: 1.58 | AN179: 10° | AO179: - | AP179: 10.08 | AQ179: 0.38 | AR179: - | AS179: - | AT179: ATENDE | AU179: ATENDE | AV179: ATENDE | AW179: ATENDE | AX179: - | AY179: - | AZ179: - | BE179: 1.6 | BF179: P4 | BG179: 7.54 | BH179: 0.35 | BI179: 3 | BJ179: 0.2 | BK179: ATENDE | BL179: ATENDE | BM179: ATENDE | BN179: =T179 -> 3 | BO179: P4 | BP179: 4.36 | BQ179: 0.6 | BR179: 3 | BS179: 0.2 | BT179: ATENDE | BU179: ATENDE | BV179: ATENDE | BW179: L3 | BX179: L3-55 | BZ179: 1 | CA179: 55 | CB179: 0 | CC179: 6494 | CD179: - | CJ179: Asfalto CIE N3 | CK179: 82 | CL179: 0 | CM179: 82 | CN179: 55 | CO179: 0 | CP179: 55
B180: 165 | C180: 31 | D180: 2 | E180: 12 | F180: 4 | G180: Rua Francisca Lechner | H180: ok | I180: Opalo | J180: LP-4 PC-Lâmp.100 | K180: SUPER 4Y | L180: Concreto CEEE | M180: IP-B3 | N180: Inspeção local: 1,5m de projeção; IP-B3: projeção de 2,5 m | O180: ATENDE | P180: ATENDE | Q180: ATENDE | R180: 7.5 | S180: 2.2 | T180: 2.2 | U180: 0 | V180: V5 | W180: 12.23777766 | X180: 5 | Y180: 0.2206282934 | Z180: 0.2 | AA180: - | AB180: - | AC180: 7.7 | AD180: 28 | AE180: 1 | AF180: Unilateral | AG180: 100 | AH180: 14 | AI180: 0 | AJ180: 0 | AK180: 0.3 | AL180: 2.04 | AM180: 2.34 | AN180: 0° | AO180: - | AP180: 6.9 | AQ180: 0.46 | AR180: - | AS180: - | AT180: ATENDE | AU180: ATENDE | AV180: ATENDE | AW180: ATENDE | AX180: - | AY180: - | AZ180: - | BE180: 2.2 | BF180: P4 | BG180: 4.03 | BH180: 0.54 | BI180: 3 | BJ180: 0.2 | BK180: ATENDE | BL180: ATENDE | BM180: ATENDE | BN180: 2.2 | BO180: P4 | BP180: 4.06 | BQ180: 0.67 | BR180: 3 | BS180: 0.2 | BT180: ATENDE | BU180: ATENDE | BV180: ATENDE | BW180: L3 | BX180: L3-36 | BZ180: 1 | CA180: 36 | CB180: 0 | CC180: 3912 | CD180: - | CH180: 10° | CJ180: Asfalto CIE N3 | CK180: 114 | CL180: 0 | CM180: 114 | CN180: 36 | CO180: 0 | CP180: 36
B181: 166 | C181: 32 | D181: 2 | E181: 5 | F181: 3 | G181: Rua Cristóvão Jaques | H181: - | I181: Indalux | J181: LP-3 VP-Lâmp.150 | K181: PHILIPS PLUS PIA | L181: Concreto CEEE | M181: IP-B3 | N181: Inspeção local: 1,8m de projeção; IP-B3: projeção de 2,5 m | O181: NÃO ATENDE | P181: ATENDE | Q181: NÃO ATENDE | R181: 7 | S181: 1.5 | T181: 2 | U181: 0 | V181: V5 | W181: 6.659999977 | X181: 5 | Y181: 0.03003003058 | Z181: 0.2 | AA181: - | AB181: - | AC181: 7.7 | AD181: 30 | AE181: 1 | AF181: Unilateral | AG181: 150 | AH181: 18 | AI181: 0 | AJ181: 0 | AK181: 0.3 | AL181: 2.04 | AM181: 2.34 | AN181: 0° | AO181: - | AP181: 6.75 | AQ181: 0.49 | AR181: - | AS181: - | AT181: ATENDE | AU181: ATENDE | AV181: ATENDE | AW181: ATENDE | AX181: - | AY181: - | AZ181: - | BE181: 1.5 | BF181: P4 | BG181: 5.2 | BH181: 0.48 | BI181: 3 | BJ181: 0.2 | BK181: ATENDE | BL181: ATENDE | BM181: ATENDE | BN181: 2 | BO181: P4 | BP181: 3.16 | BQ181: 0.67 | BR181: 3 | BS181: 0.2 | BT181: ATENDE | BU181: ATENDE | BV181: ATENDE | BW181: L3 | BX181: L3-36 | BZ181: 1 | CA181: 36 | CB181: 0 | CC181: 3912 | CD181: - | CJ181: Asfalto CIE N3 | CK181: 168 | CL181: 0 | CM181: 168 | CN181: 36 | CO181: 0 | CP181: 36
B182: =C182+134 -> 167 | C182: 33 | D182: 2 | E182: 6 | F182: 5 | G182: Rua Lila Ripoll | H182: ok | I182: TECNOWATT IEP Alpha | J182: LP-4 VP-Lâmp.100 | K182: SUPER 4Y | L182: Concreto CEEE | M182: IP-B3 | N182: Inspeção local: 1,5m de projeção; IP-B3: projeção de 2,5 m | O182: NÃO ATENDE | P182: ATENDE | Q182: NÃO ATENDE | R182: 7 | S182: 2.4 | T182: 2.8 | U182: 0 | V182: V5 | W182: 8.657777755 | X182: 5 | Y182: 0.03465092549 | Z182: 0.2 | AA182: - | AB182: - | AC182: 7.7 | AD182: 38 | AE182: 1 | AF182: Unilateral | AG182: 100 | AH182: 14 | AI182: 0 | AJ182: 0 | AK182: 0.3 | AL182: =AM182-AK182 -> 2.04 | AM182: 2.34 | AN182: 0° | AO182: - | AP182: 9.36 | AQ182: 0.39 | AR182: - | AS182: - | AT182: ATENDE | AU182: ATENDE | AV182: ATENDE | AW182: ATENDE | AX182: - | AY182: - | AZ182: - | BE182: 2.4 | BF182: P4 | BG182: 6.56 | BH182: 0.38 | BI182: 3 | BJ182: 0.2 | BK182: ATENDE | BL182: ATENDE | BM182: ATENDE | BN182: 2.8 | BO182: P4 | BP182: 3.87 | BQ182: 0.55 | BR182: 3 | BS182: 0.2 | BT182: ATENDE | BU182: ATENDE | BV182: ATENDE | BW182: L3 | BX182: L3-55 | BZ182: 1 | CA182: 55 | CB182: 0 | CC182: 6494 | CD182: - | CJ182: Asfalto CIE N3 | CK182: 114 | CL182: 0 | CM182: 114 | CN182: 55 | CO182: 0 | CP182: 55
B183: 168 | C183: 34 | D183: 2 | E183: 6 | F183: 2 | G183: Rua Um | H183: ok | I183: Opalo | J183: LP-4 PC-Lâmp.70 | K183: SUPER 4Y | L183: Concreto CEEE | M183: IP-B7 | N183: Não consta informação de poste; Reluz: IP-B3 e Inspeção: IP-B7 | O183: NÃO ATENDE | P183: ATENDE | Q183: NÃO ATENDE | R183: 8 | S183: 1 | T183: 1.5 | U183: 0 | V183: V5 | W183: 5.406666637 | X183: 5 | Y183: 0.07398273888 | Z183: 0.2 | AA183: - | AB183: - | AC183: 7.1 | AD183: 35 | AE183: 1 | AF183: Unilateral | AG183: 70 | AH183: 12 | AI183: 0 | AJ183: 0 | AK183: 0.3 | AL183: 1.28 | AM183: 1.58 | AN183: 10° | AO183: - | AP183: 9.82 | AQ183: 0.42 | AR183: - | AS183: - | AT183: ATENDE | AU183: ATENDE | AV183: ATENDE | AW183: ATENDE | AX183: - | AY183: - | AZ183: - | BE183: 1 | BF183: P4 | BG183: 8.37 | BH183: 0.38 | BI183: 3 | BJ183: 0.2 | BK183: ATENDE | BL183: ATENDE | BM183: ATENDE | BN183: 1.5 | BO183: P4 | BP183: 4.09 | BQ183: 0.71 | BR183: 3 | BS183: 0.2 | BT183: ATENDE | BU183: ATENDE | BV183: ATENDE | BW183: L3 | BX183: L3-55 | BZ183: 1 | CA183: 55 | CB183: 0 | CC183: 6494 | CD183: - | CJ183: Asfalto CIE N3 | CK183: 82 | CL183: 0 | CM183: 82 | CN183: 55 | CO183: 0 | CP183: 55
B184: 169 | C184: 35 | D184: 2 | E184: 12 | F184: 1 | G184: Avenida Polonia | H184: ok | I184: Ametista 3 | J184: LP-2 VP-Lâmp.150 | K184: PHILIPS PLUS PIA | L184: Concreto CEEE | M184: IP-B1 | O184: NÃO ATENDE | P184: NÃO ATENDE | Q184: NÃO ATENDE | R184: 8.5 | S184: 4 | T184: 4.4 | U184: 0 | V184: V3 | W184: 14 | X184: 15 | Y184: 0.02142857228 | Z184: 0.2 | AA184: 1 | AB184: 0.4 | AC184: 8.3 | AD184: 40 | AE184: 1 | AF184: Unilateral | AG184: 150 | AH184: 18 | AI184: 0 | AJ184: 0 | AK184: 0.3 | AL184: 2.7 | AM184: 3 | AN184: 10° | AO184: - | AP184: 18.81 | AQ184: 0.31 | AR184: 1.37 | AS184: 0.47 | AT184: ATENDE | AU184: ATENDE | AV184: ATENDE | AW184: ATENDE | AX184: ATENDE | AY184: ATENDE | AZ184: ATENDE | BE184: 4 | BF184: P3 | BG184: 8.72 | BH184: 0.35 | BI184: 5 | BJ184: 0.2 | BK184: ATENDE | BL184: ATENDE | BM184: ATENDE | BN184: 4.4 | BO184: P3 | BP184: 9 | BQ184: 0.53 | BR184: 5 | BS184: 0.2 | BT184: ATENDE | BU184: ATENDE | BV184: ATENDE | BW184: L3 | BX184: L3-144-2 | BZ184: 1 | CA184: 108 | CB184: 0 | CC184: 13756 | CD184: - | CE184: IP-B4 | CF184: 9.1 | CG184: 3 | CH184: 0° | CJ184: Asfalto CIE N3 | CK184: 168 | CL184: 0 | CM184: 168 | CN184: 108 | CO184: 0 | CP184: 108
B185: 170 | C185: 36 | D185: 2 | E185: 12 | F185: 6 | G185: Praça João Bergman | H185: ok | I185: TECNOWATT IEP Alpha | J185: LP-3 VP-Lâmp.150 | K185: PHILIPS PLUS PIA | L185: IP-PA10 | M185: IP-B3 | N185: Reluz: Núcleo para 4 luminárias; Inspeção: IP-B3 | O185: NÃO ATENDE | P185: ATENDE | Q185: NÃO ATENDE | R185: 7.7 | S185: 1 | T185: 2 | U185: 0 | V185: V5 | W185: 23.45111104 | X185: 5 | Y185: 0.01279257138 | Z185: 0.2 | AA185: - | AB185: - | AC185: 7.7 | AD185: 46 | AE185: 1 | AF185: Unilateral | AG185: 150 | AH185: 18 | AI185: 0 | AJ185: 0 | AK185: 0.3 | AL185: 2.04 | AM185: 2.34 | AN185: 0° | AO185: - | AP185: 7.33 | AQ185: 0.24 | AR185: - | AS185: - | AT185: ATENDE | AU185: ATENDE | AV185: ATENDE | AW185: ATENDE | AX185: - | AY185: - | AZ185: - | BE185: 1 | BF185: P4 | BG185: 5.09 | BH185: 0.26 | BI185: 3 | BJ185: 0.2 | BK185: ATENDE | BL185: ATENDE | BM185: ATENDE | BN185: 2 | BO185: P4 | BP185: 4.22 | BQ185: 0.51 | BR185: 3 | BS185: 0.2 | BT185: ATENDE | BU185: ATENDE | BV185: ATENDE | BW185: L3 | BX185: L3-55 | BZ185: 1 | CA185: 55 | CB185: 0 | CC185: 6494 | CD185: - | CH185: 10° | CJ185: Asfalto CIE N3 | CK185: 168 | CL185: 0 | CM185: 168 | CN185: 55 | CO185: 0 | CP185: 55
B186: 171 | C186: 37 | D186: 2 | E186: 10 | F186: 3 | G186: Avenida Edgar Pires de Castro | H186: ok | I186: Tecnowatt Beta | J186: LP-2 VP-Lâmp.150 | K186: PHILIPS PLUS PIA | L186: Concreto CEEE | M186: IP-B3 | N186: Possui ponto próximo com IP-B6 | O186: NÃO ATENDE | P186: NÃO ATENDE | Q186: NÃO ATENDE | R186: 6.5 | S186: 3 | T186: - | U186: 0 | V186: V2 | W186: 4.08 | X186: 20 | Y186: 0 | Z186: 0.3 | AA186: 1.5 | AB186: 0.4 | AC186: 7.7 | AD186: 35 | AE186: 1 | AF186: Unilateral | AG186: 150 | AH186: 18 | AI186: 0 | AJ186: 0 | AK186: 4.5 | AL186: -2.16 | AM186: 2.34 | AN186: 0° | AO186: - | AP186: 31.39 | AQ186: 0.44 | AR186: 2.19 | AS186: 0.41 | AT186: ATENDE | AU186: ATENDE | AV186: ATENDE | AW186: ATENDE | AX186: ATENDE | AY186: ATENDE | AZ186: ATENDE | BE186: 4 | BF186: P2 | BG186: 36.38 | BH186: 0.36 | BI186: 10 | BJ186: 0.25 | BK186: ATENDE | BL186: ATENDE | BM186: ATENDE | BN186: - | BO186: - | BP186: - | BQ186: - | BR186: - | BS186: - | BT186: - | BU186: - | BV186: - | BW186: L3 | BX186: L3-288-1 | BZ186: 1 | CA186: 213 | CB186: 0 | CC186: 27682 | CD186: - | CJ186: Asfalto CIE N3 | CK186: 168 | CL186: 0 | CM186: 168 | CN186: 213 | CO186: 0 | CP186: 213
B187: 172 | C187: 38 | D187: 2 | E187: 5 | F187: 4 | G187: Rua Alberto Hoffman | H187: ok | I187: TECNOWATT IEP Alpha | J187: LP-3 VP-Lâmp.150 | K187: PHILIPS PLUS PIA | L187: Concreto CEEE | M187: IP-B2 | N187: Inspeção local: 0,5m de projeção; IP-B2: projeção de 2,5 m | O187: NÃO ATENDE | P187: ATENDE | Q187: NÃO ATENDE | R187: 9.5 | S187: - | T187: 2 | U187: 2 | V187: V5 | W187: 14.10222222 | X187: 5 | Y187: 0.09927513394 | Z187: 0.2 | AA187: - | AB187: - | AC187: 7.8 | AD187: 28 | AE187: 1 | AF187: Unilateral | AG187: 150 | AH187: 18 | AI187: 0 | AJ187: 0 | AK187: 0.3 | AL187: 2.05 | AM187: 2.35 | AN187: 10° | AO187: - | AP187: 10.08 | AQ187: 0.52 | AR187: - | AS187: - | AT187: ATENDE | AU187: ATENDE | AV187: ATENDE | AW187: ATENDE | AX187: - | AY187: - | AZ187: - | BA187: 2 | BB187: C3 | BC187: 5.32 | BD187: 0.72 | BE187: =S187 -> - | BF187: - | BG187: - | BH187: - | BI187: - | BJ187: - | BK187: - | BL187: - | BM187: - | BN187: 2 | BO187: P4 | BP187: 3.02 | BQ187: 0.72 | BR187: 3 | BS187: 0.2 | BT187: ATENDE | BU187: ATENDE | BV187: ATENDE | BW187: L3 | BX187: L3-55 | BZ187: 1 | CA187: 55 | CB187: 0 | CC187: 6494 | CD187: - | CE187: IP-B4 | CF187: 9.1 | CG187: 3 | CH187: 10° | CI187: Canteiros de grama de 0,5m entre via e ciclovia; e ciclovia e passeio 2 | CJ187: Asfalto CIE N3 | CK187: 168 | CL187: 0 | CM187: 168 | CN187: 55 | CO187: 0 | CP187: 55
B188: 173 | C188: 39 | D188: 2 | E188: 3 | F188: 1 | G188: Rua Eustáquio Inácio | H188: ok | I188: TECNOWATT IEP Alpha | J188: LP-3 VP-Lâmp.150 | K188: PHILIPS PLUS PIA | L188: Concreto CEEE | M188: IP-B3 | O188: NÃO ATENDE | P188: ATENDE | Q188: NÃO ATENDE | R188: 5 | S188: 2.5 | T188: 2.5 | U188: 0 | V188: V4 | W188: 16.82222222 | X188: 10 | Y188: 0.09511228534 | Z188: 0.2 | AA188: - | AB188: - | AC188: 7.7 | AD188: 31 | AE188: 1 | AF188: Unilateral | AG188: 150 | AH188: 18 | AI188: 0 | AJ188: 0 | AK188: 2.6 | AL188: -0.26 | AM188: 2.34 | AN188: 0° | AO188: - | AP188: 11.07 | AQ188: 0.52 | AR188: - | AS188: - | AT188: ATENDE | AU188: ATENDE | AV188: ATENDE | AW188: ATENDE | AX188: - | AY188: - | AZ188: - | BE188: 2.8 | BF188: P4 | BG188: 11.46 | BH188: 0.42 | BI188: 3 | BJ188: 0.2 | BK188: ATENDE | BL188: ATENDE | BM188: ATENDE | BN188: 2.5 | BO188: P4 | BP188: 4.48 | BQ188: 0.61 | BR188: 3 | BS188: 0.2 | BT188: ATENDE | BU188: ATENDE | BV188: ATENDE | BW188: L3 | BX188: L3-55 | BZ188: 1 | CA188: 55 | CB188: 0 | CC188: 6494 | CD188: - | CJ188: Asfalto CIE N3 | CK188: 168 | CL188: 0 | CM188: 168 | CN188: 55 | CO188: 0 | CP188: 55
B189: 174 | C189: 40 | D189: 2 | E189: 6 | F189: 3 | G189: Rua Joffre Veríssimo | H189: ok | I189: TECNOWATT IEP Alpha | J189: LP-4 PC-Lâmp.70 | K189: SUPER 4Y | L189: Concreto CEEE | M189: IP-B7 | O189: NÃO ATENDE | P189: ATENDE | Q189: NÃO ATENDE | R189: 6 | S189: 1 | T189: - | U189: 0 | V189: V5 | W189: 5.131111111 | X189: 5 | Y189: 0.05846686877 | Z189: 0.2 | AA189: - | AB189: - | AC189: 7.1 | AD189: 35 | AE189: 1 | AF189: Unilateral | AG189: 70 | AH189: 12 | AI189: 0 | AJ189: 0 | AK189: 1 | AL189: 0.58 | AM189: 1.58 | AN189: 10° | AO189: - | AP189: 5.67 | AQ189: 0.45 | AR189: - | AS189: - | AT189: ATENDE | AU189: ATENDE | AV189: ATENDE | AW189: ATENDE | AX189: - | AY189: - | AZ189: - | BE189: =S189 -> 1 | BF189: P4 | BG189: 5.12 | BH189: 0.41 | BI189: 3 | BJ189: 0.2 | BK189: ATENDE | BL189: ATENDE | BM189: ATENDE | BN189: 1 | BO189: P4 | BP189: 3.79 | BQ189: 0.66 | BR189: 3 | BS189: 0.2 | BT189: ATENDE | BU189: ATENDE | BV189: ATENDE | BW189: L3 | BX189: L3-36 | BZ189: 1 | CA189: 36 | CB189: 0 | CC189: 3912 | CD189: - | CH189: 10° | CJ189: Asfalto CIE N3 | CK189: 82 | CL189: 0 | CM189: 82 | CN189: 36 | CO189: 0 | CP189: 36
B190: 175 | C190: 41 | D190: 2 | E190: 6 | F190: 4 | G190: Rua Dorival Castilho Machado | H190: ok | I190: TECNOWATT IEP Alpha | J190: LP-4 VP-Lâmp.100 | K190: SUPER 4Y | L190: Concreto CEEE | M190: IP-B7 | O190: NÃO ATENDE | P190: ATENDE | Q190: NÃO ATENDE | R190: 6.6 | S190: 1 | T190: 3.5 | U190: 0 | V190: V5 | W190: 6.468888889 | X190: 5 | Y190: 0.03091721058 | Z190: 0.2 | AA190: - | AB190: - | AC190: 7.1 | AD190: 33 | AE190: 1 | AF190: Unilateral | AG190: 100 | AH190: 14 | AI190: 0 | AJ190: 0 | AK190: 2.5 | AL190: -0.92 | AM190: 1.58 | AN190: 10° | AO190: - | AP190: 9.81 | AQ190: 0.49 | AR190: - | AS190: - | AT190: ATENDE | AU190: ATENDE | AV190: ATENDE | AW190: ATENDE | AX190: - | AY190: - | AZ190: - | BE190: 1 | BF190: P4 | BG190: 10.58 | BH190: 0.43 | BI190: 3 | BJ190: 0.2 | BK190: ATENDE | BL190: ATENDE | BM190: ATENDE | BN190: =T190 -> 3.5 | BO190: P4 | BP190: 3.66 | BQ190: 0.6 | BR190: 3 | BS190: 0.2 | BT190: ATENDE | BU190: ATENDE | BV190: ATENDE | BW190: L3 | BX190: L3-55 | BZ190: 1 | CA190: 55 | CB190: 0 | CC190: 6494 | CD190: - | CE190: IP-B3 | CF190: 7.7 | CG190: 2.34 | CH190: 10° | CJ190: Asfalto CIE N3 | CK190: 114 | CL190: 0 | CM190: 114 | CN190: 55 | CO190: 0 | CP190: 55
B191: 176 | C191: 42 | D191: 2 | E191: 4 | F191: 1 | G191: Rua Guenoas | H191: ok | I191: TECNOWATT IEP Alpha | J191: LP-3 VP-Lâmp.150 | K191: PHILIPS PLUS PIA | L191: Concreto CEEE | M191: IP-B3 | O191: NÃO ATENDE | P191: ATENDE | Q191: NÃO ATENDE | R191: 7 | S191: 3.5 | T191: 3.5 | U191: 0 | V191: V5 | W191: 9.382222207 | X191: 5 | Y191: 0.02131691145 | Z191: 0.2 | AA191: - | AB191: - | AC191: 7.7 | AD191: 32 | AE191: 1 | AF191: Unilateral | AG191: 150 | AH191: 18 | AI191: 0 | AJ191: 0 | AK191: 0.3 | AL191: 2.04 | AM191: 2.34 | AN191: 0° | AO191: - | AP191: 6.23 | AQ191: 0.42 | AR191: - | AS191: - | AT191: ATENDE | AU191: ATENDE | AV191: ATENDE | AW191: ATENDE | AX191: - | AY191: - | AZ191: - | BE191: 3.5 | BF191: P4 | BG191: 3.23 | BH191: 0.44 | BI191: 3 | BJ191: 0.2 | BK191: ATENDE | BL191: ATENDE | BM191: ATENDE | BN191: 3.5 | BO191: P4 | BP191: 3.16 | BQ191: 0.6 | BR191: 3 | BS191: 0.2 | BT191: ATENDE | BU191: ATENDE | BV191: ATENDE | BW191: L3 | BX191: L3-36 | BZ191: 1 | CA191: 36 | CB191: 0 | CC191: 3912 | CD191: - | CH191: 7° | CJ191: Asfalto CIE N3 | CK191: 168 | CL191: 0 | CM191: 168 | CN191: 36 | CO191: 0 | CP191: 36
B192: 177 | C192: 43 | D192: 2 | E192: 3 | F192: 3 | G192: Rua Lemúria | H192: ok | I192: TECNOWATT IEP Alpha | J192: LP-3 VP-Lâmp.150 | K192: PHILIPS PLUS PIA | L192: Concreto CEEE | M192: IP-B3 | O192: NÃO ATENDE | P192: ATENDE | Q192: NÃO ATENDE | R192: 6 | S192: 2.5 | T192: 2 | U192: 0 | V192: V5 | W192: 11.65111111 | X192: 5 | Y192: 0.008582872401 | Z192: 0.2 | AA192: - | AB192: - | AC192: 7.7 | AD192: 45.5 | AE192: 1 | AF192: Unilateral | AG192: 150 | AH192: 18 | AI192: 0 | AJ192: 0 | AK192: 0.3 | AL192: 2.04 | AM192: 2.34 | AN192: 0° | AO192: - | AP192: 8.15 | AQ192: 0.27 | AR192: - | AS192: - | AT192: ATENDE | AU192: ATENDE | AV192: ATENDE | AW192: ATENDE | AX192: - | AY192: - | AZ192: - | BE192: 2.5 | BF192: P4 | BG192: 5.42 | BH192: 0.27 | BI192: 3 | BJ192: 0.2 | BK192: ATENDE | BL192: ATENDE | BM192: ATENDE | BN192: 2 | BO192: P4 | BP192: 4.98 | BQ192: 0.4 | BR192: 3 | BS192: 0.2 | BT192: ATENDE | BU192: ATENDE | BV192: ATENDE | BW192: L3 | BX192: L3-55 | BZ192: 1 | CA192: 55 | CB192: 0 | CC192: 6494 | CD192: - | CJ192: Asfalto CIE N3 | CK192: 168 | CL192: 0 | CM192: 168 | CN192: 55 | CO192: 0 | CP192: 55
B193: 178 | C193: 44 | D193: 2 | E193: 9 | F193: 1 | G193: Rua Dinarte Ribeiro | H193: ok | I193: Ametista 3 | J193: LP-2 VP-Lâmp.150 | K193: PHILIPS PLUS PIA | L193: Concreto CEEE | M193: IP-B1 e LP-D3 | N193: Possui dois circuitos de iluminação | O193: NÃO ATENDE | P193: ATENDE | Q193: NÃO ATENDE | R193: 9 | S193: 2.7 | T193: 4.9 | U193: 0 | V193: V4 | W193: 29.8644445 | X193: 10 | Y193: 0.05357541554 | Z193: 0.2 | AA193: - | AB193: - | AC193: 8,3 e 4 | AD193: 37 e 30 | AE193: 1 | AF193: Unilateral e Bilateral Alternada | AG193: 150 | AH193: 18 | AI193: 80 | AJ193: 0 | AK193: 0.3 | AL193: 2.7 | AM193: 3 | AN193: 10 e 0 | AO193: - | AP193: 25.68 | AQ193: 0.24 | AR193: - | AS193: - | AT193: ATENDE | AU193: ATENDE | AV193: ATENDE | AW193: ATENDE | AX193: - | AY193: - | AZ193: - | BE193: 2.7 | BF193: P4 | BG193: 19.46 | BH193: 0.37 | BI193: 3 | BJ193: 0.2 | BK193: ATENDE | BL193: ATENDE | BM193: ATENDE | BN193: 4.9 | BO193: P4 | BP193: 17.72 | BQ193: 0.27 | BR193: 3 | BS193: 0.2 | BT193: ATENDE | BU193: ATENDE | BV193: ATENDE | BW193: L3 | BX193: L3-36 | BY193: T-80-D | BZ193: 1 | CA193: 36 | CB193: 80 | CC193: 3912 | CD193: 6338 | CI193: IP Sec. (Bil. Alter.) distante de 20 m de IP Princ. | CJ193: Asfalto CIE N3 | CK193: 168 | CL193: 80 | CM193: 248 | CN193: 36 | CO193: 80 | CP193: 116
B194: 179 | C194: 45 | D194: 2 | E194: 0 | F194: 1 | G194: Rua Professor Cristiano Fisher | H194: ok | I194: Ametista 3 | J194: LP-1 VP-Lâmp.250 | K194: PHILIPS PLUS PIA | L194: Concreto CEEE | M194: IP-B1 | O194: NÃO ATENDE | P194: ATENDE | Q194: NÃO ATENDE | R194: 6.2 | S194: 4.6 | T194: 5 | U194: 0 | V194: V2 | W194: 31.83111106 | X194: 20 | Y194: 0.02513264492 | Z194: 0.3 | AA194: 1.5 | AB194: 0.4 | AC194: 8.3 | AD194: 46 | AE194: 1 | AF194: Unilateral | AG194: 250 | AH194: 24 | AI194: 0 | AJ194: 0 | AK194: 0.3 | AL194: 2.7 | AM194: 3 | AN194: 10° | AO194: - | AP194: 20.04 | AQ194: 0.31 | AR194: 1.71 | AS194: 0.52 | AT194: ATENDE | AU194: ATENDE | AV194: ATENDE | AW194: ATENDE | AX194: ATENDE | AY194: ATENDE | AZ194: ATENDE | BE194: 4.6 | BF194: P2 | BG194: 16.7 | BH194: 0.42 | BI194: 10 | BJ194: 0.25 | BK194: ATENDE | BL194: ATENDE | BM194: ATENDE | BN194: 5 | BO194: P2 | BP194: 12.83 | BQ194: 0.32 | BR194: 10 | BS194: 0.25 | BT194: ATENDE | BU194: ATENDE | BV194: ATENDE | BW194: L3 | BX194: L3-240-1 | BZ194: 1 | CA194: 179 | CB194: 0 | CC194: 23116 | CD194: - | CE194: IP-B4 | CF194: 9.1 | CG194: 3 | CH194: 0° | CJ194: Asfalto CIE N3 | CK194: 274 | CL194: 0 | CM194: 274 | CN194: 179 | CO194: 0 | CP194: 179
B195: 180 | C195: 46 | D195: 3 | E195: 11 | F195: 6 | G195: Rua Siqueira Campos | H195: OK(DIP) | I195: LED | J195: (não informado) | K195: (não informado) | L195: IP-PAC 8S | M195: IP-PAC | O195: ATENDE | P195: ATENDE | Q195: ATENDE | R195: 14 | S195: 2 | T195: 1.5 | U195: 0 | V195: V3 | W195: 54.59365079 | X195: 15 | Y195: 0.2289643542 | Z195: 0.2 | AA195: 1 | AB195: 0.4 | AC195: 8 | AD195: 23 | AE195: 1 | AF195: Unilateral | AG195: 100 | AH195: 0 | AI195: 0 | AJ195: 0 | AK195: 0.3 | AL195: 1.7 | AM195: 2 | AN195: 10° | AO195: - | AP195: 26.56 | AQ195: 0.45 | AR195: 1.81 | AS195: 0.32 | AT195: NÃO ATENDE | AU195: ATENDE | AV195: ATENDE | AW195: ATENDE | AX195: NÃO ATENDE | AY195: ATENDE | AZ195: NÃO ATENDE | BE195: 2 | BF195: P3 | BG195: 27.35 | BH195: 0.64 | BI195: 5 | BJ195: 0.2 | BK195: ATENDE | BL195: ATENDE | BM195: ATENDE | BN195: 1.5 | BO195: P3 | BP195: 10.5 | BQ195: 0.87 | BR195: 5 | BS195: 0.2 | BT195: ATENDE | BU195: ATENDE | BV195: ATENDE | BW195: L3 | BX195: L3-192-1 | BZ195: 1 | CA195: 142 | CB195: 0 | CC195: 18259 | CD195: - | CH195: 10° | CJ195: Asfalto CIE N3 | CK195: 100 | CL195: 0 | CM195: 100 | CN195: 142 | CO195: 0 | CP195: 142
B196: 181 | C196: 47 | D196: 3 | E196: 11 | F196: 4 | G196: Avenida da Legalidade e da Democracia | H196: OK(DIP) | I196: LED | J196: (não informado) | K196: (não informado) | L196: IP-PC 15 ou PA 15 | M196: (não informado) | N196: Reluz: IP-B7 (incoerente) | O196: NÃO ATENDE | P196: ATENDE | Q196: NÃO ATENDE | R196: 10 | S196: - | T196: - | U196: 0 | V196: V1 | W196: 40.4047619 | X196: 30 | Y196: 0.1856216853 | Z196: 0.4 | AA196: 2 | AB196: 0.4 | AC196: 12 | AD196: 30 | AE196: 1 | AF196: Unilateral | AG196: 210 | AH196: 0 | AI196: 0 | AJ196: 0 | AK196: 2.3 | AL196: -0.3 | AM196: 2 | AN196: 0° | AO196: - | AP196: 30.27 | AQ196: 0.68 | AR196: 1.99 | AS196: 0.53 | AT196: ATENDE | AU196: ATENDE | AV196: ATENDE | AW196: ATENDE | AX196: ATENDE | AY196: ATENDIMENTO LIMIAR | AZ196: ATENDE | BE196: - | BF196: - | BG196: - | BH196: - | BI196: - | BJ196: - | BK196: - | BL196: - | BM196: - | BN196: - | BO196: - | BP196: - | BQ196: - | BR196: - | BS196: - | BT196: - | BU196: - | BV196: - | BW196: L3 | BX196: L3-240-2 | BZ196: 1 | CA196: 179 | CB196: 0 | CC196: 23116 | CD196: - | CH196: 10° | CJ196: Asfalto CIE N3 | CK196: 210 | CL196: 0 | CM196: 210 | CN196: 179 | CO196: 0 | CP196: 179
B197: 182 | C197: 48 | D197: 3 | E197: 9 | F197: 4 | G197: Rua Dona Margarida | H197: ok | I197: Ametista 3 | J197: LP-2 VP-Lâmp.150 | K197: PHILIPS PLUS PIA | L197: Concreto CEEE | M197: IP-B1 | N197: Possui ponto próximo com IP-B4 | O197: NÃO ATENDE | P197: NÃO ATENDE | Q197: NÃO ATENDE | R197: 10 | S197: 2 | T197: 3 | U197: 0 | V197: V3 | W197: 12.84603175 | X197: 15 | Y197: 0.06227604102 | Z197: 0.2 | AA197: 1 | AB197: 0.4 | AC197: 8.3 | AD197: 38 | AE197: 1 | AF197: Unilateral | AG197: 150 | AH197: 18 | AI197: 0 | AJ197: 0 | AK197: 0.3 | AL197: 2.7 | AM197: 3 | AN197: 10° | AO197: - | AP197: 18.65 | AQ197: 0.35 | AR197: 1.36 | AS197: 0.4 | AT197: ATENDE | AU197: ATENDE | AV197: ATENDE | AW197: ATENDE | AX197: ATENDE | AY197: ATENDE | AZ197: ATENDE | BE197: 2 | BF197: P3 | BG197: 14.52 | BH197: 0.36 | BI197: 5 | BJ197: 0.2 | BK197: ATENDE | BL197: ATENDE | BM197: ATENDE | BN197: 3 | BO197: P3 | BP197: 11.55 | BQ197: 0.57 | BR197: 5 | BS197: 0.2 | BT197: ATENDE | BU197: ATENDE | BV197: ATENDE | BW197: L3 | BX197: L3-192-1 | BZ197: 1 | CA197: 142 | CB197: 0 | CC197: 18259 | CD197: - | CJ197: Asfalto CIE N3 | CK197: 168 | CL197: 0 | CM197: 168 | CN197: 142 | CO197: 0 | CP197: 142
B198: 183 | C198: 49 | D198: 3 | E198: 9 | F198: 5 | G198: Rua Garibaldi | H198: ok | I198: TECNOWATT IEP Alpha | J198: LP-3 VP-Lâmp.150 | K198: PHILIPS PLUS PIA | L198: Ferro CEEE | M198: IP-B1 | O198: NÃO ATENDE | P198: ATENDE | Q198: NÃO ATENDE | R198: 8 | S198: 2.8 | T198: 4 | U198: 0 | V198: V3 | W198: 18.63809524 | X198: 15 | Y198: 0.01609606541 | Z198: 0.2 | AA198: 1 | AB198: 0.4 | AC198: 8.3 | AD198: 34 | AE198: 1 | AF198: Unilateral | AG198: 150 | AH198: 18 | AI198: 0 | AJ198: 0 | AK198: 0.3 | AL198: 2.7 | AM198: 3 | AN198: 10° | AO198: - | AP198: 16.33 | AQ198: 0.4 | AR198: 1.26 | AS198: 0.49 | AT198: ATENDE | AU198: ATENDE | AV198: ATENDE | AW198: ATENDE | AX198: ATENDE | AY198: ATENDE | AZ198: ATENDE | BE198: 2.8 | BF198: P3 | BG198: 11.65 | BH198: 0.41 | BI198: 5 | BJ198: 0.2 | BK198: ATENDE | BL198: ATENDE | BM198: ATENDE | BN198: 4 | BO198: P3 | BP198: 11.76 | BQ198: 0.58 | BR198: 5 | BS198: 0.2 | BT198: ATENDE | BU198: ATENDE | BV198: ATENDE | BW198: L3 | BX198: L3-144-1 | BZ198: 1 | CA198: 108 | CB198: 0 | CC198: 13756 | CD198: - | CJ198: Asfalto CIE N3 | CK198: 168 | CL198: 0 | CM198: 168 | CN198: 108 | CO198: 0 | CP198: 108
B199: 184 | C199: 50 | D199: 3 | E199: 11 | F199: 1 | G199: Estrada Costa Gama | H199: - | I199: ILUMATIC ILP -450 | J199: LP-3 VP-Lâmp.150 | K199: PHILIPS PLUS PIA | L199: Concreto CEEE | M199: IP-B3 | N199: Possui ponto próximo com IP-B6 | O199: NÃO ATENDE | P199: NÃO ATENDE | Q199: NÃO ATENDE | R199: 12.8 | S199: 2 | T199: 1.8 | U199: 0 | V199: V2 | W199: 7.366666651 | X199: 20 | Y199: 0.1085972869 | Z199: 0.3 | AA199: 1.5 | AB199: 0.4 | AC199: 7.7 | AD199: 33 | AE199: 1 | AF199: Unilateral | AG199: 100 | AH199: 14 | AI199: 0 | AJ199: 0 | AK199: 0.3 | AL199: 2.04 | AM199: 2.34 | AN199: 0° | AO199: - | AP199: 23.47 | AQ199: 0.5 | AR199: 1.64 | AS199: 0.4 | AT199: ATENDE | AU199: ATENDE | AV199: ATENDE | AW199: ATENDE | AX199: ATENDE | AY199: ATENDE | AZ199: ATENDE | BE199: 2 | BF199: P2 | BG199: 19.96 | BH199: 0.5 | BI199: 10 | BJ199: 0.25 | BK199: ATENDE | BL199: ATENDE | BM199: ATENDE | BN199: 1.8 | BO199: P2 | BP199: 13.05 | BQ199: 0.76 | BR199: 10 | BS199: 0.25 | BT199: ATENDE | BU199: ATENDE | BV199: ATENDE | BW199: L3 | BX199: L3-240-1 | BZ199: 1 | CA199: 179 | CB199: 0 | CC199: 23116 | CD199: - | CE199: IP-B4 | CF199: 9.1 | CG199: 3 | CH199: 10° | CJ199: Asfalto CIE N3 | CK199: 114 | CL199: 0 | CM199: 114 | CN199: 179 | CO199: 0 | CP199: 179
B200: 185 | C200: 51 | D200: 4 | E200: 10 | F200: 4 | G200: Rua José de Alencar | H200: ok | I200: Ametista 3 | J200: LP-2 VP-Lâmp.150 | K200: PHILIPS PLUS PIA | L200: Concreto CEEE | M200: IP-B1 | O200: ATENDE | P200: ATENDE | Q200: ATENDE | R200: 14 | S200: 1.5 | T200: 3 | U200: 2x0,8 | V200: V2 | W200: 22.99259259 | X200: 20 | Y200: 0.3479381443 | Z200: 0.3 | AA200: 1.5 | AB200: 0.4 | AC200: 8.3 | AD200: 18 | AE200: 1 | AF200: Bilateral Alternada | AG200: 150 | AH200: 18 | AI200: 0 | AJ200: 0 | AK200: 1.1 | AL200: 1.9 | AM200: 3 | AN200: 10° | AO200: 0.8 | AP200: 37.27 | AQ200: 0.78 | AR200: 2.82 | AS200: 0.73 | AT200: ATENDE | AU200: ATENDE | AV200: ATENDE | AW200: ATENDE | AX200: ATENDE | AY200: ATENDE | AZ200: ATENDE | BA200: 2x0,8 | BB200: C2 | BC200: 29.11 | BD200: 0.87 | BE200: 3.5 | BF200: P2 | BG200: 22.55 | BH200: 0.73 | BI200: 10 | BJ200: 0.25 | BK200: ATENDE | BL200: ATENDE | BM200: ATENDE | BN200: 5.5 | BO200: P2 | BP200: 19.6 | BQ200: 0.62 | BR200: 10 | BS200: 0.25 | BT200: ATENDE | BU200: ATENDE | BV200: ATENDE | BW200: L3 | BX200: L3-96-1 | BZ200: 1 | CA200: 71 | CB200: 0 | CC200: 9094 | CD200: - | CJ200: Asfalto CIE N3 | CK200: 168 | CL200: 0 | CM200: 168 | CN200: 71 | CO200: 0 | CP200: 71
B201: 186 | C201: 52 | D201: 4 | E201: 10 | F201: 5 | G201: Avenida São Sebastião | H201: - | I201: Indalux | J201: LP-3 VP-Lâmp.150 | K201: PHILIPS PLUS PIA | L201: Concreto CEEE | M201: IP-B3 | O201: NÃO ATENDE | P201: NÃO ATENDE | Q201: NÃO ATENDE | R201: 19.5 | S201: 5.5 | T201: 4.5 | U201: 0 | V201: V2 | W201: 5.320987653 | X201: 20 | Y201: 0 | Z201: 0.3 | AA201: 1.5 | AB201: 0.4 | AC201: 7.7 | AD201: 38 | AE201: 2 | AF201: Canteiro Central | AG201: 150 | AH201: 18 | AI201: 0 | AJ201: 0 | AK201: 3 | AL201: -0.66 | AM201: 2.34 | AN201: 0° | AO201: 6 | AP201: 24.55 | AQ201: 0.37 | AR201: 1.69 | AS201: 0.4 | AT201: ATENDE | AU201: ATENDE | AV201: ATENDE | AW201: ATENDE | AX201: ATENDE | AY201: ATENDE | AZ201: ATENDE | BE201: =S201 -> 5.5 | BF201: P2 | BG201: 11.09 | BH201: 0.52 | BI201: 10 | BJ201: 0.25 | BK201: ATENDE | BL201: ATENDE | BM201: ATENDE | BN201: =T201 -> 4.5 | BO201: P2 | BP201: 11.8 | BQ201: 0.54 | BR201: 10 | BS201: 0.25 | BT201: ATENDE | BU201: ATENDE | BV201: ATENDE | BW201: L3 | BX201: L3-192-1 | BZ201: 2 | CA201: 142 | CB201: 0 | CC201: 18259 | CD201: - | CE201: IP-B1 | CF201: 8.3 | CG201: 3 | CH201: 10° | CJ201: Asfalto CIE N3 | CK201: 336 | CL201: 0 | CM201: 336 | CN201: 284 | CO201: 0 | CP201: 284
B202: 187 | C202: 53 | D202: 4 | E202: 0 | F202: 3 | G202: Rua Nestor Ludwig | H202: - | J202: (não informado) | K202: (não informado) | L202: Concreto CEEE | M202: IP-B4 + IP-B7 | N202: Não consta informação de poste/braço | O202: NÃO ATENDE | P202: NÃO ATENDE | Q202: NÃO ATENDE | R202: 12 | S202: 3 | T202: 3 | U202: 3 | V202: V3 | W202: 14.66172832 | X202: 15 | Y202: 0.1227686063 | Z202: 0.2 | AA202: 1 | AB202: 0.4 | AC202: 9,1 e 7,7 | AD202: 28 | AE202: 1 | AF202: Unilateral | AG202: 250 | AH202: 24 | AI202: 150 | AJ202: 18 | AK202: 0.3 | AL202: 2,7 e 2,04 | AM202: 3 e 2,34 | AN202: 10° e 0° | AO202: - | AP202: 16.45 | AQ202: 0.52 | AR202: 1.06 | AS202: 0.42 | AT202: ATENDE | AU202: ATENDE | AV202: ATENDE | AW202: ATENDE | AX202: ATENDE | AY202: ATENDE | AZ202: ATENDE | BA202: 3 | BB202: C3 | BC202: 14.78 | BD202: 0.6 | BE202: 3 | BF202: P3 | BG202: 6.66 | BH202: 0.67 | BI202: 5 | BJ202: 0.2 | BK202: ATENDE | BL202: ATENDE | BM202: ATENDE | BN202: 3 | BO202: P3 | BP202: 12 | BQ202: 0.61 | BR202: 5 | BS202: 0.2 | BT202: ATENDE | BU202: ATENDE | BV202: ATENDE | BW202: L3 | BX202: L3-96-2 | BY202: L3-36 | BZ202: 1 | CA202: 71 | CB202: 36 | CC202: 9094 | CD202: 3912 | CJ202: Asfalto CIE N3 | CK202: 274 | CL202: 168 | CM202: 442 | CN202: 71 | CO202: 36 | CP202: 107
B203: 188 | C203: 54 | D203: 4 | E203: 2 | F203: 3 | G203: Estrada João de Oliveira Remião | H203: ok | I203: Opalo | J203: LP-4 PC-Lâmp.100 | K203: SUPER 4Y | L203: IP- PA 12 | M203: Núcleo de 2 lum. (180°) | O203: NÃO ATENDE | P203: NÃO ATENDE | Q203: NÃO ATENDE | R203: 15.4 | S203: 3.5 | T203: - | U203: 0 | V203: V1 | W203: 20.8172839 | X203: 30 | Y203: 0.0480370064 | Z203: 0.4 | AA203: 2 | AB203: 0.4 | AC203: 12 | AD203: 29 | AE203: 2 | AF203: Canteiro Central | AG203: 250 | AH203: 24 | AI203: 0 | AJ203: 0 | AK203: 0.5 | AL203: =AM203-AK203 -> 0 | AM203: 0.5 | AN203: 0° | AO203: 1 | AP203: 33.81 | AQ203: 0.7 | AR203: 2.59 | AS203: 0.57 | AT203: ATENDE | AU203: ATENDE | AV203: ATENDE | AW203: ATENDE | AX203: ATENDE | AY203: ATENDE | AZ203: ATENDE | BE203: 3.5 | BF203: P2 | BG203: 23.32 | BH203: 0.75 | BI203: 10 | BJ203: 0.25 | BK203: ATENDE | BL203: ATENDE | BM203: ATENDE | BN203: - | BO203: - | BP203: - | BQ203: - | BR203: - | BS203: - | BT203: - | BU203: - | BV203: - | BW203: L3 | BX203: L3-192-1 | BZ203: 2 | CA203: 142 | CB203: 0 | CC203: 18259 | CD203: - | CJ203: Asfalto CIE N3 | CK203: 548 | CL203: 0 | CM203: 548 | CN203: 284 | CO203: 0 | CP203: 284
B204: 189 | C204: 55 | D204: 6 | E204: 10 | F204: 6 | G204: Avenida Adelino Ferreira Jardim | H204: ok | I204: Ametista 3 | J204: LP-2 VP-Lâmp.150 | K204: PHILIPS PLUS PIA | L204: Concreto CEEE | M204: IP-B2 | O204: NÃO ATENDE | P204: NÃO ATENDE | Q204: NÃO ATENDE | R204: 23 | S204: 2.5 | T204: 1.5 | U204: 0 | V204: V2 | W204: 17.5973913 | X204: 20 | Y204: 0.04546128379 | Z204: 0.3 | AA204: 1.5 | AB204: 0.4 | AC204: 7.8 | AD204: 31 | AE204: 2 | AF204: Canteiro Central | AG204: 150 | AH204: 18 | AI204: 0 | AJ204: 0 | AK204: 0.5 | AL204: 1.85 | AM204: 2.35 | AN204: 10° | AO204: 1 | AP204: 26.1 | AQ204: 0.45 | AR204: 1.68 | AS204: 0.4 | AT204: ATENDE | AU204: ATENDE | AV204: ATENDE | AW204: ATENDE | AX204: ATENDE | AY204: ATENDE | AZ204: ATENDE | BE204: 2.5 | BF204: P2 | BG204: 10.27 | BH204: 0.67 | BI204: 10 | BJ204: 0.25 | BK204: ATENDE | BL204: ATENDE | BM204: ATENDE | BN204: 1.5 | BO204: P2 | BP204: 11.72 | BQ204: 0.73 | BR204: 10 | BS204: 0.25 | BT204: ATENDE | BU204: ATENDE | BV204: ATENDE | BW204: L3 | BX204: L3-144-2 | BZ204: 2 | CA204: 108 | CB204: 0 | CC204: 13756 | CD204: - | CE204: IP-B1 | CF204: 8.3 | CG204: 3 | CH204: 10° | CJ204: Asfalto CIE N3 | CK204: 336 | CL204: 0 | CM204: 336 | CN204: 216 | CO204: 0 | CP204: 216
B205: 190 | C205: 56 | D205: 6 | E205: 0 | F205: 4 | G205: Avenida Plínio Brasil | H205: ok | I205: Ametista 3 | J205: LP-1 VP-Lâmp.251 | K205: PHILIPS PLUS PIA | L205: Concreto CEEE | M205: IP-B1 | N205: Possui ponto próximo com IP-B4 | O205: NÃO ATENDE | P205: NÃO ATENDE | Q205: NÃO ATENDE | R205: 22 | S205: 1.5 | T205: 2 | U205: 0 | V205: V1 | W205: 10.83846154 | X205: 30 | Y205: 0.009226401703 | Z205: 0.4 | AA205: 2 | AB205: 0.4 | AC205: 8.3 | AD205: 31 | AE205: 1 | AF205: Bilateral Frontal | AG205: 250 | AH205: 24 | AI205: 0 | AJ205: 0 | AK205: 0.3 | AL205: 2.7 | AM205: 3 | AN205: 10° | AO205: 2 | AP205: 30.22 | AQ205: 0.48 | AR205: 2.1 | AS205: 0.55 | AT205: ATENDE | AU205: ATENDE | AV205: ATENDE | AW205: ATENDE | AX205: ATENDE | AY205: ATENDE | AZ205: ATENDE | BE205: 1.5 | BF205: P2 | BG205: 21.59 | BH205: 0.55 | BI205: 10 | BJ205: 0.25 | BK205: ATENDE | BL205: ATENDE | BM205: ATENDE | BN205: 2 | BO205: P2 | BP205: 21.01 | BQ205: 0.53 | BR205: 10 | BS205: 0.25 | BT205: ATENDE | BU205: ATENDE | BV205: ATENDE | BW205: L3 | BX205: L3-192-1 | BZ205: 1 | CA205: 142 | CB205: 0 | CC205: 18259 | CD205: - | CJ205: Asfalto CIE N3 | CK205: 274 | CL205: 0 | CM205: 274 | CN205: 142 | CO205: 0 | CP205: 142
B206: 191 | C206: 57 | D206: 6 | E206: 11 | F206: 3 | G206: Avenida Bento Gonçalves | H206: ok | I206: Ametista 3 | J206: LP-2 VP-Lâmp.250 | K206: PHILIPS PLUS PIA | L206: Concreto CEEE | M206: IP-B1 | O206: NÃO ATENDE | P206: NÃO ATENDE | Q206: NÃO ATENDE | R206: 24 | S206: 3.4 | T206: 3.4 | U206: 0 | V206: V1 | W206: 22.08547009 | X206: 30 | Y206: 0.1086687307 | Z206: 0.4 | AA206: 2 | AB206: 0.4 | AC206: 8.3 | AD206: 32 | AE206: 1 | AF206: Bilateral Frontal | AG206: 250 | AH206: 24 | AI206: 0 | AJ206: 0 | AK206: 0.3 | AL206: 2.7 | AM206: 3 | AN206: 10° | AO206: 1.5 | AP206: 34.84 | AQ206: 0.47 | AR206: 2.39 | AS206: 0.55 | AT206: ATENDE | AU206: ATENDE | AV206: ATENDE | AW206: ATENDE | AX206: ATENDE | AY206: ATENDE | AZ206: ATENDE | BE206: 3.4 | BF206: P2 | BG206: 22.81 | BH206: 0.47 | BI206: 10 | BJ206: 0.25 | BK206: ATENDE | BL206: ATENDE | BM206: ATENDE | BN206: 3.4 | BO206: P2 | BP206: 22.81 | BQ206: 0.47 | BR206: 10 | BS206: 0.25 | BT206: ATENDE | BU206: ATENDE | BV206: ATENDE | BW206: L3 | BX206: L3-240-1 | BZ206: 1 | CA206: 179 | CB206: 0 | CC206: 23116 | CD206: - | CJ206: Asfalto CIE N3 | CK206: 274 | CL206: 0 | CM206: 274 | CN206: 179 | CO206: 0 | CP206: 179
B207: 192 | C207: 58 | D207: 6 | E207: 2 | F207: 1 | G207: Avenida Princesa Isabel | H207: - | I207: Ilumatic | J207: LP-7 VP-Lâmp.400 | K207: SUPER 4Y | L207: IP-PA 15 | M207: Núcleo de 2 lum. (180°) | O207: NÃO ATENDE | P207: NÃO ATENDE | Q207: NÃO ATENDE | R207: 22 | S207: 4.2 | T207: 2.2 | U207: 0 | V207: V1 | W207: 13.90940171 | X207: 30 | Y207: 0.02156814551 | Z207: 0.4 | AA207: 2 | AB207: 0.4 | AC207: 15 | AD207: 43 | AE207: 2 | AF207: Canteiro Central | AG207: 400 | AH207: 32 | AI207: 0 | AJ207: 0 | AK207: 0.75 | AL207: -0.25 | AM207: 0.5 | AN207: 0° | AO207: 1.5 | AP207: 39.85 | AQ207: 0.55 | AR207: 2.56 | AS207: 0.46 | AT207: ATENDE | AU207: ATENDE | AV207: ATENDE | AW207: ATENDE | AX207: ATENDE | AY207: ATENDE | AZ207: ATENDE | BE207: 4.2 | BF207: P2 | BG207: 18.83 | BH207: 0.69 | BI207: 10 | BJ207: 0.25 | BK207: ATENDE | BL207: ATENDE | BM207: ATENDE | BN207: 2.2 | BO207: P2 | BP207: 22.06 | BQ207: 0.75 | BR207: 10 | BS207: 0.25 | BT207: ATENDE | BU207: ATENDE | BV207: ATENDE | BW207: L3 | BX207: L3-336-2 | BZ207: 2 | CA207: 249 | CB207: 0 | CC207: 32040 | CD207: - | CJ207: Asfalto CIE N3 | CK207: 864 | CL207: 0 | CM207: 864 | CN207: 498 | CO207: 0 | CP207: 498
... 10 more rows
